Local authority department which incurred the expenditure,Service Division,Cost Centre,Summary of the Purpose of Expenditure,Expense Type,Expense Code,Detailed Expense Type,Date of Transaction,Transaction Number,Beneficiary,Merchant Category Number,Merchant Category,Gross Amount,VAT,Net Amount
Children and Young Peoples Services,Head of Education and Skills,071801,Selby Cottage Childcare Centre,Supplies and Services,384999,Miscellaneous Expenses,01-Mar-2019,000008369313245,WAYFAIR #2340580314,5965,Other expenses,469.97,0.00,469.97
Children and Young Peoples Services,"Head of Early Help, Inclusion and Vulnerable Children",088105,BA/BC/Crook 0-19 Community Family Hub,Supplies and Services,304649,Equipment and Materials,01-Mar-2019,000008369313445,AMZN Mktp UK MW6L714Z4,5942,Toys,24.99,4.17,20.82
Children and Young Peoples Services,"Head of Early Help, Inclusion and Vulnerable Children",085957,Secure Management,Supplies and Services,324117,Provisions E324,01-Mar-2019,000008369313811,TESCO STORES 6329,5411,Catering costs - provisions,101.15,0.00,101.15
Children and Young Peoples Services,Head of Childrens Social Care,085333,Coxhoe Satelite Home,Supplies and Services,324117,Provisions E324,01-Mar-2019,000008369314029,TESCO STORES 2371,5411,Catering costs - provisions,35.48,0.00,35.48
Children and Young Peoples Services,Head of Childrens Social Care,085333,Coxhoe Satelite Home,Supplies and Services,324117,Provisions E324,01-Mar-2019,000008369314031,TESCO STORES 2371,5411,Catering costs - provisions,7.10,0.00,7.10
Resources,Digital and Customer Services,065335,School Services - Implementations,Supplies and Services,304639,Equipment and Materials,01-Mar-2019,000008369314139,AMZN Mktp UK MW2GA3ZU4,5942,Technicians-supplies,18.39,0.00,18.39
Resources,Digital and Customer Services,065335,School Services - Implementations,Supplies and Services,304639,Equipment and Materials,01-Mar-2019,000008369314141,AMZN Mktp UK MW7N51Z54,5942,Technicians-supplies,17.85,0.00,17.85
Resources,Digital and Customer Services,065335,School Services - Implementations,Supplies and Services,304639,Equipment and Materials,01-Mar-2019,000008369314143,AMZN Mktp UK MW1IV44X4,5999,Technicians-supplies,-1.87,0.00,-1.87
Children and Young Peoples Services,Head of Childrens Social Care,085352,Tow Law CU,Supplies and Services,304221,Equipment and Materials,01-Mar-2019,000008369314209,SCREWFIX DIRECT,5200,Direct materials,0.88,0.00,0.88
Children and Young Peoples Services,Head of Childrens Social Care,085352,Tow Law CU,Supplies and Services,328041,Clothing uniforms and laundry E328,01-Mar-2019,000008369314211,ARGOS RETAIL GROUP,5310,Clothing uniforms and laundry,50.98,0.00,50.98
Adult and Health Services,Head of Adults,055807,Newton Aycliffe Pathways,Supplies and Services,304221,Equipment and Materials,01-Mar-2019,000008369314355,R DEFTY,5200,Direct materials,10.10,0.00,10.10
Adult and Health Services,Head of Adults,055807,Newton Aycliffe Pathways,Supplies and Services,324117,Provisions E324,01-Mar-2019,000008369314357,ASDA SUPERSTORE 4987,5411,Catering costs - provisions,21.17,0.00,21.17
Adult and Health Services,Head of Adults,055309,Peterlee Pathways,Supplies and Services,324117,Provisions E324,01-Mar-2019,000008369314393,LIDL UK PETERLEE,5411,Catering costs - provisions,0.54,0.09,0.45
Adult and Health Services,Head of Adults,055309,Peterlee Pathways,Supplies and Services,324117,Provisions E324,01-Mar-2019,000008369314393 - 1,LIDL UK PETERLEE,5411,Catering costs - provisions,5.50,,5.50
Children and Young Peoples Services,Head of Childrens Social Care,085363,LAC & Permanence Team 3,Supplies and Services,304259,Equipment and Materials,01-Mar-2019,000008369314395,GATESHEAD COUNCIL MOTO,9399,Equipment-purchase and rental,22.00,0.00,22.00
Children and Young Peoples Services,"Head of Early Help, Inclusion and Vulnerable Children",085957,Secure Management,Supplies and Services,324117,Provisions E324,02-Mar-2019,000008369313813,TESCO STORES 6329,5411,Catering costs - provisions,128.97,0.00,128.97
Children and Young Peoples Services,Head of Childrens Social Care,085342,9 Cedar Drive Aycliffe,Supplies and Services,324117,Provisions E324,02-Mar-2019,000008369314049,TESCO STORES 2916,5411,Catering costs - provisions,134.77,0.00,134.77
Children and Young Peoples Services,"Head of Early Help, Inclusion and Vulnerable Children",085810,CDYOS - Interventions Team,Supplies and Services,304259,Equipment and Materials,02-Mar-2019,000008369314505,WILKO DURHAM 426,5722,Equipment-purchase and rental,12.00,0.00,12.00
Children and Young Peoples Services,Head of Childrens Social Care,085333,Coxhoe Satelite Home,Supplies and Services,328041,Clothing uniforms and laundry E328,03-Mar-2019,000008369313391,MATALAN,5691,Clothing uniforms and laundry,5.00,0.83,4.17
Children and Young Peoples Services,Head of Childrens Social Care,085333,Coxhoe Satelite Home,Supplies and Services,328041,Clothing uniforms and laundry E328,03-Mar-2019,000008369313395,B & M RETAIL,5310,Clothing uniforms and laundry,6.58,0.00,6.58
Children and Young Peoples Services,Head of Childrens Social Care,085333,Coxhoe Satelite Home,Supplies and Services,328041,Clothing uniforms and laundry E328,03-Mar-2019,000008369313397,B & M RETAIL,5310,Clothing uniforms and laundry,12.27,0.00,12.27
Children and Young Peoples Services,Childrens Services Operational Support,052986,CYPS - Locality and Operational Support,Supplies and Services,328041,Clothing uniforms and laundry E328,03-Mar-2019,000008369313649,B&M RETAIL LTD,5310,Clothing uniforms and laundry,4.47,0.00,4.47
Children and Young Peoples Services,Head of Education and Skills,076001,Music Service,Supplies and Services,328041,Clothing uniforms and laundry E328,03-Mar-2019,000008369314403,B&M RETAIL LTD,5310,Clothing uniforms and laundry,9.99,0.00,9.99
Children and Young Peoples Services,Head of Childrens Social Care,085352,Tow Law CU,Supplies and Services,308011,Furniture,04-Mar-2019,000006253838228,WWW.IKEA.COM,5712,Furniture repair and replacement,259.00,43.17,215.83
Children and Young Peoples Services,Head of Education and Skills,078411,16-19 Education & Training,Supplies and Services,304259,Equipment and Materials,04-Mar-2019,000008377758349,WWW.DURHAM.GOV.UK,9399,Equipment-purchase and rental,55.00,0.00,55.00
Adult and Health Services,Head of Adults,055302,Durham Pathways,Supplies and Services,324117,Provisions E324,04-Mar-2019,000008377758351,SAINSBURYS SACAT 0776,5411,Catering costs - provisions,3.50,0.00,3.50
Children and Young Peoples Services,Head of Childrens Social Care,085342,9 Cedar Drive Aycliffe,Supplies and Services,324117,Provisions E324,04-Mar-2019,000008377758363,TESCO STORES 2916,5411,Catering costs - provisions,76.54,0.00,76.54
Children and Young Peoples Services,Head of Childrens Social Care,085342,9 Cedar Drive Aycliffe,Supplies and Services,324117,Provisions E324,04-Mar-2019,000008377758369,TESCO STORES 2916,5411,Catering costs - provisions,9.50,0.00,9.50
Children and Young Peoples Services,Childrens Services Operational Support,052986,CYPS - Locality and Operational Support,Supplies and Services,304259,Equipment and Materials,04-Mar-2019,000008377758573,GEN REGISTER OFFICE,9399,Equipment-purchase and rental,14.00,0.00,14.00
Children and Young Peoples Services,Head of Childrens Social Care,085333,Coxhoe Satelite Home,Supplies and Services,328041,Clothing uniforms and laundry E328,04-Mar-2019,000008377758579,PAYPAL WOWCHER,5310,Clothing uniforms and laundry,34.98,0.00,34.98
Children and Young Peoples Services,Head of Childrens Social Care,085334,West Rainton Satelite Home,Supplies and Services,324117,Provisions E324,04-Mar-2019,000008377758615,TESCO STORES 2371,5411,Catering costs - provisions,50.50,0.00,50.50
Children and Young Peoples Services,Head of Childrens Social Care,085352,Tow Law CU,Supplies and Services,324117,Provisions E324,04-Mar-2019,000008377758621,CO-OP GROUP 010989,5411,Catering costs - provisions,7.70,0.00,7.70
Children and Young Peoples Services,Childrens Services Operational Support,052986,CYPS - Locality and Operational Support,Supplies and Services,324117,Provisions E324,04-Mar-2019,000008377758635,ASDA SUPERSTORE 4987,5411,Catering costs - provisions,14.79,0.00,14.79
Children and Young Peoples Services,Head of Education and Skills,071732,Dean Bank Childcare,Supplies and Services,324117,Provisions E324,04-Mar-2019,000008377758657,ASDA GROCERIES ONLINE,5411,Catering costs - provisions,64.15,0.00,64.15
Children and Young Peoples Services,Head of Childrens Social Care,085334,West Rainton Satelite Home,Supplies and Services,328041,Clothing uniforms and laundry E328,04-Mar-2019,000008377758683,ARGOS LTD,5310,Clothing uniforms and laundry,29.99,0.00,29.99
Children and Young Peoples Services,"Head of Early Help, Inclusion and Vulnerable Children",085957,Secure Management,Supplies and Services,324117,Provisions E324,04-Mar-2019,000008377758765,TESCO STORES 6329,5411,Catering costs - provisions,276.20,0.00,276.20
Children and Young Peoples Services,"Head of Early Help, Inclusion and Vulnerable Children",085957,Secure Management,Supplies and Services,342033,Computers and Communications,04-Mar-2019,000008377758769,VERY,5964,Computer hardware,-48.00,0.00,-48.00
Children and Young Peoples Services,"Head of Early Help, Inclusion and Vulnerable Children",085957,Secure Management,Supplies and Services,304259,Equipment and Materials,04-Mar-2019,000008377758773,JD SPORTS INTERNET,5941,Equipment-purchase and rental,-70.00,0.00,-70.00
Children and Young Peoples Services,Head of Childrens Social Care,085352,Tow Law CU,Supplies and Services,324117,Provisions E324,04-Mar-2019,000008377758911,MARKS&SPENCER PLC,5411,Catering costs - provisions,24.00,0.00,24.00
Children and Young Peoples Services,Childrens Services Operational Support,052986,CYPS - Locality and Operational Support,Supplies and Services,324117,Provisions E324,04-Mar-2019,000008377758941,ASDA GROCERIES ONLINE,5411,Catering costs - provisions,32.46,0.00,32.46
Children and Young Peoples Services,Childrens Services Operational Support,052986,CYPS - Locality and Operational Support,Supplies and Services,324117,Provisions E324,04-Mar-2019,000008377758945,ASDA GROCERIES ONLINE,5411,Catering costs - provisions,-0.09,0.00,-0.09
Children and Young Peoples Services,Head of Childrens Social Care,085331,New Lea Childrens Home,Supplies and Services,324117,Provisions E324,04-Mar-2019,000008377758953,ASDA SUPERSTORE,5411,Catering costs - provisions,167.22,0.00,167.22
Children and Young Peoples Services,Head of Childrens Social Care,085342,9 Cedar Drive Aycliffe,Supplies and Services,324117,Provisions E324,04-Mar-2019,000008377759015,TESCO STORES 2916,5411,Catering costs - provisions,3.80,0.00,3.80
Adult and Health Services,Head of Adults,055301,Stanley Pathways,Supplies and Services,324117,Provisions E324,04-Mar-2019,000008377759019,ASDA SUPERSTORE,5411,Catering costs - provisions,20.08,0.00,20.08
Adult and Health Services,Head of Adults,055807,Newton Aycliffe Pathways,Supplies and Services,324117,Provisions E324,04-Mar-2019,000008377759403,ASDA SUPERSTORE 4987,5411,Catering costs - provisions,5.00,0.00,5.00
Children and Young Peoples Services,Head of Education and Skills,078411,16-19 Education & Training,Supplies and Services,304259,Equipment and Materials,04-Mar-2019,000008381822033,HARTLEPOOL BC CNP,9399,Equipment-purchase and rental,33.00,0.00,33.00
Children and Young Peoples Services,Head of Education and Skills,071801,Selby Cottage Childcare Centre,Supplies and Services,324117,Provisions E324,05-Mar-2019,000008381821983,JR HOLLAND FOODSERVICE,5499,Catering costs - provisions,373.31,0.00,373.31
Children and Young Peoples Services,Head of Education and Skills,071801,Selby Cottage Childcare Centre,Supplies and Services,324117,Provisions E324,05-Mar-2019,000008381821987,ASDA GROCERIES ONLINE,5411,Catering costs - provisions,65.05,0.00,65.05
Children and Young Peoples Services,Head of Education and Skills,071801,Selby Cottage Childcare Centre,Supplies and Services,324117,Provisions E324,05-Mar-2019,000008381821989,TESCO STORES 2371,5411,Catering costs - provisions,3.54,0.00,3.54
Children and Young Peoples Services,Head of Childrens Social Care,085342,9 Cedar Drive Aycliffe,Employees,040149,Recruitment Instruction and Training,05-Mar-2019,000008381822037,PARENTPAY E-COM R,8220,Training-all costs,40.00,0.00,40.00
Children and Young Peoples Services,Head of Childrens Social Care,085333,Coxhoe Satelite Home,Supplies and Services,312011,Newspapers books and periodicals E312,05-Mar-2019,000008381822269,AMZN Mktp UK MW9QE1A64,5942,Books-school library,4.99,0.00,4.99
Children and Young Peoples Services,Childrens Services Operational Support,052986,CYPS - Locality and Operational Support,Supplies and Services,328041,Clothing uniforms and laundry E328,05-Mar-2019,000008381822331,POUNDSTRETCHER 692,5331,Clothing uniforms and laundry,23.86,0.00,23.86
Children and Young Peoples Services,Head of Education and Skills,071732,Dean Bank Childcare,Supplies and Services,312011,Newspapers books and periodicals E312,05-Mar-2019,000008381822339,Amazon.co.uk MW30G0AH4,5969,Books-school library,59.98,0.00,59.98
Children and Young Peoples Services,Head of Education and Skills,071732,Dean Bank Childcare,Supplies and Services,324117,Provisions E324,05-Mar-2019,000008381822347,ASDA GROCERIES ONLINE,5411,Catering costs - provisions,80.02,0.00,80.02
Children and Young Peoples Services,Head of Education and Skills,071732,Dean Bank Childcare,Supplies and Services,324117,Provisions E324,05-Mar-2019,000008381822351,ASDA GROCERIES ONLINE,5411,Catering costs - provisions,-0.70,0.00,-0.70
Children and Young Peoples Services,Head of Childrens Social Care,071448,Newton Aycliffe One Point Hub,Supplies and Services,312011,Newspapers books and periodicals E312,05-Mar-2019,000008381822475,AMZN Mktp UK MW5IN1AD4,5942,Books-school library,23.48,0.00,23.48
Children and Young Peoples Services,Head of Childrens Social Care,071448,Newton Aycliffe One Point Hub,Supplies and Services,312011,Newspapers books and periodicals E312,05-Mar-2019,000008381822479,AMZN Mktp UK MW1WQ9E74,5942,Books-school library,24.00,4.00,20.00
Children and Young Peoples Services,Head of Childrens Social Care,071448,Newton Aycliffe One Point Hub,Supplies and Services,312011,Newspapers books and periodicals E312,05-Mar-2019,000008381822479 - 1,AMZN Mktp UK MW1WQ9E74,5942,Books-school library,21.98,,21.98
Children and Young Peoples Services,"Head of Early Help, Inclusion and Vulnerable Children",085957,Secure Management,Supplies and Services,304259,Equipment and Materials,05-Mar-2019,000008381822495,M and M Direct Ltd,5941,Equipment-purchase and rental,18.98,0.00,18.98
Children and Young Peoples Services,"Head of Early Help, Inclusion and Vulnerable Children",085957,Secure Management,Supplies and Services,328041,Clothing uniforms and laundry E328,05-Mar-2019,000008381822499,FOOTASYLUM PLC,5691,Clothing uniforms and laundry,144.98,0.00,144.98
Children and Young Peoples Services,"Head of Early Help, Inclusion and Vulnerable Children",085957,Secure Management,Supplies and Services,328041,Clothing uniforms and laundry E328,05-Mar-2019,000008381822503,WWW.BOOHOO.COM,5691,Clothing uniforms and laundry,15.24,0.00,15.24
Children and Young Peoples Services,"Head of Early Help, Inclusion and Vulnerable Children",085957,Secure Management,Supplies and Services,328041,Clothing uniforms and laundry E328,05-Mar-2019,000008381822505,21THREE CLOTHING COMPA,5691,Clothing uniforms and laundry,27.99,0.00,27.99
Children and Young Peoples Services,"Head of Early Help, Inclusion and Vulnerable Children",085957,Secure Management,Supplies and Services,342033,Computers and Communications,05-Mar-2019,000008381822511,VERY,5964,Computer hardware,123.99,0.00,123.99
Children and Young Peoples Services,"Head of Early Help, Inclusion and Vulnerable Children",085957,Secure Management,Supplies and Services,304259,Equipment and Materials,05-Mar-2019,000008381822515,JD SPORTS INTERNET,5941,Equipment-purchase and rental,175.00,0.00,175.00
Children and Young Peoples Services,Head of Childrens Social Care,085352,Tow Law CU,Supplies and Services,324117,Provisions E324,05-Mar-2019,000008381822673,ASDA SUPERSTORE,5411,Catering costs - provisions,28.00,0.00,28.00
Children and Young Peoples Services,"Head of Early Help, Inclusion and Vulnerable Children",071443,Stanley One Point Hub,Supplies and Services,328041,Clothing uniforms and laundry E328,05-Mar-2019,000008381822685,WWW.ARGOS.CO.UK,5310,Clothing uniforms and laundry,-99.99,0.00,-99.99
Children and Young Peoples Services,Head of Childrens Social Care,085333,Coxhoe Satelite Home,Supplies and Services,324117,Provisions E324,05-Mar-2019,000008381822745,CO-OP GROUP 310016,5411,Catering costs - provisions,19.75,0.00,19.75
Adult and Health Services,Head of Adults,055301,Stanley Pathways,Supplies and Services,328041,Clothing uniforms and laundry E328,05-Mar-2019,000008381822767,POUNDSTRETCHER 354,5331,Clothing uniforms and laundry,3.75,0.00,3.75
Children and Young Peoples Services,Head of Childrens Social Care,085352,Tow Law CU,Supplies and Services,324117,Provisions E324,05-Mar-2019,000008381822797,TESCO STORES 2371,5411,Catering costs - provisions,147.76,0.00,147.76
Children and Young Peoples Services,"Head of Early Help, Inclusion and Vulnerable Children",071445,Chester le Street One Point Hub,Supplies and Services,304403,Equipment and Materials,05-Mar-2019,000008381822907,TAXI PRICE COMPARE,5734,Other consumables,191.50,0.00,191.50
Children and Young Peoples Services,Head of Childrens Social Care,085342,9 Cedar Drive Aycliffe,Employees,040149,Recruitment Instruction and Training,05-Mar-2019,000008381822931,PARENTPAY E-COM R,8220,Training-all costs,69.86,0.00,69.86
Children and Young Peoples Services,Head of Education and Skills,071903,EYDCP-Sustainability EDS,Supplies and Services,352001,Conference Expenses,05-Mar-2019,000008381822955,SCARMAN,7011,Conferencesseminars fees etc,193.20,0.00,193.20
Children and Young Peoples Services,Head of Childrens Social Care,085332,Middlestone Moor CU,Supplies and Services,324117,Provisions E324,05-Mar-2019,000008381823121,ASDA SUPERSTORE 4987,5411,Catering costs - provisions,84.14,0.00,84.14
Children and Young Peoples Services,Head of Childrens Social Care,085332,Middlestone Moor CU,Supplies and Services,348037,Subsistence E348,05-Mar-2019,000008381823127,HOLIDAY INN DARL,5812,Subsistence,283.45,0.00,283.45
Children and Young Peoples Services,"Head of Early Help, Inclusion and Vulnerable Children",088107,Ferryhill & Newton Aycliffe 0-19 Community Family Hub,Supplies and Services,324117,Provisions E324,05-Mar-2019,000008381823161,TESCO STORES 2916,5411,Catering costs - provisions,5.00,0.00,5.00
Children and Young Peoples Services,"Head of Early Help, Inclusion and Vulnerable Children",088107,Ferryhill & Newton Aycliffe 0-19 Community Family Hub,Supplies and Services,328041,Clothing uniforms and laundry E328,05-Mar-2019,000008381823165,ARGOS LTD,5310,Clothing uniforms and laundry,55.98,0.00,55.98
Adult and Health Services,Head of Adults,055807,Newton Aycliffe Pathways,Supplies and Services,312011,Newspapers books and periodicals E312,05-Mar-2019,000008381823215,Amazon.co.uk MW1C32AG4,5969,Books-school library,30.00,0.00,30.00
Adult and Health Services,Head of Adults,055807,Newton Aycliffe Pathways,Third Party Payments 4THIRD,474101,Purchase of Care,05-Mar-2019,000008381823221,PIONEERING CARE PARTNE,8050,Nursing care payments,48.00,0.00,48.00
Adult and Health Services,Head of Adults,055807,Newton Aycliffe Pathways,Third Party Payments 4THIRD,474101,Purchase of Care,05-Mar-2019,000008381823227,PIONEERING CARE PARTNE,8050,Nursing care payments,9.00,0.00,9.00
Adult and Health Services,Head of Adults,055309,Peterlee Pathways,Supplies and Services,324117,Provisions E324,05-Mar-2019,000008381823261,LIDL UK PETERLEE,5411,Catering costs - provisions,1.38,0.00,1.38
Children and Young Peoples Services,"Head of Early Help, Inclusion and Vulnerable Children",085957,Secure Management,Supplies and Services,328041,Clothing uniforms and laundry E328,05-Mar-2019,000008387243733,WWW.TOPSHOP.COM,5691,Clothing uniforms and laundry,38.95,0.00,38.95
Children and Young Peoples Services,"Head of Early Help, Inclusion and Vulnerable Children",085957,Secure Management,Supplies and Services,304259,Equipment and Materials,05-Mar-2019,000008387243753,SPORTSDIRECT.COM,5941,Equipment-purchase and rental,82.92,13.82,69.10
Children and Young Peoples Services,"Head of Early Help, Inclusion and Vulnerable Children",085957,Secure Management,Supplies and Services,304259,Equipment and Materials,05-Mar-2019,000008387243753 - 1,SPORTSDIRECT.COM,5941,Equipment-purchase and rental,0.03,,0.03
Children and Young Peoples Services,Head of Childrens Social Care,085352,Tow Law CU,Supplies and Services,348037,Subsistence E348,05-Mar-2019,000008387243865,HILL TOP,5813,Subsistence,30.67,0.00,30.67
Children and Young Peoples Services,Head of Childrens Social Care,085352,Tow Law CU,Supplies and Services,348037,Subsistence E348,05-Mar-2019,000008387243869,HILL TOP,5813,Subsistence,1.29,0.00,1.29
Children and Young Peoples Services,"Head of Early Help, Inclusion and Vulnerable Children",085957,Secure Management,Supplies and Services,328041,Clothing uniforms and laundry E328,05-Mar-2019,000008392774715,RIVER ISLAND 400,5691,Clothing uniforms and laundry,15.99,0.00,15.99
Children and Young Peoples Services,Head of Education and Skills,071801,Selby Cottage Childcare Centre,Supplies and Services,324117,Provisions E324,06-Mar-2019,000008387243329,TESCO STORES 2278,5411,Catering costs - provisions,10.13,0.00,10.13
Children and Young Peoples Services,Head of Education and Skills,078411,16-19 Education & Training,Supplies and Services,304259,Equipment and Materials,06-Mar-2019,000008387243365,WWW.DURHAM.GOV.UK,9399,Equipment-purchase and rental,11.00,0.00,11.00
Adult and Health Services,Head of Adults,055302,Durham Pathways,Supplies and Services,324117,Provisions E324,06-Mar-2019,000008387243371,LIDL UK DURHAM,5411,Catering costs - provisions,5.52,0.92,4.60
Adult and Health Services,Head of Adults,055302,Durham Pathways,Supplies and Services,324117,Provisions E324,06-Mar-2019,000008387243371 - 1,LIDL UK DURHAM,5411,Catering costs - provisions,7.77,,7.77
Children and Young Peoples Services,Head of Childrens Social Care,085380,Operations Manager Adoption & Fostering,Supplies and Services,304259,Equipment and Materials,06-Mar-2019,000008387243463,GEN REGISTER OFFICE,9399,Equipment-purchase and rental,28.00,0.00,28.00
Children and Young Peoples Services,Head of Childrens Social Care,085334,West Rainton Satelite Home,Supplies and Services,324117,Provisions E324,06-Mar-2019,000008387243571,GEORGE BOLAM (FOODS) L,5499,Catering costs - provisions,155.71,0.00,155.71
Children and Young Peoples Services,Head of Childrens Social Care,085334,West Rainton Satelite Home,Supplies and Services,324117,Provisions E324,06-Mar-2019,000008387243577,ALDI 12 774,5411,Catering costs - provisions,33.36,0.00,33.36
Children and Young Peoples Services,Head of Education and Skills,071732,Dean Bank Childcare,Supplies and Services,312011,Newspapers books and periodicals E312,06-Mar-2019,000008387243613,Amazon.co.uk MW6C670T4,5969,Books-school library,34.48,0.00,34.48
Children and Young Peoples Services,"Head of Early Help, Inclusion and Vulnerable Children",085957,Secure Management,Supplies and Services,312011,Newspapers books and periodicals E312,06-Mar-2019,000008387243693,AMZN Mktp UK MW0BP00S4,5942,Books-school library,39.14,0.00,39.14
Children and Young Peoples Services,"Head of Early Help, Inclusion and Vulnerable Children",085957,Secure Management,Supplies and Services,312011,Newspapers books and periodicals E312,06-Mar-2019,000008387243699,AMZN Mktp UK MW4UW20K4,5942,Books-school library,12.73,2.12,10.61
Children and Young Peoples Services,"Head of Early Help, Inclusion and Vulnerable Children",085957,Secure Management,Supplies and Services,312011,Newspapers books and periodicals E312,06-Mar-2019,000008387243707,AMZN Mktp UK MW5GI3044,5942,Books-school library,15.99,0.00,15.99
Children and Young Peoples Services,"Head of Early Help, Inclusion and Vulnerable Children",085957,Secure Management,Supplies and Services,312011,Newspapers books and periodicals E312,06-Mar-2019,000008387243713,AMZN MKTP UK MW69U4094,5942,Books-school library,29.98,0.00,29.98
Children and Young Peoples Services,"Head of Early Help, Inclusion and Vulnerable Children",085957,Secure Management,Supplies and Services,312011,Newspapers books and periodicals E312,06-Mar-2019,000008387243715,AMZN Mktp UK MW5JG50O4,5942,Books-school library,94.96,0.00,94.96
Children and Young Peoples Services,"Head of Early Help, Inclusion and Vulnerable Children",085957,Secure Management,Supplies and Services,312011,Newspapers books and periodicals E312,06-Mar-2019,000008387243721,AMZN Mktp UK MW8053034,5942,Books-school library,13.95,0.00,13.95
Children and Young Peoples Services,"Head of Early Help, Inclusion and Vulnerable Children",085957,Secure Management,Supplies and Services,324117,Provisions E324,06-Mar-2019,000008387243725,TESCO STORES 6329,5411,Catering costs - provisions,80.47,0.00,80.47
Children and Young Peoples Services,"Head of Early Help, Inclusion and Vulnerable Children",085957,Secure Management,Supplies and Services,304999,Equipment and Materials,06-Mar-2019,000008387243735,TESCO DELIVERY SAVER2,5968,Misc equipment tools and materials,6.99,0.00,6.99
Children and Young Peoples Services,"Head of Early Help, Inclusion and Vulnerable Children",085957,Secure Management,Supplies and Services,328041,Clothing uniforms and laundry E328,06-Mar-2019,000008387243739,WWW.ARGOS.CO.UK,5310,Clothing uniforms and laundry,153.94,0.00,153.94
Children and Young Peoples Services,"Head of Early Help, Inclusion and Vulnerable Children",085957,Secure Management,Supplies and Services,308011,Furniture,06-Mar-2019,000008387243747,WWW.THERANGE.CO.UK,5712,Furniture repair and replacement,106.91,0.00,106.91
Children and Young Peoples Services,"Head of Early Help, Inclusion and Vulnerable Children",071443,Stanley One Point Hub,Supplies and Services,312011,Newspapers books and periodicals E312,06-Mar-2019,000008387243911,AMZN Mktp UK MW8N53E34,5942,Books-school library,31.00,0.00,31.00
Children and Young Peoples Services,"Head of Early Help, Inclusion and Vulnerable Children",071443,Stanley One Point Hub,Supplies and Services,312011,Newspapers books and periodicals E312,06-Mar-2019,000008387243917,AMZN Mktp UK MW9XM5EE4,5942,Books-school library,23.90,0.00,23.90
Children and Young Peoples Services,"Head of Early Help, Inclusion and Vulnerable Children",071443,Stanley One Point Hub,Supplies and Services,312011,Newspapers books and periodicals E312,06-Mar-2019,000008387243923,AMZN Mktp UK MW69N40N4,5942,Books-school library,29.98,0.00,29.98
Children and Young Peoples Services,"Head of Early Help, Inclusion and Vulnerable Children",071443,Stanley One Point Hub,Supplies and Services,312011,Newspapers books and periodicals E312,06-Mar-2019,000008387243929,AMZN Mktp UK MW94Y9E94,5942,Books-school library,15.96,0.00,15.96
Children and Young Peoples Services,Childrens Services Operational Support,052986,CYPS - Locality and Operational Support,Supplies and Services,328041,Clothing uniforms and laundry E328,06-Mar-2019,000008387244085,WWW.ARGOS.CO.UK,5310,Clothing uniforms and laundry,113.89,0.00,113.89
Children and Young Peoples Services,"Head of Early Help, Inclusion and Vulnerable Children",074000,TTF-Attachment and Results,Supplies and Services,324117,Provisions E324,06-Mar-2019,000008387244091,ASDA GEORGE COM LEEDS,5411,Catering costs - provisions,-69.00,0.00,-69.00
Children and Young Peoples Services,"Head of Early Help, Inclusion and Vulnerable Children",071445,Chester le Street One Point Hub,Supplies and Services,308011,Furniture,06-Mar-2019,000008387244099,WWW.IKEA.COM,5712,Furniture repair and replacement,115.95,19.33,96.62
Children and Young Peoples Services,"Head of Early Help, Inclusion and Vulnerable Children",071445,Chester le Street One Point Hub,Supplies and Services,324117,Provisions E324,06-Mar-2019,000008387244105,CAFE 22,5811,Catering costs - provisions,39.60,6.60,33.00
Children and Young Peoples Services,"Head of Early Help, Inclusion and Vulnerable Children",071445,Chester le Street One Point Hub,Supplies and Services,312011,Newspapers books and periodicals E312,06-Mar-2019,000008387244109,AMZN Mktp UK MW8ZA11D4,5942,Books-school library,11.19,0.00,11.19
Children and Young Peoples Services,Childrens Services Operational Support,052986,CYPS - Locality and Operational Support,Supplies and Services,308011,Furniture,06-Mar-2019,000008387244267,FRANKS THE FLOORING ST,5713,Furniture repair and replacement,473.00,0.00,473.00
Children and Young Peoples Services,Childrens Services Operational Support,052986,CYPS - Locality and Operational Support,Supplies and Services,304259,Equipment and Materials,06-Mar-2019,000008387244343,GATESHEAD COUNCIL MOTO,9399,Equipment-purchase and rental,11.00,0.00,11.00
Children and Young Peoples Services,Head of Childrens Social Care,085332,Middlestone Moor CU,Supplies and Services,384199,Miscellaneous Expenses,06-Mar-2019,000008387244451,NUFC www.nufc.co.uk,7941,Other hired and contracted services,42.00,0.00,42.00
Children and Young Peoples Services,Head of Childrens Social Care,085380,Operations Manager Adoption & Fostering,Supplies and Services,324117,Provisions E324,06-Mar-2019,000008387244483,ASDA STORES,5411,Catering costs - provisions,41.10,6.85,34.25
Children and Young Peoples Services,Head of Childrens Social Care,085380,Operations Manager Adoption & Fostering,Supplies and Services,304259,Equipment and Materials,06-Mar-2019,000008387244487,WILKO RETAIL LIMIT,5722,Equipment-purchase and rental,15.00,2.50,12.50
Adult and Health Services,Head of Adults,055309,Peterlee Pathways,Supplies and Services,324117,Provisions E324,06-Mar-2019,000008387244655,ASDA STORES LTD,5411,Catering costs - provisions,6.48,0.00,6.48
Children and Young Peoples Services,"Head of Early Help, Inclusion and Vulnerable Children",071443,Stanley One Point Hub,Supplies and Services,312011,Newspapers books and periodicals E312,07-Mar-2019,000008387243933,AMZN Mktp UK MW4PT7034,5942,Books-school library,56.95,0.00,56.95
Children and Young Peoples Services,Head of Education and Skills,071801,Selby Cottage Childcare Centre,Supplies and Services,324117,Provisions E324,07-Mar-2019,000008392774147,TESCO STORES 2278,5411,Catering costs - provisions,21.95,0.00,21.95
Children and Young Peoples Services,Head of Childrens Social Care,085357,Bespoke Placements,Supplies and Services,352001,Conference Expenses,07-Mar-2019,000008392774265,HOTEL 52,7011,Conferencesseminars fees etc,680.00,0.00,680.00
Adult and Health Services,Head of Adults,055302,Durham Pathways,Supplies and Services,324117,Provisions E324,07-Mar-2019,000008392774279,SAINSBURYS SACAT 0776,5411,Catering costs - provisions,12.05,0.00,12.05
Children and Young Peoples Services,"Head of Early Help, Inclusion and Vulnerable Children",071440,Barnard Castle One Point Hub,Supplies and Services,312011,Newspapers books and periodicals E312,07-Mar-2019,000008392774353,AMZN MKTP UK AMAZON.CO,5942,Books-school library,-75.19,0.00,-75.19
Children and Young Peoples Services,Childrens Services Operational Support,052986,CYPS - Locality and Operational Support,Supplies and Services,304259,Equipment and Materials,07-Mar-2019,000008392774459,HM PASSPORT OFFICE,9399,Equipment-purchase and rental,49.00,0.00,49.00
Children and Young Peoples Services,Head of Education and Skills,071903,EYDCP-Sustainability EDS,Supplies and Services,312011,Newspapers books and periodicals E312,07-Mar-2019,000008392774627,Amazon.co.uk MW9MH1PZ4,5969,Books-school library,4.99,0.00,4.99
Children and Young Peoples Services,"Head of Early Help, Inclusion and Vulnerable Children",085957,Secure Management,Supplies and Services,312011,Newspapers books and periodicals E312,07-Mar-2019,000008392774699,AMZN Mktp UK MW9H050K4,5942,Books-school library,17.74,2.96,14.78
Children and Young Peoples Services,"Head of Early Help, Inclusion and Vulnerable Children",085957,Secure Management,Supplies and Services,312011,Newspapers books and periodicals E312,07-Mar-2019,000008392774703,AMZN Mktp UK MW2SH21B4,5942,Books-school library,28.51,0.00,28.51
Children and Young Peoples Services,"Head of Early Help, Inclusion and Vulnerable Children",085957,Secure Management,Supplies and Services,324117,Provisions E324,07-Mar-2019,000008392774707,TESCO STORES 6329,5411,Catering costs - provisions,72.87,0.00,72.87
Children and Young Peoples Services,"Head of Early Help, Inclusion and Vulnerable Children",085957,Secure Management,Supplies and Services,342033,Computers and Communications,07-Mar-2019,000008392774719,VERY,5964,Computer hardware,53.99,0.00,53.99
Children and Young Peoples Services,Childrens Services Operational Support,052986,CYPS - Locality and Operational Support,Supplies and Services,324117,Provisions E324,07-Mar-2019,000008392774735,ASDA GEORGE COM LEEDS,5411,Catering costs - provisions,20.00,0.00,20.00
Children and Young Peoples Services,Childrens Services Operational Support,052986,CYPS - Locality and Operational Support,Supplies and Services,328041,Clothing uniforms and laundry E328,07-Mar-2019,000008392774741,ARGOS RETAIL GROUP,5310,Clothing uniforms and laundry,114.96,0.00,114.96
Children and Young Peoples Services,Childrens Services Operational Support,052986,CYPS - Locality and Operational Support,Supplies and Services,328041,Clothing uniforms and laundry E328,07-Mar-2019,000008392774747,ARGOS RETAIL GROUP,5310,Clothing uniforms and laundry,171.98,0.00,171.98
Children and Young Peoples Services,Childrens Services Operational Support,052986,CYPS - Locality and Operational Support,Supplies and Services,328041,Clothing uniforms and laundry E328,07-Mar-2019,000008392774751,WWW.THEWORKS.CO.UK,5310,Clothing uniforms and laundry,119.00,0.00,119.00
Children and Young Peoples Services,Head of Childrens Social Care,085551,Short Break Services-Park Hse Sher,Supplies and Services,324117,Provisions E324,07-Mar-2019,000008392774853,ALDI 59 774,5411,Catering costs - provisions,27.37,4.56,22.81
Children and Young Peoples Services,"Head of Early Help, Inclusion and Vulnerable Children",071443,Stanley One Point Hub,Supplies and Services,312011,Newspapers books and periodicals E312,07-Mar-2019,000008392774887,AMZN MKTP UK MW5X821P4,5942,Books-school library,61.23,0.00,61.23
Children and Young Peoples Services,Head of Childrens Social Care,085331,New Lea Childrens Home,Employees,040149,Recruitment Instruction and Training,07-Mar-2019,000008392774893,CAPITA RECRUITMENT VET,8999,Training-all costs,52.10,8.68,43.42
Children and Young Peoples Services,Head of Childrens Social Care,085333,Coxhoe Satelite Home,Supplies and Services,324117,Provisions E324,07-Mar-2019,000008392774927,ASDA SUPERSTORE 4987,5411,Catering costs - provisions,51.41,0.00,51.41
Children and Young Peoples Services,Head of Childrens Social Care,085333,Coxhoe Satelite Home,Supplies and Services,324117,Provisions E324,07-Mar-2019,000008392774931,ASDA SUPERSTORE 4987,5411,Catering costs - provisions,23.47,0.00,23.47
Children and Young Peoples Services,Head of Childrens Social Care,085333,Coxhoe Satelite Home,Supplies and Services,324117,Provisions E324,07-Mar-2019,000008392774937,ASDA SUPERSTORE 4987,5411,Catering costs - provisions,14.17,0.00,14.17
Children and Young Peoples Services,Head of Childrens Social Care,085342,9 Cedar Drive Aycliffe,Supplies and Services,324117,Provisions E324,07-Mar-2019,000008392774961,TESCO STORES 2916,5411,Catering costs - provisions,28.87,0.00,28.87
Children and Young Peoples Services,Childrens Services Operational Support,052986,CYPS - Locality and Operational Support,Supplies and Services,308011,Furniture,07-Mar-2019,000008392775069,WWW.IKEA.COM,5712,Furniture repair and replacement,59.95,0.00,59.95
Children and Young Peoples Services,Childrens Services Operational Support,052986,CYPS - Locality and Operational Support,Supplies and Services,324117,Provisions E324,07-Mar-2019,000008392775075,WILKO.COM,5399,Catering costs - provisions,64.00,10.67,53.33
Children and Young Peoples Services,Childrens Services Operational Support,052986,CYPS - Locality and Operational Support,Supplies and Services,348037,Subsistence E348,07-Mar-2019,000008392775081,CAFE INTERLUDE,5814,Subsistence,57.85,0.00,57.85
Children and Young Peoples Services,Childrens Services Operational Support,052986,CYPS - Locality and Operational Support,Supplies and Services,328041,Clothing uniforms and laundry E328,07-Mar-2019,000008392775085,B&M RETAIL LTD,5310,Clothing uniforms and laundry,-3.99,0.00,-3.99
Children and Young Peoples Services,"Head of Early Help, Inclusion and Vulnerable Children",071445,Chester le Street One Point Hub,Supplies and Services,312011,Newspapers books and periodicals E312,07-Mar-2019,000008392775089,AMZN Mktp UK MW1UU41L4,5942,Books-school library,54.15,0.00,54.15
Children and Young Peoples Services,"Head of Early Help, Inclusion and Vulnerable Children",071445,Chester le Street One Point Hub,Supplies and Services,312011,Newspapers books and periodicals E312,07-Mar-2019,000008392775095,AMZN Mktp UK MW8K701S4,5942,Books-school library,22.95,0.00,22.95
Children and Young Peoples Services,"Head of Early Help, Inclusion and Vulnerable Children",071445,Chester le Street One Point Hub,Supplies and Services,312011,Newspapers books and periodicals E312,07-Mar-2019,000008392775101,AMZN Mktp UK MW6NY01N4,5942,Books-school library,30.17,0.00,30.17
Children and Young Peoples Services,"Head of Early Help, Inclusion and Vulnerable Children",071445,Chester le Street One Point Hub,Supplies and Services,312011,Newspapers books and periodicals E312,07-Mar-2019,000008392775107,AMZN Mktp UK MW6TB50T4,5942,Books-school library,30.17,0.00,30.17
Children and Young Peoples Services,"Head of Early Help, Inclusion and Vulnerable Children",071445,Chester le Street One Point Hub,Supplies and Services,312011,Newspapers books and periodicals E312,07-Mar-2019,000008392775111,Amazon.co.uk MW9N281X4,5969,Books-school library,8.12,0.00,8.12
Children and Young Peoples Services,Childrens Services Operational Support,052986,CYPS - Locality and Operational Support,Supplies and Services,304259,Equipment and Materials,07-Mar-2019,000008392775157,DARLINGTON BC INTERNET,9399,Equipment-purchase and rental,22.00,0.00,22.00
Children and Young Peoples Services,Head of Childrens Social Care,085332,Middlestone Moor CU,Supplies and Services,324117,Provisions E324,07-Mar-2019,000008392775253,TESCO STORES 2916,5411,Catering costs - provisions,117.20,0.00,117.20
Children and Young Peoples Services,"Head of Early Help, Inclusion and Vulnerable Children",088107,Ferryhill & Newton Aycliffe 0-19 Community Family Hub,Supplies and Services,324117,Provisions E324,07-Mar-2019,000008392775279,TESCO STORES 2916,5411,Catering costs - provisions,30.00,0.00,30.00
Transformation and Partnerships,Partnerships & Community Engagement Div.,060472,Syrian Vulnerable Persons Scheme,Supplies and Services,324117,Provisions E324,07-Mar-2019,000008392775381,WILKO.COM,5399,Catering costs - provisions,496.00,0.00,496.00
Transformation and Partnerships,Partnerships & Community Engagement Div.,060472,Syrian Vulnerable Persons Scheme,Supplies and Services,324117,Provisions E324,07-Mar-2019,000008392775387,ASDA GEORGE COM LEEDS,5411,Catering costs - provisions,389.95,64.99,324.96
Children and Young Peoples Services,Head of Education and Skills,071801,Selby Cottage Childcare Centre,Supplies and Services,304999,Equipment and Materials,08-Mar-2019,000006230666762,Amazon Prime MW5W76GK4,5968,Misc equipment tools and materials,7.99,0.00,7.99
Children and Young Peoples Services,Head of Education and Skills,078411,16-19 Education & Training,Supplies and Services,384999,Miscellaneous Expenses,08-Mar-2019,000006230666844,BEAUTY BAY LTD,5977,Other expenses,71.50,0.00,71.50
Children and Young Peoples Services,Head of Education and Skills,078411,16-19 Education & Training,Supplies and Services,324117,Provisions E324,08-Mar-2019,000006230666850,ASDA GEORGE COM LEEDS,5411,Catering costs - provisions,12.00,0.00,12.00
Children and Young Peoples Services,Head of Education and Skills,078411,16-19 Education & Training,Supplies and Services,304259,Equipment and Materials,08-Mar-2019,000006230666854,SPORTSDIRECT.COM,5941,Equipment-purchase and rental,54.78,9.13,45.65
Children and Young Peoples Services,Head of Education and Skills,078411,16-19 Education & Training,Supplies and Services,304259,Equipment and Materials,08-Mar-2019,000006230666854 - 1,SPORTSDIRECT.COM,5941,Equipment-purchase and rental,28.70,,28.70
Children and Young Peoples Services,Head of Childrens Social Care,085621,Families First Aycliffe,Supplies and Services,312011,Newspapers books and periodicals E312,08-Mar-2019,000006230666886,Amazon.co.uk MW5A72GG4,5969,Books-school library,29.95,0.00,29.95
Children and Young Peoples Services,Head of Childrens Social Care,085333,Coxhoe Satelite Home,Supplies and Services,324117,Provisions E324,08-Mar-2019,000006230666954,CO-OP GROUP 310016,5411,Catering costs - provisions,9.00,0.00,9.00
Children and Young Peoples Services,Head of Childrens Social Care,085333,Coxhoe Satelite Home,Supplies and Services,324117,Provisions E324,08-Mar-2019,000006230666958,CO-OP GROUP 310016,5411,Catering costs - provisions,17.05,0.00,17.05
Children and Young Peoples Services,"Head of Early Help, Inclusion and Vulnerable Children",071449,Ferryhill One Point Hub,Supplies and Services,312011,Newspapers books and periodicals E312,08-Mar-2019,000006230667064,AMZN MKTP UK MW1C19PB4,5942,Books-school library,24.63,0.00,24.63
Children and Young Peoples Services,"Head of Early Help, Inclusion and Vulnerable Children",071449,Ferryhill One Point Hub,Supplies and Services,312011,Newspapers books and periodicals E312,08-Mar-2019,000006230667068,AMZN MKTP UK MW5CX9PM4,5942,Books-school library,18.50,0.00,18.50
Children and Young Peoples Services,"Head of Early Help, Inclusion and Vulnerable Children",071449,Ferryhill One Point Hub,Supplies and Services,312011,Newspapers books and periodicals E312,08-Mar-2019,000006230667070,AMZN MKTP UK MW8CZ6P64,5942,Books-school library,10.25,0.00,10.25
Children and Young Peoples Services,"Head of Early Help, Inclusion and Vulnerable Children",071449,Ferryhill One Point Hub,Supplies and Services,328041,Clothing uniforms and laundry E328,08-Mar-2019,000006230667080,ARGOS RETAIL GROUP,5310,Clothing uniforms and laundry,26.66,0.00,26.66
Children and Young Peoples Services,"Head of Early Help, Inclusion and Vulnerable Children",071449,Ferryhill One Point Hub,Supplies and Services,328041,Clothing uniforms and laundry E328,08-Mar-2019,000006230667084,WWW.ARGOS.CO.UK,5310,Clothing uniforms and laundry,108.92,0.00,108.92
Children and Young Peoples Services,Head of Childrens Social Care,085333,Coxhoe Satelite Home,Supplies and Services,324117,Provisions E324,08-Mar-2019,000006230667204,CO-OP GROUP 310016,5411,Catering costs - provisions,7.24,0.00,7.24
Children and Young Peoples Services,Head of Childrens Social Care,085352,Tow Law CU,Supplies and Services,324117,Provisions E324,08-Mar-2019,000006230667224,KRISPY KREME GATESHEAD,5441,Catering costs - provisions,8.50,1.42,7.08
Children and Young Peoples Services,Head of Childrens Social Care,085352,Tow Law CU,Supplies and Services,328041,Clothing uniforms and laundry E328,08-Mar-2019,000006230667228,THE RANGE,5311,Clothing uniforms and laundry,80.40,0.00,80.40
Children and Young Peoples Services,Head of Education and Skills,071903,EYDCP-Sustainability EDS,Supplies and Services,312011,Newspapers books and periodicals E312,08-Mar-2019,000006230667430,Amazon.co.uk MW3HC8PV4,5969,Books-school library,4.99,0.00,4.99
Children and Young Peoples Services,Head of Education and Skills,071903,EYDCP-Sustainability EDS,Supplies and Services,312011,Newspapers books and periodicals E312,08-Mar-2019,000006230667436,Amazon.co.uk MW9SX1PB4,5969,Books-school library,157.60,0.00,157.60
Children and Young Peoples Services,"Head of Early Help, Inclusion and Vulnerable Children",085957,Secure Management,Supplies and Services,312011,Newspapers books and periodicals E312,08-Mar-2019,000006230667512,Amazon.co.uk MW6F87P64,5969,Books-school library,19.50,3.25,16.25
Children and Young Peoples Services,"Head of Early Help, Inclusion and Vulnerable Children",085957,Secure Management,Supplies and Services,312011,Newspapers books and periodicals E312,08-Mar-2019,000006230667516,Amazon.co.uk MW6HX9PO4,5969,Books-school library,19.44,3.24,16.20
Children and Young Peoples Services,"Head of Early Help, Inclusion and Vulnerable Children",085957,Secure Management,Supplies and Services,324117,Provisions E324,08-Mar-2019,000006230667520,TESCO STORES 6329,5411,Catering costs - provisions,211.42,0.00,211.42
Children and Young Peoples Services,"Head of Early Help, Inclusion and Vulnerable Children",071443,Stanley One Point Hub,Supplies and Services,312011,Newspapers books and periodicals E312,08-Mar-2019,000006230667678,AMZN Mktp UK MW0BV2P44,5942,Books-school library,149.99,0.00,149.99
Children and Young Peoples Services,"Head of Early Help, Inclusion and Vulnerable Children",071443,Stanley One Point Hub,Supplies and Services,324117,Provisions E324,08-Mar-2019,000006230667682,ASDA GEORGE COM LEEDS,5411,Catering costs - provisions,97.50,0.00,97.50
Children and Young Peoples Services,Head of Childrens Social Care,085342,9 Cedar Drive Aycliffe,Supplies and Services,348037,Subsistence E348,08-Mar-2019,000006230667750,GRETNA GREEN HOTEL,5813,Subsistence,13.77,0.00,13.77
Children and Young Peoples Services,"Head of Early Help, Inclusion and Vulnerable Children",071445,Chester le Street One Point Hub,Supplies and Services,312011,Newspapers books and periodicals E312,08-Mar-2019,000006230667892,AMZN Mktp UK MW1FD2PS4,5942,Books-school library,32.97,0.00,32.97
Children and Young Peoples Services,"Head of Early Help, Inclusion and Vulnerable Children",071445,Chester le Street One Point Hub,Supplies and Services,312011,Newspapers books and periodicals E312,08-Mar-2019,000006230667894,AMZN Mktp UK MW2KS5P54,5942,Books-school library,29.99,0.00,29.99
Children and Young Peoples Services,"Head of Early Help, Inclusion and Vulnerable Children",071445,Chester le Street One Point Hub,Supplies and Services,312011,Newspapers books and periodicals E312,08-Mar-2019,000006230667898,AMZN Mktp UK MW6FC6P04,5942,Books-school library,68.95,0.00,68.95
Children and Young Peoples Services,"Head of Early Help, Inclusion and Vulnerable Children",071445,Chester le Street One Point Hub,Supplies and Services,312011,Newspapers books and periodicals E312,08-Mar-2019,000006230667900,AMZN Mktp UK MW7FI1PM4,5942,Books-school library,21.97,0.00,21.97
Children and Young Peoples Services,"Head of Early Help, Inclusion and Vulnerable Children",071445,Chester le Street One Point Hub,Supplies and Services,312011,Newspapers books and periodicals E312,08-Mar-2019,000006230667904,AMZN Mktp UK MW77Y8PY4,5942,Books-school library,25.99,0.00,25.99
Children and Young Peoples Services,Childrens Services Operational Support,052986,CYPS - Locality and Operational Support,Supplies and Services,304259,Equipment and Materials,08-Mar-2019,000006230667960,WWW.DURHAM.GOV.UK,9399,Equipment-purchase and rental,11.00,0.00,11.00
Children and Young Peoples Services,Head of Childrens Social Care,085333,Coxhoe Satelite Home,Supplies and Services,324117,Provisions E324,08-Mar-2019,000006230668038,TESCO STORES 2916,5411,Catering costs - provisions,53.10,0.00,53.10
Children and Young Peoples Services,Head of Childrens Social Care,085333,Coxhoe Satelite Home,Supplies and Services,324117,Provisions E324,08-Mar-2019,000006230668044,TESCO STORES 2916,5411,Catering costs - provisions,22.20,0.00,22.20
Transformation and Partnerships,Partnerships & Community Engagement Div.,060472,Syrian Vulnerable Persons Scheme,Supplies and Services,312011,Newspapers books and periodicals E312,08-Mar-2019,000006230668216,HOME BARGAINS SPENNYMO,5251,Books-school library,11.27,0.00,11.27
Transformation and Partnerships,Partnerships & Community Engagement Div.,060472,Syrian Vulnerable Persons Scheme,Supplies and Services,324117,Provisions E324,08-Mar-2019,000006230668220,ASDA STORES LTD 4313,5411,Catering costs - provisions,73.00,12.17,60.83
Transformation and Partnerships,Partnerships & Community Engagement Div.,060472,Syrian Vulnerable Persons Scheme,Supplies and Services,304259,Equipment and Materials,08-Mar-2019,000006230668224,WILKO DURHAM 426,5722,Equipment-purchase and rental,36.00,6.00,30.00
Transformation and Partnerships,Partnerships & Community Engagement Div.,060472,Syrian Vulnerable Persons Scheme,Supplies and Services,304259,Equipment and Materials,08-Mar-2019,000006230668228,WILKO DURHAM 426,5722,Equipment-purchase and rental,60.00,10.00,50.00
Children and Young Peoples Services,Head of Childrens Social Care,085342,9 Cedar Drive Aycliffe,Supplies and Services,304999,Equipment and Materials,09-Mar-2019,000006230666864,PLANET LEISURE,7933,Misc equipment tools and materials,9.00,0.00,9.00
Children and Young Peoples Services,Head of Childrens Social Care,085342,9 Cedar Drive Aycliffe,Supplies and Services,324117,Provisions E324,09-Mar-2019,000006230666866,TESCO STORES 2916,5411,Catering costs - provisions,52.90,0.00,52.90
Children and Young Peoples Services,Head of Childrens Social Care,085333,Coxhoe Satelite Home,Supplies and Services,324117,Provisions E324,09-Mar-2019,000006230666960,TESCO STORES 2371,5411,Catering costs - provisions,10.00,0.00,10.00
Children and Young Peoples Services,Head of Childrens Social Care,085333,Coxhoe Satelite Home,Supplies and Services,328041,Clothing uniforms and laundry E328,09-Mar-2019,000006230666964,PRIMARK 670 GATESHEAD,5651,Clothing uniforms and laundry,4.50,0.00,4.50
Children and Young Peoples Services,Head of Childrens Social Care,085333,Coxhoe Satelite Home,Supplies and Services,328041,Clothing uniforms and laundry E328,09-Mar-2019,000006230666968,PRIMARK 670 GATESHEAD,5651,Clothing uniforms and laundry,63.40,0.00,63.40
Children and Young Peoples Services,Head of Childrens Social Care,085333,Coxhoe Satelite Home,Supplies and Services,304259,Equipment and Materials,09-Mar-2019,000006230666972,WILKO METRO CENTRE,5722,Equipment-purchase and rental,6.55,0.00,6.55
Children and Young Peoples Services,Head of Childrens Social Care,085333,Coxhoe Satelite Home,Supplies and Services,348037,Subsistence E348,09-Mar-2019,000006230666976,MCDONALDS,5814,Subsistence,14.55,2.43,12.12
Children and Young Peoples Services,Childrens Services Operational Support,052986,CYPS - Locality and Operational Support,Supplies and Services,312011,Newspapers books and periodicals E312,09-Mar-2019,000006230667002,HOME BARGAINS,5251,Books-school library,18.63,3.11,15.52
Children and Young Peoples Services,Head of Childrens Social Care,085334,West Rainton Satelite Home,Supplies and Services,384237,Miscellaneous Expenses,09-Mar-2019,000006230667388,DYNAMIX,7999,Recreational exps outings parties,12.00,0.00,12.00
Children and Young Peoples Services,"Head of Early Help, Inclusion and Vulnerable Children",085957,Secure Management,Supplies and Services,324117,Provisions E324,09-Mar-2019,000006230667524,TESCO STORES 6329,5411,Catering costs - provisions,131.92,0.00,131.92
Children and Young Peoples Services,Head of Childrens Social Care,085551,Short Break Services-Park Hse Sher,Supplies and Services,324117,Provisions E324,09-Mar-2019,000006230667644,ASDA STORES,5411,Catering costs - provisions,30.00,0.00,30.00
Children and Young Peoples Services,Head of Childrens Social Care,085342,9 Cedar Drive Aycliffe,Supplies and Services,304259,Equipment and Materials,09-Mar-2019,000006230667754,WILKO RETAIL LIMIT,5722,Equipment-purchase and rental,15.85,0.00,15.85
Children and Young Peoples Services,"Head of Early Help, Inclusion and Vulnerable Children",071445,Chester le Street One Point Hub,Supplies and Services,312011,Newspapers books and periodicals E312,09-Mar-2019,000006230667908,AMZN Mktp UK MW1YB8GO4,5942,Books-school library,27.17,0.00,27.17
Children and Young Peoples Services,Head of Childrens Social Care,085342,9 Cedar Drive Aycliffe,Supplies and Services,348037,Subsistence E348,10-Mar-2019,000006230666870,COSTA COFFEE HO BACK U,5812,Subsistence,6.20,0.00,6.20
Children and Young Peoples Services,Head of Childrens Social Care,085342,9 Cedar Drive Aycliffe,Supplies and Services,324117,Provisions E324,10-Mar-2019,000006230666874,ALDI 74 774,5411,Catering costs - provisions,14.45,0.00,14.45
Children and Young Peoples Services,Head of Childrens Social Care,085342,9 Cedar Drive Aycliffe,Supplies and Services,304259,Equipment and Materials,10-Mar-2019,000006230666878,WILKO RETAIL LIMIT,5722,Equipment-purchase and rental,29.40,0.00,29.40
Children and Young Peoples Services,Childrens Services Operational Support,052986,CYPS - Locality and Operational Support,Supplies and Services,384999,Miscellaneous Expenses,10-Mar-2019,000006230667006,HOBBYCRAFT,5970,Other expenses,10.05,0.00,10.05
Children and Young Peoples Services,"Head of Early Help, Inclusion and Vulnerable Children",071449,Ferryhill One Point Hub,Supplies and Services,312011,Newspapers books and periodicals E312,10-Mar-2019,000006230667074,AMZN Mktp UK MW1JA3XZ4,5942,Books-school library,24.47,0.00,24.47
Children and Young Peoples Services,"Head of Early Help, Inclusion and Vulnerable Children",071449,Ferryhill One Point Hub,Supplies and Services,312011,Newspapers books and periodicals E312,10-Mar-2019,000006230667078,Amazon.co.uk MW7AV3V14,5969,Books-school library,32.66,0.00,32.66
Children and Young Peoples Services,"Head of Early Help, Inclusion and Vulnerable Children",071449,Ferryhill One Point Hub,Supplies and Services,312011,Newspapers books and periodicals E312,10-Mar-2019,000006230667086,AMZN MKTP UK MW6FM6XT4,5942,Books-school library,3.54,0.00,3.54
Children and Young Peoples Services,"Head of Early Help, Inclusion and Vulnerable Children",085957,Secure Management,Supplies and Services,324117,Provisions E324,10-Mar-2019,000006230667528,TESCO STORES 6329,5411,Catering costs - provisions,116.62,0.00,116.62
Children and Young Peoples Services,"Head of Early Help, Inclusion and Vulnerable Children",071443,Stanley One Point Hub,Supplies and Services,312011,Newspapers books and periodicals E312,10-Mar-2019,000006230667686,Amazon.co.uk MW7VN8XA4,5969,Books-school library,7.98,0.00,7.98
Children and Young Peoples Services,Head of Childrens Social Care,085333,Coxhoe Satelite Home,Supplies and Services,324117,Provisions E324,10-Mar-2019,000006230667726,ASDA SUPERSTORE 4987,5411,Catering costs - provisions,50.62,0.00,50.62
Children and Young Peoples Services,"Head of Early Help, Inclusion and Vulnerable Children",071445,Chester le Street One Point Hub,Supplies and Services,312011,Newspapers books and periodicals E312,10-Mar-2019,000006230667910,AMZN Mktp UK MW1OL1XQ4,5942,Books-school library,44.05,0.00,44.05
Children and Young Peoples Services,"Head of Early Help, Inclusion and Vulnerable Children",071445,Chester le Street One Point Hub,Supplies and Services,312011,Newspapers books and periodicals E312,10-Mar-2019,000006230667914,AMZN Mktp UK MW2N35XW4,5942,Books-school library,26.34,0.00,26.34
Children and Young Peoples Services,"Head of Early Help, Inclusion and Vulnerable Children",071445,Chester le Street One Point Hub,Supplies and Services,312011,Newspapers books and periodicals E312,10-Mar-2019,000006230667916,AMZN Mktp UK MW3725XL4,5942,Books-school library,44.05,0.00,44.05
Children and Young Peoples Services,"Head of Early Help, Inclusion and Vulnerable Children",071445,Chester le Street One Point Hub,Supplies and Services,312011,Newspapers books and periodicals E312,10-Mar-2019,000006230667920,AMZN Mktp UK MW9OA9XH4,5942,Books-school library,58.56,0.00,58.56
Children and Young Peoples Services,"Head of Early Help, Inclusion and Vulnerable Children",071445,Chester le Street One Point Hub,Supplies and Services,312011,Newspapers books and periodicals E312,10-Mar-2019,000006230667924,AMZN Mktp UK MW95J1VR4,5942,Books-school library,10.17,0.00,10.17
Children and Young Peoples Services,Head of Childrens Social Care,085511,Emergency Duty Team,Employees,040149,Recruitment Instruction and Training,10-Mar-2019,000006239125640,PREMIER INN,3811,Training-all costs,61.50,0.00,61.50
Children and Young Peoples Services,"Head of Early Help, Inclusion and Vulnerable Children",071443,Stanley One Point Hub,Supplies and Services,312011,Newspapers books and periodicals E312,11-Mar-2019,000006230667684,Amazon.co.uk MW43K2VA4,5969,Books-school library,27.75,0.00,27.75
Children and Young Peoples Services,Head of Education and Skills,054640,Durham Learning Resources,Supplies and Services,312011,Newspapers books and periodicals E312,11-Mar-2019,000006239125336,AMZN Mktp UK MW1VF2M54,5942,Books-school library,36.94,0.00,36.94
Children and Young Peoples Services,Head of Education and Skills,054640,Durham Learning Resources,Supplies and Services,312011,Newspapers books and periodicals E312,11-Mar-2019,000006239125342,AMZN Mktp UK MW3BM7V04,5942,Books-school library,34.44,0.00,34.44
Children and Young Peoples Services,Head of Education and Skills,054640,Durham Learning Resources,Supplies and Services,312011,Newspapers books and periodicals E312,11-Mar-2019,000006239125346,AMZN Mktp UK MW4KT0MB4,5942,Books-school library,4.98,0.00,4.98
Children and Young Peoples Services,Head of Education and Skills,054640,Durham Learning Resources,Supplies and Services,312011,Newspapers books and periodicals E312,11-Mar-2019,000006239125348,Amazon.co.uk MW32J9MK4,5969,Books-school library,15.20,0.00,15.20
Children and Young Peoples Services,Head of Education and Skills,054640,Durham Learning Resources,Supplies and Services,312011,Newspapers books and periodicals E312,11-Mar-2019,000006239125354,AMZN Mktp UK MW4Q52V94,5942,Books-school library,21.81,0.00,21.81
Children and Young Peoples Services,"Head of Early Help, Inclusion and Vulnerable Children",071440,Barnard Castle One Point Hub,Supplies and Services,312011,Newspapers books and periodicals E312,11-Mar-2019,000006239125536,AMZN MKTP UK MW1ER1M64,5942,Books-school library,9.00,1.50,7.50
Children and Young Peoples Services,"Head of Early Help, Inclusion and Vulnerable Children",071440,Barnard Castle One Point Hub,Supplies and Services,312011,Newspapers books and periodicals E312,11-Mar-2019,000006239125536 - 1,AMZN MKTP UK MW1ER1M64,5942,Books-school library,56.99,,56.99
Children and Young Peoples Services,"Head of Early Help, Inclusion and Vulnerable Children",071440,Barnard Castle One Point Hub,Supplies and Services,304403,Equipment and Materials,11-Mar-2019,000006239125542,AMZ AO,5999,Other consumables,-183.00,0.00,-183.00
Children and Young Peoples Services,Childrens Services Operational Support,052986,CYPS - Locality and Operational Support,Supplies and Services,304999,Equipment and Materials,11-Mar-2019,000006239125654,EDINBURGH,7991,Misc equipment tools and materials,42.00,0.00,42.00
Children and Young Peoples Services,Head of Education and Skills,071732,Dean Bank Childcare,Supplies and Services,324117,Provisions E324,11-Mar-2019,000006239125760,ASDA GROCERIES ONLINE,5411,Catering costs - provisions,45.31,0.00,45.31
Children and Young Peoples Services,Head of Education and Skills,071732,Dean Bank Childcare,Supplies and Services,324117,Provisions E324,11-Mar-2019,000006239125766,ASDA GROCERIES ONLINE,5411,Catering costs - provisions,-4.00,0.00,-4.00
Children and Young Peoples Services,"Head of Early Help, Inclusion and Vulnerable Children",088113,Seaham & Central Durham 0-19 Community Family Hub,Supplies and Services,324117,Provisions E324,11-Mar-2019,000006239125784,TESCO STORES 2371,5411,Catering costs - provisions,35.75,0.00,35.75
Children and Young Peoples Services,Head of Childrens Social Care,085334,West Rainton Satelite Home,Supplies and Services,324117,Provisions E324,11-Mar-2019,000006239125844,TESCO STORES 2371,5411,Catering costs - provisions,43.07,0.00,43.07
Children and Young Peoples Services,Head of Childrens Social Care,085334,West Rainton Satelite Home,Supplies and Services,324117,Provisions E324,11-Mar-2019,000006239125848,TESCO STORES 2371,5411,Catering costs - provisions,13.00,0.00,13.00
Children and Young Peoples Services,Head of Childrens Social Care,085334,West Rainton Satelite Home,Supplies and Services,324117,Provisions E324,11-Mar-2019,000006239125854,TESCO STORES 2371,5411,Catering costs - provisions,8.50,0.00,8.50
Children and Young Peoples Services,"Head of Early Help, Inclusion and Vulnerable Children",085957,Secure Management,Supplies and Services,312011,Newspapers books and periodicals E312,11-Mar-2019,000006239125986,AMZN Mktp UK MW5OL8MS4,5942,Books-school library,63.98,10.66,53.32
Children and Young Peoples Services,"Head of Early Help, Inclusion and Vulnerable Children",085957,Secure Management,Supplies and Services,324117,Provisions E324,11-Mar-2019,000006239125990,TESCO STORES 6329,5411,Catering costs - provisions,134.38,0.00,134.38
Children and Young Peoples Services,"Head of Early Help, Inclusion and Vulnerable Children",071443,Stanley One Point Hub,Supplies and Services,312011,Newspapers books and periodicals E312,11-Mar-2019,000006239126238,AMZN Mktp UK MW97V9M54,5942,Books-school library,3.99,0.00,3.99
Children and Young Peoples Services,Head of Childrens Social Care,085352,Tow Law CU,Supplies and Services,324117,Provisions E324,11-Mar-2019,000006239126370,SCOTMID CO-OP FROS,5411,Catering costs - provisions,56.00,0.00,56.00
Children and Young Peoples Services,"Head of Early Help, Inclusion and Vulnerable Children",071445,Chester le Street One Point Hub,Supplies and Services,312011,Newspapers books and periodicals E312,11-Mar-2019,000006239126474,AMZN Mktp UK MW53O7V34,5942,Books-school library,33.51,0.00,33.51
Children and Young Peoples Services,Head of Childrens Social Care,085380,Operations Manager Adoption & Fostering,Supplies and Services,324117,Provisions E324,11-Mar-2019,000006239126722,ASDA STORES,5411,Catering costs - provisions,33.68,5.61,28.07
Adult and Health Services,Head of Adults,055807,Newton Aycliffe Pathways,Supplies and Services,312011,Newspapers books and periodicals E312,11-Mar-2019,000006239126786,CHARLES DICKENS (SPENN,5251,Books-school library,5.98,1.00,4.98
Adult and Health Services,Head of Adults,055807,Newton Aycliffe Pathways,Supplies and Services,304221,Equipment and Materials,11-Mar-2019,000006239126790,R DEFTY,5200,Direct materials,-2.50,0.00,-2.50
Adult and Health Services,Head of Adults,055306,Spennymoor Pathways,Supplies and Services,312011,Newspapers books and periodicals E312,11-Mar-2019,000006239126816,CHARLES DICKENS (SPENN,5251,Books-school library,9.96,1.66,8.30
Transformation and Partnerships,Partnerships & Community Engagement Div.,060472,Syrian Vulnerable Persons Scheme,Supplies and Services,328041,Clothing uniforms and laundry E328,11-Mar-2019,000006239126868,SP TERRYS FABRICS,5691,Clothing uniforms and laundry,499.28,0.00,499.28
Children and Young Peoples Services,Head of Childrens Social Care,085621,Families First Aycliffe,Supplies and Services,332047,Printing Stationery and Gen Off Exps,11-Mar-2019,000006243170794,WWW.POSTOFFICESHOP.CO.,5111,Stationery,60.00,0.00,60.00
Children and Young Peoples Services,"Head of Early Help, Inclusion and Vulnerable Children",071440,Barnard Castle One Point Hub,Supplies and Services,304221,Equipment and Materials,11-Mar-2019,000006243170886,B & Q 1237,5200,Direct materials,19.50,3.25,16.25
Children and Young Peoples Services,"Head of Early Help, Inclusion and Vulnerable Children",071440,Barnard Castle One Point Hub,Supplies and Services,324117,Provisions E324,11-Mar-2019,000006243170888,CO-OP GROUP 310015,5411,Catering costs - provisions,2.20,0.00,2.20
Children and Young Peoples Services,"Head of Early Help, Inclusion and Vulnerable Children",071440,Barnard Castle One Point Hub,Supplies and Services,312011,Newspapers books and periodicals E312,11-Mar-2019,000006243170898,AMZN MKTP UK MW7CC3MN4,5942,Books-school library,42.48,7.08,35.40
Children and Young Peoples Services,"Head of Early Help, Inclusion and Vulnerable Children",071440,Barnard Castle One Point Hub,Supplies and Services,312011,Newspapers books and periodicals E312,11-Mar-2019,000006243170898 - 1,AMZN MKTP UK MW7CC3MN4,5942,Books-school library,35.00,,35.00
Children and Young Peoples Services,"Head of Early Help, Inclusion and Vulnerable Children",071440,Barnard Castle One Point Hub,Supplies and Services,312011,Newspapers books and periodicals E312,11-Mar-2019,000006243170900,AMZN MKTP UK MW8Q465X4,5942,Books-school library,19.70,3.28,16.42
Children and Young Peoples Services,Childrens Services Operational Support,052986,CYPS - Locality and Operational Support,Supplies and Services,304259,Equipment and Materials,11-Mar-2019,000006243171032,WWW.DURHAM.GOV.UK,9399,Equipment-purchase and rental,11.00,0.00,11.00
Children and Young Peoples Services,Head of Childrens Social Care,085334,West Rainton Satelite Home,Supplies and Services,328041,Clothing uniforms and laundry E328,11-Mar-2019,000006243171160,ARGOS LTD,5310,Clothing uniforms and laundry,10.99,0.00,10.99
Children and Young Peoples Services,Head of Childrens Social Care,085334,West Rainton Satelite Home,Supplies and Services,304259,Equipment and Materials,11-Mar-2019,000006243171162,SPORTSDIRECT 264,5941,Equipment-purchase and rental,36.99,0.00,36.99
Children and Young Peoples Services,Head of Childrens Social Care,085551,Short Break Services-Park Hse Sher,Supplies and Services,324117,Provisions E324,11-Mar-2019,000006243171408,ALDI 15 774,5411,Catering costs - provisions,44.28,7.38,36.90
Children and Young Peoples Services,Head of Childrens Social Care,085551,Short Break Services-Park Hse Sher,Supplies and Services,324117,Provisions E324,11-Mar-2019,000006243171408 - 1,ALDI 15 774,5411,Catering costs - provisions,7.25,,7.25
Children and Young Peoples Services,Head of Childrens Social Care,085342,9 Cedar Drive Aycliffe,Supplies and Services,304403,Equipment and Materials,11-Mar-2019,000006243171468,NUMATIC INTERNATIONAL,5065,Other consumables,39.98,0.00,39.98
Children and Young Peoples Services,Childrens Services Operational Support,052986,CYPS - Locality and Operational Support,Supplies and Services,304259,Equipment and Materials,11-Mar-2019,000006243171914,WWW.DURHAM.GOV.UK,9399,Equipment-purchase and rental,75.00,0.00,75.00
Children and Young Peoples Services,Head of Education and Skills,071801,Selby Cottage Childcare Centre,Supplies and Services,324117,Provisions E324,12-Mar-2019,000006243170720,TESCO STORES 2278,5411,Catering costs - provisions,7.50,0.00,7.50
Children and Young Peoples Services,Head of Education and Skills,071801,Selby Cottage Childcare Centre,Supplies and Services,324117,Provisions E324,12-Mar-2019,000006243170724,TESCO STORES 2278,5411,Catering costs - provisions,13.04,0.00,13.04
Children and Young Peoples Services,Head of Education and Skills,054640,Durham Learning Resources,Supplies and Services,312011,Newspapers books and periodicals E312,12-Mar-2019,000006243170728,AMZN Mktp UK MW6EL5VA4,5942,Books-school library,1.64,0.00,1.64
Children and Young Peoples Services,Head of Education and Skills,054640,Durham Learning Resources,Supplies and Services,312011,Newspapers books and periodicals E312,12-Mar-2019,000006243170732,AMZN Mktp UK MW6G50M64,5942,Books-school library,11.80,0.00,11.80
Children and Young Peoples Services,Head of Education and Skills,054640,Durham Learning Resources,Supplies and Services,312011,Newspapers books and periodicals E312,12-Mar-2019,000006243170736,AMZN Mktp UK MW15X9BK4,5942,Books-school library,55.97,0.00,55.97
Children and Young Peoples Services,Head of Education and Skills,078411,16-19 Education & Training,Supplies and Services,304259,Equipment and Materials,12-Mar-2019,000006243170764,GATESHEAD COUNCIL MOTO,9399,Equipment-purchase and rental,11.00,0.00,11.00
Children and Young Peoples Services,Head of Education and Skills,078411,16-19 Education & Training,Supplies and Services,304259,Equipment and Materials,12-Mar-2019,000006243170766,HARTLEPOOL BC CNP,9399,Equipment-purchase and rental,11.00,0.00,11.00
Children and Young Peoples Services,Head of Education and Skills,078411,16-19 Education & Training,Supplies and Services,304259,Equipment and Materials,12-Mar-2019,000006243170768,WWW.DURHAM.GOV.UK,9399,Equipment-purchase and rental,11.00,0.00,11.00
Children and Young Peoples Services,Head of Childrens Social Care,085621,Families First Aycliffe,Supplies and Services,304259,Equipment and Materials,12-Mar-2019,000006243170780,HM PASSPORT OFFICE,9399,Equipment-purchase and rental,54.00,0.00,54.00
Children and Young Peoples Services,Head of Childrens Social Care,085621,Families First Aycliffe,Supplies and Services,304259,Equipment and Materials,12-Mar-2019,000006243170784,HM PASSPORT OFFICE,9399,Equipment-purchase and rental,54.00,0.00,54.00
Children and Young Peoples Services,Head of Childrens Social Care,085621,Families First Aycliffe,Supplies and Services,304259,Equipment and Materials,12-Mar-2019,000006243170788,HM PASSPORT,9399,Equipment-purchase and rental,127.00,0.00,127.00
Children and Young Peoples Services,Head of Childrens Social Care,085621,Families First Aycliffe,Supplies and Services,312011,Newspapers books and periodicals E312,12-Mar-2019,000006243170792,Amazon.co.uk MW2NT05I4,5969,Books-school library,14.98,0.00,14.98
Children and Young Peoples Services,Head of Childrens Social Care,085332,Middlestone Moor CU,Supplies and Services,324117,Provisions E324,12-Mar-2019,000006243170798,ICELAND,5411,Catering costs - provisions,17.50,0.00,17.50
Children and Young Peoples Services,Head of Childrens Social Care,085332,Middlestone Moor CU,Supplies and Services,312011,Newspapers books and periodicals E312,12-Mar-2019,000006243170802,HOME BARGAINS SPENNYMO,5251,Books-school library,52.03,0.00,52.03
Children and Young Peoples Services,Head of Childrens Social Care,085332,Middlestone Moor CU,Supplies and Services,324117,Provisions E324,12-Mar-2019,000006243170806,TESCO STORES 2371,5411,Catering costs - provisions,215.46,0.00,215.46
Children and Young Peoples Services,"Head of Early Help, Inclusion and Vulnerable Children",071440,Barnard Castle One Point Hub,Supplies and Services,312011,Newspapers books and periodicals E312,12-Mar-2019,000006243170892,AMZN Mktp UK MW9W295G4,5942,Books-school library,6.79,1.13,5.66
Children and Young Peoples Services,"Head of Early Help, Inclusion and Vulnerable Children",071440,Barnard Castle One Point Hub,Supplies and Services,312011,Newspapers books and periodicals E312,12-Mar-2019,000006243170894,Amazon.co.uk MW8LF5504,5969,Books-school library,23.99,4.00,19.99
Children and Young Peoples Services,"Head of Early Help, Inclusion and Vulnerable Children",071440,Barnard Castle One Point Hub,Supplies and Services,324117,Provisions E324,12-Mar-2019,000006243170896,BESTWAY WHOLESALE,5451,Catering costs - provisions,122.67,0.00,122.67
Children and Young Peoples Services,"Head of Early Help, Inclusion and Vulnerable Children",071440,Barnard Castle One Point Hub,Supplies and Services,312011,Newspapers books and periodicals E312,12-Mar-2019,000006243170904,Amazon.co.uk MW9O12HK4,5969,Books-school library,107.10,17.85,89.25
Children and Young Peoples Services,"Head of Early Help, Inclusion and Vulnerable Children",071440,Barnard Castle One Point Hub,Supplies and Services,328041,Clothing uniforms and laundry E328,12-Mar-2019,000006243170906,WWW.ARGOS.CO.UK,5310,Clothing uniforms and laundry,202.95,0.00,202.95
Children and Young Peoples Services,"Head of Early Help, Inclusion and Vulnerable Children",071440,Barnard Castle One Point Hub,Supplies and Services,328041,Clothing uniforms and laundry E328,12-Mar-2019,000006243170910,WWW.ARGOS.CO.UK,5310,Clothing uniforms and laundry,176.95,0.00,176.95
Children and Young Peoples Services,Childrens Services Operational Support,052986,CYPS - Locality and Operational Support,Supplies and Services,304259,Equipment and Materials,12-Mar-2019,000006243171038,DARLINGTON BC INTERNET,9399,Equipment-purchase and rental,11.00,0.00,11.00
Children and Young Peoples Services,Head of Childrens Social Care,085334,West Rainton Satelite Home,Supplies and Services,324117,Provisions E324,12-Mar-2019,000006243171092,TESCO STORES 2371,5411,Catering costs - provisions,41.09,0.00,41.09
Children and Young Peoples Services,Head of Childrens Social Care,085334,West Rainton Satelite Home,Supplies and Services,324117,Provisions E324,12-Mar-2019,000006243171094,TESCO STORES 2371,5411,Catering costs - provisions,4.00,0.00,4.00
Children and Young Peoples Services,Childrens Services Operational Support,052986,CYPS - Locality and Operational Support,Supplies and Services,324117,Provisions E324,12-Mar-2019,000006243171106,ASDA STORES,5411,Catering costs - provisions,82.62,0.00,82.62
Children and Young Peoples Services,Head of Education and Skills,071732,Dean Bank Childcare,Supplies and Services,312011,Newspapers books and periodicals E312,12-Mar-2019,000006243171130,AMZN Mktp UK MW29Y7H54,5942,Books-school library,33.58,0.00,33.58
Children and Young Peoples Services,Head of Education and Skills,071732,Dean Bank Childcare,Supplies and Services,328041,Clothing uniforms and laundry E328,12-Mar-2019,000006243171136,B & M RETAIL,5310,Clothing uniforms and laundry,49.27,0.00,49.27
Children and Young Peoples Services,Head of Education and Skills,071732,Dean Bank Childcare,Supplies and Services,324117,Provisions E324,12-Mar-2019,000006243171140,CO-OP GROUP 010518,5411,Catering costs - provisions,12.40,0.00,12.40
Children and Young Peoples Services,Head of Childrens Social Care,085334,West Rainton Satelite Home,Supplies and Services,304221,Equipment and Materials,12-Mar-2019,000006243171166,B & Q 1343,5211,Direct materials,65.35,0.00,65.35
Children and Young Peoples Services,"Head of Early Help, Inclusion and Vulnerable Children",085957,Secure Management,Supplies and Services,312011,Newspapers books and periodicals E312,12-Mar-2019,000006243171236,AMZN Mktp UK MW6KO5544,5942,Books-school library,9.99,0.00,9.99
Children and Young Peoples Services,"Head of Early Help, Inclusion and Vulnerable Children",085957,Secure Management,Supplies and Services,312011,Newspapers books and periodicals E312,12-Mar-2019,000006243171240,AMZN Mktp UK MW90O0524,5942,Books-school library,28.95,4.83,24.12
Children and Young Peoples Services,"Head of Early Help, Inclusion and Vulnerable Children",085957,Secure Management,Supplies and Services,312011,Newspapers books and periodicals E312,12-Mar-2019,000006243171244,AMZN MKTP UK MW2XV85N4,5942,Books-school library,20.00,0.00,20.00
Children and Young Peoples Services,"Head of Early Help, Inclusion and Vulnerable Children",085957,Secure Management,Supplies and Services,328041,Clothing uniforms and laundry E328,12-Mar-2019,000006243171246,FOOTASYLUM PLC,5691,Clothing uniforms and laundry,119.98,0.00,119.98
Children and Young Peoples Services,"Head of Early Help, Inclusion and Vulnerable Children",085957,Secure Management,Supplies and Services,328041,Clothing uniforms and laundry E328,12-Mar-2019,000006243171250,FOOTASYLUM PLC,5691,Clothing uniforms and laundry,142.98,0.00,142.98
Children and Young Peoples Services,"Head of Early Help, Inclusion and Vulnerable Children",085957,Secure Management,Supplies and Services,312011,Newspapers books and periodicals E312,12-Mar-2019,000006243171254,AMZN Mktp UK MW0UA25A4,5942,Books-school library,10.68,0.00,10.68
Children and Young Peoples Services,"Head of Early Help, Inclusion and Vulnerable Children",085957,Secure Management,Supplies and Services,312011,Newspapers books and periodicals E312,12-Mar-2019,000006243171256,Amazon.co.uk MW4OW6HV4,5969,Books-school library,7.81,0.00,7.81
Children and Young Peoples Services,"Head of Early Help, Inclusion and Vulnerable Children",085957,Secure Management,Supplies and Services,342033,Computers and Communications,12-Mar-2019,000006243171260,VERY,5964,Computer hardware,-50.00,0.00,-50.00
Children and Young Peoples Services,Head of Childrens Social Care,085352,Tow Law CU,Supplies and Services,328041,Clothing uniforms and laundry E328,12-Mar-2019,000006243171490,WWW.ARGOS.CO.UK,5310,Clothing uniforms and laundry,182.94,0.00,182.94
Children and Young Peoples Services,Head of Childrens Social Care,085352,Tow Law CU,Supplies and Services,324117,Provisions E324,12-Mar-2019,000006243171494,TESCO STORES 2371,5411,Catering costs - provisions,161.92,0.00,161.92
Children and Young Peoples Services,"Head of Early Help, Inclusion and Vulnerable Children",074000,TTF-Attachment and Results,Supplies and Services,324117,Provisions E324,12-Mar-2019,000006243171636,ASDA GEORGE COM LEEDS,5411,Catering costs - provisions,152.94,0.00,152.94
Children and Young Peoples Services,"Head of Early Help, Inclusion and Vulnerable Children",074000,TTF-Attachment and Results,Supplies and Services,324117,Provisions E324,12-Mar-2019,000006243171640,ASDA GEORGE COM LEEDS,5411,Catering costs - provisions,57.95,0.00,57.95
Children and Young Peoples Services,Head of Childrens Social Care,085380,Operations Manager Adoption & Fostering,Supplies and Services,324117,Provisions E324,12-Mar-2019,000006243171786,ASDA STORES,5411,Catering costs - provisions,13.40,2.23,11.17
Transformation and Partnerships,Partnerships & Community Engagement Div.,060472,Syrian Vulnerable Persons Scheme,Supplies and Services,312011,Newspapers books and periodicals E312,12-Mar-2019,000006243171876,HOME BARGAINS,5251,Books-school library,9.90,1.65,8.25
Children and Young Peoples Services,Childrens Services Operational Support,052986,CYPS - Locality and Operational Support,Supplies and Services,304259,Equipment and Materials,12-Mar-2019,000006243171918,WWW.DURHAM.GOV.UK,9399,Equipment-purchase and rental,75.00,0.00,75.00
Children and Young Peoples Services,Head of Childrens Social Care,071448,Newton Aycliffe One Point Hub,Supplies and Services,324117,Provisions E324,12-Mar-2019,000006253838348,BATLEYS PERTH,5300,Catering costs - provisions,11.62,0.00,11.62
Children and Young Peoples Services,Head of Education and Skills,071732,Dean Bank Childcare,Supplies and Services,312011,Newspapers books and periodicals E312,13-Mar-2019,000006243171134,AMZN Mktp UK MW5I43H84,5942,Books-school library,4.49,0.00,4.49
Children and Young Peoples Services,Head of Education and Skills,071801,Selby Cottage Childcare Centre,Supplies and Services,324117,Provisions E324,13-Mar-2019,000006248425238,TESCO STORES 2278,5411,Catering costs - provisions,22.04,0.00,22.04
Children and Young Peoples Services,Head of Childrens Social Care,085342,9 Cedar Drive Aycliffe,Supplies and Services,328041,Clothing uniforms and laundry E328,13-Mar-2019,000006248425272,NEW LOOK 1996,5621,Clothing uniforms and laundry,32.48,0.00,32.48
Children and Young Peoples Services,Head of Childrens Social Care,085342,9 Cedar Drive Aycliffe,Supplies and Services,324117,Provisions E324,13-Mar-2019,000006248425276,TESCO STORES 2916,5411,Catering costs - provisions,2.50,0.00,2.50
Children and Young Peoples Services,Head of Childrens Social Care,085332,Middlestone Moor CU,Supplies and Services,324117,Provisions E324,13-Mar-2019,000006248425280,TESCO STORES 2916,5411,Catering costs - provisions,18.00,0.00,18.00
Children and Young Peoples Services,"Head of Early Help, Inclusion and Vulnerable Children",071440,Barnard Castle One Point Hub,Supplies and Services,312011,Newspapers books and periodicals E312,13-Mar-2019,000006248425352,AMZN Mktp UK MW3BO4BX4,5942,Books-school library,3.40,0.00,3.40
Children and Young Peoples Services,Head of Childrens Social Care,085380,Operations Manager Adoption & Fostering,Supplies and Services,304259,Equipment and Materials,13-Mar-2019,000006248425378,GEN REGISTER OFFICE,9399,Equipment-purchase and rental,14.00,0.00,14.00
Children and Young Peoples Services,Childrens Services Operational Support,052986,CYPS - Locality and Operational Support,Supplies and Services,324117,Provisions E324,13-Mar-2019,000006248425466,ASDA STORES,5411,Catering costs - provisions,42.00,0.00,42.00
Children and Young Peoples Services,"Head of Early Help, Inclusion and Vulnerable Children",085957,Secure Management,Supplies and Services,312011,Newspapers books and periodicals E312,13-Mar-2019,000006248425550,AMZN MKTP UK MW2QM3HN4,5942,Books-school library,4.95,0.83,4.12
Children and Young Peoples Services,"Head of Early Help, Inclusion and Vulnerable Children",085957,Secure Management,Supplies and Services,312011,Newspapers books and periodicals E312,13-Mar-2019,000006248425554,AMZN Mktp UK MW6HZ8BA4,5942,Books-school library,18.36,3.06,15.30
Children and Young Peoples Services,"Head of Early Help, Inclusion and Vulnerable Children",085957,Secure Management,Supplies and Services,312011,Newspapers books and periodicals E312,13-Mar-2019,000006248425554 - 1,AMZN Mktp UK MW6HZ8BA4,5942,Books-school library,22.00,,22.00
Children and Young Peoples Services,"Head of Early Help, Inclusion and Vulnerable Children",085957,Secure Management,Supplies and Services,324117,Provisions E324,13-Mar-2019,000006248425558,TESCO STORES 6329,5411,Catering costs - provisions,85.94,0.00,85.94
Children and Young Peoples Services,"Head of Early Help, Inclusion and Vulnerable Children",071443,Stanley One Point Hub,Supplies and Services,312011,Newspapers books and periodicals E312,13-Mar-2019,000006248425628,AMZN Mktp UK MW8OT8844,5942,Books-school library,13.99,0.00,13.99
Children and Young Peoples Services,"Head of Early Help, Inclusion and Vulnerable Children",071443,Stanley One Point Hub,Supplies and Services,324117,Provisions E324,13-Mar-2019,000006248425630,ASDA GEORGE COM LEEDS,5411,Catering costs - provisions,112.95,0.00,112.95
Children and Young Peoples Services,Childrens Services Operational Support,052986,CYPS - Locality and Operational Support,Supplies and Services,312011,Newspapers books and periodicals E312,13-Mar-2019,000006248425688,AMZN MKTP UK MW1S81HH4,5942,Books-school library,27.10,0.00,27.10
Children and Young Peoples Services,Childrens Services Operational Support,052986,CYPS - Locality and Operational Support,Supplies and Services,312011,Newspapers books and periodicals E312,13-Mar-2019,000006248425692,AMZN MKTP UK MW1YX6HJ4,5942,Books-school library,10.74,0.00,10.74
Children and Young Peoples Services,Head of Childrens Social Care,085342,9 Cedar Drive Aycliffe,Supplies and Services,324117,Provisions E324,13-Mar-2019,000006248425702,TESCO STORES 2916,5411,Catering costs - provisions,28.61,0.00,28.61
Children and Young Peoples Services,Childrens Services Operational Support,052986,CYPS - Locality and Operational Support,Supplies and Services,308011,Furniture,13-Mar-2019,000006248425730,FRANKS THE FLOORING ST,5713,Furniture repair and replacement,350.00,0.00,350.00
Children and Young Peoples Services,Head of Childrens Social Care,085380,Operations Manager Adoption & Fostering,Supplies and Services,324117,Provisions E324,13-Mar-2019,000006248425804,ASDA STORES,5411,Catering costs - provisions,19.25,3.21,16.04
Children and Young Peoples Services,Head of Childrens Social Care,085363,LAC & Permanence Team 3,Supplies and Services,312011,Newspapers books and periodicals E312,13-Mar-2019,000006248425880,AMZN MKTP UK MW6VC2H64,5942,Books-school library,70.62,0.00,70.62
Children and Young Peoples Services,Head of Childrens Social Care,085342,9 Cedar Drive Aycliffe,Supplies and Services,328041,Clothing uniforms and laundry E328,13-Mar-2019,000006253837752,H & M,5691,Clothing uniforms and laundry,18.98,0.00,18.98
Children and Young Peoples Services,Head of Childrens Social Care,085342,9 Cedar Drive Aycliffe,Supplies and Services,348037,Subsistence E348,13-Mar-2019,000006253837758,PIZZA EXPRESS,5812,Subsistence,29.42,0.00,29.42
Children and Young Peoples Services,Head of Childrens Social Care,085342,9 Cedar Drive Aycliffe,Supplies and Services,304259,Equipment and Materials,13-Mar-2019,000006253837764,J D SPORTS 152,5941,Equipment-purchase and rental,55.00,0.00,55.00
Children and Young Peoples Services,Head of Childrens Social Care,085332,Middlestone Moor CU,Supplies and Services,304259,Equipment and Materials,13-Mar-2019,000006253837778,WILKO RETAIL LIMIT,5722,Equipment-purchase and rental,4.50,0.00,4.50
Children and Young Peoples Services,Childrens Services Operational Support,052986,CYPS - Locality and Operational Support,Supplies and Services,328041,Clothing uniforms and laundry E328,13-Mar-2019,000006253837884,B&M RETAIL,5310,Clothing uniforms and laundry,7.95,0.00,7.95
Children and Young Peoples Services,Childrens Services Operational Support,052986,CYPS - Locality and Operational Support,Supplies and Services,328041,Clothing uniforms and laundry E328,13-Mar-2019,000006253837886,POUNDLAND,5310,Clothing uniforms and laundry,4.00,0.00,4.00
Children and Young Peoples Services,Childrens Services Operational Support,052986,CYPS - Locality and Operational Support,Supplies and Services,304403,Equipment and Materials,13-Mar-2019,000006253837892,GIFT CARD,5947,Other consumables,25.00,0.00,25.00
Children and Young Peoples Services,Childrens Services Operational Support,052986,CYPS - Locality and Operational Support,Supplies and Services,304403,Equipment and Materials,13-Mar-2019,000006253837896,GIFT CARD,5947,Other consumables,175.00,0.00,175.00
Children and Young Peoples Services,"Head of Early Help, Inclusion and Vulnerable Children",071440,Barnard Castle One Point Hub,Employees,040149,Recruitment Instruction and Training,13-Mar-2019,000006253837934,NSPCC SHOPIFY,8398,Training-all costs,60.00,0.00,60.00
Children and Young Peoples Services,"Head of Early Help, Inclusion and Vulnerable Children",071440,Barnard Castle One Point Hub,Supplies and Services,304259,Equipment and Materials,13-Mar-2019,000006253837940,WWW.DURHAM.GOV.UK,9399,Equipment-purchase and rental,23.50,0.00,23.50
Children and Young Peoples Services,Childrens Services Operational Support,052986,CYPS - Locality and Operational Support,Supplies and Services,324117,Provisions E324,13-Mar-2019,000006253838238,WM MORRISONS STORE,5411,Catering costs - provisions,19.30,0.00,19.30
Children and Young Peoples Services,Head of Childrens Social Care,085334,West Rainton Satelite Home,Supplies and Services,304221,Equipment and Materials,13-Mar-2019,000006253838272,B & Q 1343,5211,Direct materials,41.92,0.00,41.92
Children and Young Peoples Services,"Head of Early Help, Inclusion and Vulnerable Children",085957,Secure Management,Supplies and Services,304259,Equipment and Materials,13-Mar-2019,000006253838362,JD SPORTS INTERNET,5941,Equipment-purchase and rental,161.00,0.00,161.00
Children and Young Peoples Services,"Head of Early Help, Inclusion and Vulnerable Children",085957,Secure Management,Supplies and Services,328041,Clothing uniforms and laundry E328,13-Mar-2019,000006253838370,WWW.FOOTLOCKER.EU,5661,Clothing uniforms and laundry,34.99,0.00,34.99
Children and Young Peoples Services,Head of Childrens Social Care,085352,Tow Law CU,Supplies and Services,324117,Provisions E324,13-Mar-2019,000006253838770,CO-OP GROUP 010989,5411,Catering costs - provisions,48.97,0.00,48.97
Adult and Health Services,Head of Adults,055309,Peterlee Pathways,Supplies and Services,328041,Clothing uniforms and laundry E328,13-Mar-2019,000006253839228,ARGOS LTD,5310,Clothing uniforms and laundry,113.96,0.00,113.96
Transformation and Partnerships,Partnerships & Community Engagement Div.,060472,Syrian Vulnerable Persons Scheme,Supplies and Services,304259,Equipment and Materials,13-Mar-2019,000006253839302,WILKO DURHAM 426,5722,Equipment-purchase and rental,157.75,26.29,131.46
Children and Young Peoples Services,"Head of Early Help, Inclusion and Vulnerable Children",085957,Secure Management,Supplies and Services,304259,Equipment and Materials,13-Mar-2019,000006260543214,SPORTSDIRECT.COM,5941,Equipment-purchase and rental,26.98,0.00,26.98
Children and Young Peoples Services,"Head of Early Help, Inclusion and Vulnerable Children",071440,Barnard Castle One Point Hub,Supplies and Services,312011,Newspapers books and periodicals E312,14-Mar-2019,000006248425356,AMZN Mktp UK MW1O008F4,5942,Books-school library,17.99,0.00,17.99
Children and Young Peoples Services,Head of Education and Skills,071801,Selby Cottage Childcare Centre,Supplies and Services,324117,Provisions E324,14-Mar-2019,000006253837632,TESCO STORES 2278,5411,Catering costs - provisions,5.59,0.00,5.59
Children and Young Peoples Services,Head of Childrens Social Care,085357,Bespoke Placements,Supplies and Services,352001,Conference Expenses,14-Mar-2019,000006253837702,WWW.PLAWSWORTHAPARTHOT,7011,Conferencesseminars fees etc,252.00,42.00,210.00
Children and Young Peoples Services,Head of Childrens Social Care,085332,Middlestone Moor CU,Supplies and Services,304999,Equipment and Materials,14-Mar-2019,000006253837788,www.groupon.co.uk,7278,Misc equipment tools and materials,14.99,0.00,14.99
Children and Young Peoples Services,Head of Childrens Social Care,085352,Tow Law CU,Supplies and Services,328041,Clothing uniforms and laundry E328,14-Mar-2019,000006253837904,T K MAXX,5331,Clothing uniforms and laundry,29.99,0.00,29.99
Children and Young Peoples Services,"Head of Early Help, Inclusion and Vulnerable Children",071440,Barnard Castle One Point Hub,Supplies and Services,312011,Newspapers books and periodicals E312,14-Mar-2019,000006253837924,AMZN Mktp UK MW2JO1B14,5942,Books-school library,29.99,5.00,24.99
Children and Young Peoples Services,"Head of Early Help, Inclusion and Vulnerable Children",071440,Barnard Castle One Point Hub,Supplies and Services,312011,Newspapers books and periodicals E312,14-Mar-2019,000006253837950,AMZN Mktp UK MW0PT78C4,5942,Books-school library,9.43,0.00,9.43
Children and Young Peoples Services,"Head of Early Help, Inclusion and Vulnerable Children",071440,Barnard Castle One Point Hub,Supplies and Services,312011,Newspapers books and periodicals E312,14-Mar-2019,000006253837956,AMZN Mktp UK MW05A98H4,5942,Books-school library,35.40,5.90,29.50
Children and Young Peoples Services,"Head of Early Help, Inclusion and Vulnerable Children",071440,Barnard Castle One Point Hub,Supplies and Services,312011,Newspapers books and periodicals E312,14-Mar-2019,000006253837956 - 1,AMZN Mktp UK MW05A98H4,5942,Books-school library,75.95,,75.95
Children and Young Peoples Services,"Head of Early Help, Inclusion and Vulnerable Children",071440,Barnard Castle One Point Hub,Supplies and Services,312011,Newspapers books and periodicals E312,14-Mar-2019,000006253837966,AMZN Mktp UK MW1BV7884,5942,Books-school library,10.99,0.00,10.99
Children and Young Peoples Services,"Head of Early Help, Inclusion and Vulnerable Children",071440,Barnard Castle One Point Hub,Supplies and Services,312011,Newspapers books and periodicals E312,14-Mar-2019,000006253837970,Amazon.co.uk MW2GM28H4,5969,Books-school library,25.37,4.23,21.14
Children and Young Peoples Services,"Head of Early Help, Inclusion and Vulnerable Children",071449,Ferryhill One Point Hub,Supplies and Services,308011,Furniture,14-Mar-2019,000006253838020,FRANKS THE FLOORING ST,5713,Furniture repair and replacement,232.00,0.00,232.00
Children and Young Peoples Services,Childrens Services Operational Support,052986,CYPS - Locality and Operational Support,Supplies and Services,304259,Equipment and Materials,14-Mar-2019,000006253838174,HM PASSPORT OFFICE,9399,Equipment-purchase and rental,49.00,0.00,49.00
Children and Young Peoples Services,Head of Education and Skills,071732,Dean Bank Childcare,Supplies and Services,324117,Provisions E324,14-Mar-2019,000006253838256,SAINSBURYS SACAT (2303,5411,Catering costs - provisions,39.30,0.00,39.30
Children and Young Peoples Services,Head of Education and Skills,071903,EYDCP-Sustainability EDS,Supplies and Services,312011,Newspapers books and periodicals E312,14-Mar-2019,000006253838308,Amazon.co.uk MW48N78B4,5969,Books-school library,42.50,0.00,42.50
Children and Young Peoples Services,"Head of Early Help, Inclusion and Vulnerable Children",085957,Secure Management,Supplies and Services,312011,Newspapers books and periodicals E312,14-Mar-2019,000006253838378,AMZN Mktp UK MW0K21814,5942,Books-school library,28.42,4.74,23.68
Children and Young Peoples Services,"Head of Early Help, Inclusion and Vulnerable Children",085957,Secure Management,Supplies and Services,312011,Newspapers books and periodicals E312,14-Mar-2019,000006253838384,AMZN Mktp UK MW28A98O4,5942,Books-school library,23.98,4.00,19.98
Children and Young Peoples Services,"Head of Early Help, Inclusion and Vulnerable Children",085957,Secure Management,Supplies and Services,328041,Clothing uniforms and laundry E328,14-Mar-2019,000006253838390,WWW.NIKESTORE.COM,5691,Clothing uniforms and laundry,55.47,9.25,46.22
Children and Young Peoples Services,"Head of Early Help, Inclusion and Vulnerable Children",085957,Secure Management,Supplies and Services,324117,Provisions E324,14-Mar-2019,000006253838394,TESCO STORES 6329,5411,Catering costs - provisions,63.72,0.00,63.72
Children and Young Peoples Services,Childrens Services Operational Support,052986,CYPS - Locality and Operational Support,Supplies and Services,304259,Equipment and Materials,14-Mar-2019,000006253838408,SUNDERLAND CC,9399,Equipment-purchase and rental,11.00,0.00,11.00
Children and Young Peoples Services,"Head of Early Help, Inclusion and Vulnerable Children",071443,Stanley One Point Hub,Supplies and Services,312011,Newspapers books and periodicals E312,14-Mar-2019,000006253838630,AMZN Mktp UK MW2NN78I4,5942,Books-school library,53.21,0.00,53.21
Children and Young Peoples Services,"Head of Early Help, Inclusion and Vulnerable Children",071443,Stanley One Point Hub,Supplies and Services,312011,Newspapers books and periodicals E312,14-Mar-2019,000006253838638,AMZN Mktp UK MW5Z48QV4,5942,Books-school library,151.61,0.00,151.61
Children and Young Peoples Services,"Head of Early Help, Inclusion and Vulnerable Children",071443,Stanley One Point Hub,Supplies and Services,312011,Newspapers books and periodicals E312,14-Mar-2019,000006253838648,AMZN Mktp UK MW7GS4834,5942,Books-school library,80.84,0.00,80.84
Children and Young Peoples Services,"Head of Early Help, Inclusion and Vulnerable Children",071443,Stanley One Point Hub,Supplies and Services,324117,Provisions E324,14-Mar-2019,000006253838654,ASDA GEORGE COM LEEDS,5411,Catering costs - provisions,327.95,0.00,327.95
Children and Young Peoples Services,Head of Childrens Social Care,085342,9 Cedar Drive Aycliffe,Supplies and Services,312011,Newspapers books and periodicals E312,14-Mar-2019,000006253838738,AMZN Mktp UK MW8RO08N4,5942,Books-school library,7.99,0.00,7.99
Children and Young Peoples Services,Head of Childrens Social Care,085342,9 Cedar Drive Aycliffe,Supplies and Services,312011,Newspapers books and periodicals E312,14-Mar-2019,000006253838748,AMZN Mktp UK MW2IE88P4,5942,Books-school library,3.25,0.00,3.25
Children and Young Peoples Services,Childrens Services Operational Support,052986,CYPS - Locality and Operational Support,Supplies and Services,312011,Newspapers books and periodicals E312,14-Mar-2019,000006253838886,AMZN MKTP UK MW3PX68X4,5942,Books-school library,35.29,0.00,35.29
Children and Young Peoples Services,"Head of Early Help, Inclusion and Vulnerable Children",074000,TTF-Attachment and Results,Supplies and Services,308011,Furniture,14-Mar-2019,000006253838916,MAGUIRES,5713,Furniture repair and replacement,150.00,0.00,150.00
Children and Young Peoples Services,"Head of Early Help, Inclusion and Vulnerable Children",074000,TTF-Attachment and Results,Supplies and Services,308011,Furniture,14-Mar-2019,000006253838928,J DODDS CARPETS LTD,5713,Furniture repair and replacement,150.00,25.00,125.00
Transformation and Partnerships,Partnerships & Community Engagement Div.,060472,Syrian Vulnerable Persons Scheme,Supplies and Services,328041,Clothing uniforms and laundry E328,14-Mar-2019,000006253839306,SP TERRYS FABRICS,5691,Clothing uniforms and laundry,223.92,0.00,223.92
Transformation and Partnerships,Partnerships & Community Engagement Div.,060472,Syrian Vulnerable Persons Scheme,Supplies and Services,308011,Furniture,14-Mar-2019,000006253839308,www.247blinds.co.uk,5714,Furniture repair and replacement,299.47,49.91,249.56
Children and Young Peoples Services,Head of Education and Skills,071801,Selby Cottage Childcare Centre,Supplies and Services,328041,Clothing uniforms and laundry E328,14-Mar-2019,000006260542474,THE RANGE,5311,Clothing uniforms and laundry,75.95,0.00,75.95
Children and Young Peoples Services,Head of Education and Skills,071801,Selby Cottage Childcare Centre,Supplies and Services,308011,Furniture,14-Mar-2019,000006260542480,IKEA LIMITED,5712,Furniture repair and replacement,275.60,0.00,275.60
Children and Young Peoples Services,Head of Education and Skills,071801,Selby Cottage Childcare Centre,Supplies and Services,308011,Furniture,14-Mar-2019,000006260542484,IKEA LIMITED,5712,Furniture repair and replacement,500.00,0.00,500.00
Children and Young Peoples Services,Head of Childrens Social Care,085332,Middlestone Moor CU,Supplies and Services,324117,Provisions E324,14-Mar-2019,000006260542602,ALDI 59 774,5411,Catering costs - provisions,34.05,0.00,34.05
Children and Young Peoples Services,Head of Childrens Social Care,085352,Tow Law CU,Supplies and Services,328041,Clothing uniforms and laundry E328,14-Mar-2019,000006260542698,THE RANGE,5311,Clothing uniforms and laundry,15.98,0.00,15.98
Children and Young Peoples Services,Head of Childrens Social Care,085352,Tow Law CU,Supplies and Services,348037,Subsistence E348,14-Mar-2019,000006260542704,MCDONALDS,5812,Subsistence,4.17,0.00,4.17
Children and Young Peoples Services,Head of Childrens Social Care,085334,West Rainton Satelite Home,Supplies and Services,304221,Equipment and Materials,14-Mar-2019,000006260543100,B & Q 1343,5211,Direct materials,22.07,0.00,22.07
Children and Young Peoples Services,"Head of Early Help, Inclusion and Vulnerable Children",085957,Secure Management,Supplies and Services,328041,Clothing uniforms and laundry E328,14-Mar-2019,000006260543206,WWW.THEWORKS.CO.UK,5310,Clothing uniforms and laundry,14.99,0.00,14.99
Children and Young Peoples Services,Head of Childrens Social Care,085342,9 Cedar Drive Aycliffe,Premises,145009,Cleaning and Domestic Supplies,14-Mar-2019,000006260543816,MALCOLMS CLEANING,7349,Other cleaning and domestic costs,25.00,0.00,25.00
Children and Young Peoples Services,Childrens Services Operational Support,052986,CYPS - Locality and Operational Support,Supplies and Services,328041,Clothing uniforms and laundry E328,14-Mar-2019,000006260543850,WWW.ARGOS.CO.UK,5310,Clothing uniforms and laundry,329.98,0.00,329.98
Children and Young Peoples Services,Childrens Services Operational Support,052986,CYPS - Locality and Operational Support,Supplies and Services,328041,Clothing uniforms and laundry E328,14-Mar-2019,000006260543856,WWW.ARGOS.CO.UK,5310,Clothing uniforms and laundry,169.99,0.00,169.99
Children and Young Peoples Services,Childrens Services Operational Support,052986,CYPS - Locality and Operational Support,Supplies and Services,328041,Clothing uniforms and laundry E328,14-Mar-2019,000006260543864,WWW.ARGOS.CO.UK,5310,Clothing uniforms and laundry,45.94,0.00,45.94
Children and Young Peoples Services,Head of Education and Skills,071801,Selby Cottage Childcare Centre,Supplies and Services,324117,Provisions E324,15-Mar-2019,000006260542490,ASDA GROCERIES ONLINE,5411,Catering costs - provisions,5.00,0.00,5.00
Children and Young Peoples Services,Head of Education and Skills,071801,Selby Cottage Childcare Centre,Supplies and Services,304259,Equipment and Materials,15-Mar-2019,000006260542494,WILKO RETAIL LIMIT,5722,Equipment-purchase and rental,12.25,0.00,12.25
Children and Young Peoples Services,Head of Childrens Social Care,085357,Bespoke Placements,Supplies and Services,352001,Conference Expenses,15-Mar-2019,000006260542560,HOTEL 52,7011,Conferencesseminars fees etc,"1,135.82",0.00,1135.82
Children and Young Peoples Services,Head of Childrens Social Care,085357,Bespoke Placements,Transport,235057,Public Transport,15-Mar-2019,000006260542564,HOLIDAY PAYMENT VRUK,4722,Staff travelling,253.00,0.00,253.00
Children and Young Peoples Services,Head of Education and Skills,078411,16-19 Education & Training,Supplies and Services,384237,Miscellaneous Expenses,15-Mar-2019,000006260542568,COVENTRY CITY COUNCIL,7999,Recreational exps outings parties,12.50,0.00,12.50
Children and Young Peoples Services,Head of Education and Skills,078411,16-19 Education & Training,Supplies and Services,324117,Provisions E324,15-Mar-2019,000006260542574,ASDA GEORGE COM LEEDS,5411,Catering costs - provisions,43.00,0.00,43.00
Adult and Health Services,Head of Adults,055302,Durham Pathways,Supplies and Services,312011,Newspapers books and periodicals E312,15-Mar-2019,000006260542594,AMZN Mktp UK MW3EF0QF4,5942,Books-school library,3.28,0.55,2.73
Children and Young Peoples Services,Head of Childrens Social Care,085371,Young People Services - South,Supplies and Services,304259,Equipment and Materials,15-Mar-2019,000006260542790,HM PASSPORT,9399,Equipment-purchase and rental,147.00,0.00,147.00
Children and Young Peoples Services,Childrens Services Operational Support,052986,CYPS - Locality and Operational Support,Supplies and Services,304259,Equipment and Materials,15-Mar-2019,000006260542844,GEN REGISTER OFFICE,9399,Equipment-purchase and rental,14.00,0.00,14.00
Children and Young Peoples Services,Childrens Services Operational Support,052986,CYPS - Locality and Operational Support,Supplies and Services,384999,Miscellaneous Expenses,15-Mar-2019,000006260542848,WWW.HOBBYCRAFT.CO.UK,5970,Other expenses,20.00,0.00,20.00
Children and Young Peoples Services,Childrens Services Operational Support,052986,CYPS - Locality and Operational Support,Supplies and Services,332047,Printing Stationery and Gen Off Exps,15-Mar-2019,000006260543022,THE TRAINING SHOP LIMI,5943,Stationery,86.98,0.00,86.98
Children and Young Peoples Services,"Head of Early Help, Inclusion and Vulnerable Children",085957,Secure Management,Supplies and Services,324117,Provisions E324,15-Mar-2019,000006260543218,TESCO STORES 6329,5411,Catering costs - provisions,107.20,0.00,107.20
Children and Young Peoples Services,"Head of Early Help, Inclusion and Vulnerable Children",071443,Stanley One Point Hub,Supplies and Services,312011,Newspapers books and periodicals E312,15-Mar-2019,000006260543498,AMZN Mktp UK MW5V64Q64,5942,Books-school library,190.99,0.00,190.99
Children and Young Peoples Services,"Head of Early Help, Inclusion and Vulnerable Children",071443,Stanley One Point Hub,Supplies and Services,312011,Newspapers books and periodicals E312,15-Mar-2019,000006260543502,AMZN Mktp UK MW53N1QO4,5942,Books-school library,381.98,0.00,381.98
Children and Young Peoples Services,"Head of Early Help, Inclusion and Vulnerable Children",071443,Stanley One Point Hub,Supplies and Services,312011,Newspapers books and periodicals E312,15-Mar-2019,000006260543508,AMZN Mktp UK MW0YG5Q74,5942,Books-school library,7.98,0.00,7.98
Children and Young Peoples Services,"Head of Early Help, Inclusion and Vulnerable Children",071443,Stanley One Point Hub,Supplies and Services,304259,Equipment and Materials,15-Mar-2019,000006260543510,GEN REGISTER OFFICE,9399,Equipment-purchase and rental,25.00,0.00,25.00
Children and Young Peoples Services,"Head of Early Help, Inclusion and Vulnerable Children",071443,Stanley One Point Hub,Supplies and Services,324117,Provisions E324,15-Mar-2019,000006260543514,ASDA GEORGE COM LEEDS,5411,Catering costs - provisions,20.00,0.00,20.00
Children and Young Peoples Services,Head of Childrens Social Care,085333,Coxhoe Satelite Home,Supplies and Services,324117,Provisions E324,15-Mar-2019,000006260543614,TESCO STORES 2371,5411,Catering costs - provisions,197.46,0.00,197.46
Children and Young Peoples Services,Head of Childrens Social Care,085333,Coxhoe Satelite Home,Supplies and Services,324117,Provisions E324,15-Mar-2019,000006260543620,TESCO STORES 2371,5411,Catering costs - provisions,33.45,0.00,33.45
Adult and Health Services,Head of Adults,055301,Stanley Pathways,Supplies and Services,304259,Equipment and Materials,15-Mar-2019,000006260543678,CURRYS ONLINE,5732,Equipment-purchase and rental,220.00,0.00,220.00
Children and Young Peoples Services,Head of Childrens Social Care,085352,Tow Law CU,Supplies and Services,324117,Provisions E324,15-Mar-2019,000006260543690,TESCO STORES 2371,5411,Catering costs - provisions,67.14,0.00,67.14
Children and Young Peoples Services,"Head of Early Help, Inclusion and Vulnerable Children",085957,Secure Management,Supplies and Services,328041,Clothing uniforms and laundry E328,15-Mar-2019,000006260543696,MOTHERCARE DIRECT-E-CO,5311,Clothing uniforms and laundry,43.34,0.00,43.34
Children and Young Peoples Services,Head of Childrens Social Care,085352,Tow Law CU,Supplies and Services,324117,Provisions E324,15-Mar-2019,000006260543982,CO-OP GROUP 010989,5411,Catering costs - provisions,4.79,0.00,4.79
Children and Young Peoples Services,Childrens Services Operational Support,052986,CYPS - Locality and Operational Support,Supplies and Services,304259,Equipment and Materials,15-Mar-2019,000006260543988,WWW.DURHAM.GOV.UK,9399,Equipment-purchase and rental,11.00,0.00,11.00
Children and Young Peoples Services,Head of Childrens Social Care,085332,Middlestone Moor CU,Supplies and Services,324117,Provisions E324,15-Mar-2019,000006260544134,SAINSBURYS SACAT 2199,5411,Catering costs - provisions,27.45,0.00,27.45
Children and Young Peoples Services,Childrens Services Operational Support,052986,CYPS - Locality and Operational Support,Supplies and Services,304259,Equipment and Materials,15-Mar-2019,000008441770769,GEN REGISTER OFFICE,9399,Equipment-purchase and rental,-7.50,0.00,-7.50
Children and Young Peoples Services,Head of Childrens Social Care,085333,Coxhoe Satelite Home,Supplies and Services,328041,Clothing uniforms and laundry E328,16-Mar-2019,000006260542654,B & M RETAIL,5310,Clothing uniforms and laundry,11.16,0.00,11.16
Children and Young Peoples Services,Head of Childrens Social Care,085333,Coxhoe Satelite Home,Supplies and Services,304403,Equipment and Materials,16-Mar-2019,000006260542660,CARD FACTORY,5947,Other consumables,1.98,0.00,1.98
Children and Young Peoples Services,Childrens Services Operational Support,052986,CYPS - Locality and Operational Support,Supplies and Services,328041,Clothing uniforms and laundry E328,16-Mar-2019,000006260542694,FANCY THAT,5310,Clothing uniforms and laundry,24.95,0.00,24.95
Children and Young Peoples Services,Head of Childrens Social Care,085333,Coxhoe Satelite Home,Supplies and Services,312011,Newspapers books and periodicals E312,16-Mar-2019,000006260542856,PAYPAL PAYPALGIFTS,4816,Books-school library,30.00,0.00,30.00
Children and Young Peoples Services,Childrens Services Operational Support,052986,CYPS - Locality and Operational Support,Supplies and Services,328041,Clothing uniforms and laundry E328,16-Mar-2019,000006260543026,ARGOS LTD,5310,Clothing uniforms and laundry,50.00,0.00,50.00
Children and Young Peoples Services,Head of Childrens Social Care,085342,9 Cedar Drive Aycliffe,Supplies and Services,324117,Provisions E324,16-Mar-2019,000006260543032,ASDA STORES,5411,Catering costs - provisions,54.09,0.00,54.09
Children and Young Peoples Services,"Head of Early Help, Inclusion and Vulnerable Children",085957,Secure Management,Supplies and Services,324117,Provisions E324,16-Mar-2019,000006260543226,TESCO STORES 6329,5411,Catering costs - provisions,106.35,0.00,106.35
Children and Young Peoples Services,"Head of Early Help, Inclusion and Vulnerable Children",071443,Stanley One Point Hub,Supplies and Services,328041,Clothing uniforms and laundry E328,16-Mar-2019,000006260543520,SHOE ZONE (INTERNET),5661,Clothing uniforms and laundry,12.99,0.00,12.99
Children and Young Peoples Services,Head of Childrens Social Care,085334,West Rainton Satelite Home,Supplies and Services,324117,Provisions E324,16-Mar-2019,000006260543568,TESCO STORES 2967,5411,Catering costs - provisions,48.65,0.00,48.65
Children and Young Peoples Services,Head of Childrens Social Care,085334,West Rainton Satelite Home,Supplies and Services,324117,Provisions E324,16-Mar-2019,000006260543574,TESCO STORES 2967,5411,Catering costs - provisions,1.10,0.00,1.10
Dedicated Schools Grant,DSG High Needs Block,079040,SENSS-HQ,Supplies and Services,312011,Newspapers books and periodicals E312,16-Mar-2019,000006260543844,AMZN Mktp UK MW3CO1644,5942,Books-school library,13.48,0.00,13.48
Children and Young Peoples Services,Head of Childrens Social Care,085352,Tow Law CU,Supplies and Services,312011,Newspapers books and periodicals E312,16-Mar-2019,000006260543976,AMZN Mktp UK MW1T286I4,5942,Books-school library,5.97,0.00,5.97
Transformation and Partnerships,Partnerships & Community Engagement Div.,060472,Syrian Vulnerable Persons Scheme,Supplies and Services,324117,Provisions E324,16-Mar-2019,000006260544386,WILKO.COM,5399,Catering costs - provisions,328.00,0.00,328.00
Children and Young Peoples Services,"Head of Early Help, Inclusion and Vulnerable Children",071440,Barnard Castle One Point Hub,Supplies and Services,312011,Newspapers books and periodicals E312,17-Mar-2019,000006260542718,AMZN Mktp UK MW2Q96DB4,5942,Books-school library,3.54,0.00,3.54
Children and Young Peoples Services,"Head of Early Help, Inclusion and Vulnerable Children",071440,Barnard Castle One Point Hub,Supplies and Services,312011,Newspapers books and periodicals E312,17-Mar-2019,000006260542724,Amazon.co.uk MW0332DF4,5969,Books-school library,11.98,0.00,11.98
Children and Young Peoples Services,"Head of Early Help, Inclusion and Vulnerable Children",085957,Secure Management,Supplies and Services,324117,Provisions E324,17-Mar-2019,000006260543230,TESCO STORES 6329,5411,Catering costs - provisions,130.53,0.00,130.53
Children and Young Peoples Services,Head of Childrens Social Care,085333,Coxhoe Satelite Home,Supplies and Services,324117,Provisions E324,17-Mar-2019,000006260543624,CO-OP GROUP 310016,5411,Catering costs - provisions,12.90,0.00,12.90
Children and Young Peoples Services,Head of Childrens Social Care,085342,9 Cedar Drive Aycliffe,Supplies and Services,324117,Provisions E324,17-Mar-2019,000006260543660,SAINSBURYS LOC4622,5411,Catering costs - provisions,3.30,0.00,3.30
Children and Young Peoples Services,Head of Childrens Social Care,085342,9 Cedar Drive Aycliffe,Supplies and Services,324117,Provisions E324,17-Mar-2019,000006260543664,HERON FOODS LTD,5499,Catering costs - provisions,12.87,0.00,12.87
Children and Young Peoples Services,Head of Childrens Social Care,085342,9 Cedar Drive Aycliffe,Supplies and Services,304259,Equipment and Materials,17-Mar-2019,000006260543668,WILKO RETAIL LIMIT,5722,Equipment-purchase and rental,3.50,0.00,3.50
Children and Young Peoples Services,Head of Childrens Social Care,085342,9 Cedar Drive Aycliffe,Supplies and Services,348037,Subsistence E348,17-Mar-2019,000006260543672,ARCHERS,5812,Subsistence,9.70,0.00,9.70
Children and Young Peoples Services,Childrens Services Operational Support,052986,CYPS - Locality and Operational Support,Supplies and Services,312011,Newspapers books and periodicals E312,17-Mar-2019,000006260543780,AMZN MKTP UK MW4N90D14,5942,Books-school library,16.02,0.00,16.02
Children and Young Peoples Services,Childrens Services Operational Support,052986,CYPS - Locality and Operational Support,Supplies and Services,312011,Newspapers books and periodicals E312,17-Mar-2019,000006260543784,AMZN MKTP UK MW9610S44,5942,Books-school library,51.32,0.00,51.32
Children and Young Peoples Services,"Head of Early Help, Inclusion and Vulnerable Children",074000,TTF-Attachment and Results,Supplies and Services,324117,Provisions E324,17-Mar-2019,000006260543792,ASDA GEORGE COM LEEDS,5411,Catering costs - provisions,-152.94,0.00,-152.94
Children and Young Peoples Services,Head of Childrens Social Care,085332,Middlestone Moor CU,Supplies and Services,348037,Subsistence E348,17-Mar-2019,000006260544140,FATTOUSH LOUNGE METRO,5812,Subsistence,60.20,0.00,60.20
Adult and Health Services,Head of Adults,055309,Peterlee Pathways,Supplies and Services,328041,Clothing uniforms and laundry E328,17-Mar-2019,000006260544318,ARGOS LTD,5310,Clothing uniforms and laundry,30.00,0.00,30.00
Children and Young Peoples Services,Head of Childrens Social Care,085342,9 Cedar Drive Aycliffe,Supplies and Services,348037,Subsistence E348,17-Mar-2019,000006268841930,THE OLIVE GARDEN,5812,Subsistence,42.70,0.00,42.70
Children and Young Peoples Services,Head of Education and Skills,071801,Selby Cottage Childcare Centre,Supplies and Services,324117,Provisions E324,18-Mar-2019,000006268841178,ASDA GROCERIES ONLINE,5411,Catering costs - provisions,71.60,0.00,71.60
Children and Young Peoples Services,Head of Childrens Social Care,085352,Tow Law CU,Supplies and Services,324117,Provisions E324,18-Mar-2019,000006268841312,LIDL GB DURHAM,5411,Catering costs - provisions,19.99,0.00,19.99
Children and Young Peoples Services,Childrens Services Operational Support,052986,CYPS - Locality and Operational Support,Supplies and Services,324117,Provisions E324,18-Mar-2019,000006268841506,ASDA STORES,5411,Catering costs - provisions,27.19,0.00,27.19
Children and Young Peoples Services,Head of Education and Skills,071732,Dean Bank Childcare,Supplies and Services,324117,Provisions E324,18-Mar-2019,000006268841518,ASDA GROCERIES ONLINE,5411,Catering costs - provisions,46.34,0.00,46.34
Children and Young Peoples Services,Head of Education and Skills,071732,Dean Bank Childcare,Supplies and Services,324117,Provisions E324,18-Mar-2019,000006268841522,TESCO STORES 2916,5411,Catering costs - provisions,31.63,0.00,31.63
Children and Young Peoples Services,"Head of Early Help, Inclusion and Vulnerable Children",085957,Secure Management,Supplies and Services,324117,Provisions E324,18-Mar-2019,000006268841620,TESCO STORES 6329,5411,Catering costs - provisions,181.77,0.00,181.77
Children and Young Peoples Services,"Head of Early Help, Inclusion and Vulnerable Children",071445,Chester le Street One Point Hub,Supplies and Services,312011,Newspapers books and periodicals E312,18-Mar-2019,000006268842042,AMZN Mktp UK MW9XM02T4,5942,Books-school library,18.75,0.00,18.75
Children and Young Peoples Services,"Head of Early Help, Inclusion and Vulnerable Children",085957,Secure Management,Supplies and Services,312011,Newspapers books and periodicals E312,18-Mar-2019,000006268842076,Amazon.co.uk MW9ZK9234,5969,Books-school library,79.00,13.17,65.83
Children and Young Peoples Services,"Head of Early Help, Inclusion and Vulnerable Children",085957,Secure Management,Supplies and Services,312011,Newspapers books and periodicals E312,18-Mar-2019,000006268842082,AMZN MKTP UK MW9PL02N4,5942,Books-school library,59.95,0.00,59.95
Children and Young Peoples Services,Head of Childrens Social Care,085352,Tow Law CU,Supplies and Services,312011,Newspapers books and periodicals E312,18-Mar-2019,000006268842144,AMZN Mktp UK MW3P41SF4,5942,Books-school library,17.74,0.00,17.74
Children and Young Peoples Services,Head of Childrens Social Care,085332,Middlestone Moor CU,Supplies and Services,312011,Newspapers books and periodicals E312,18-Mar-2019,000006268842270,AMZN Mktp UK MW6KZ8SL4,5942,Books-school library,26.44,0.00,26.44
Children and Young Peoples Services,Head of Childrens Social Care,085332,Middlestone Moor CU,Supplies and Services,312011,Newspapers books and periodicals E312,18-Mar-2019,000006268842278,AMZN Mktp UK MW3292SB4,5942,Books-school library,8.99,0.00,8.99
Children and Young Peoples Services,Head of Childrens Social Care,085332,Middlestone Moor CU,Supplies and Services,312011,Newspapers books and periodicals E312,18-Mar-2019,000006268842282,AMZN Mktp UK MW54V6SG4,5942,Books-school library,36.26,0.00,36.26
Children and Young Peoples Services,Head of Childrens Social Care,085332,Middlestone Moor CU,Supplies and Services,312011,Newspapers books and periodicals E312,18-Mar-2019,000006268842286,Amazon.co.uk MW9VL1254,5969,Books-school library,16.89,0.00,16.89
Children and Young Peoples Services,Head of Childrens Social Care,085332,Middlestone Moor CU,Supplies and Services,304403,Equipment and Materials,18-Mar-2019,000006268842290,AMZ AP Motor Store,5999,Other consumables,-36.26,0.00,-36.26
Transformation and Partnerships,Partnerships & Community Engagement Div.,060472,Syrian Vulnerable Persons Scheme,Supplies and Services,312011,Newspapers books and periodicals E312,18-Mar-2019,000006268842444,HOME BARGAINS SPENNYMO,5251,Books-school library,4.97,0.00,4.97
Transformation and Partnerships,Partnerships & Community Engagement Div.,060472,Syrian Vulnerable Persons Scheme,Supplies and Services,324117,Provisions E324,18-Mar-2019,000006268842452,ASDA STORES LTD 4313,5411,Catering costs - provisions,53.05,0.00,53.05
Children and Young Peoples Services,"Head of Early Help, Inclusion and Vulnerable Children",085957,Secure Management,Supplies and Services,328041,Clothing uniforms and laundry E328,18-Mar-2019,000006272813568,WWW.ARGOS.CO.UK,5310,Clothing uniforms and laundry,23.94,3.99,19.95
Children and Young Peoples Services,"Head of Early Help, Inclusion and Vulnerable Children",085810,CDYOS - Interventions Team,Supplies and Services,304259,Equipment and Materials,18-Mar-2019,000006272814028,WILKO DURHAM 426,5722,Equipment-purchase and rental,52.00,8.67,43.33
Children and Young Peoples Services,Head of Education and Skills,071801,Selby Cottage Childcare Centre,Supplies and Services,304259,Equipment and Materials,19-Mar-2019,000006272812396,WILKO RETAIL LIMIT,5722,Equipment-purchase and rental,27.60,0.00,27.60
Adult and Health Services,Head of Adults,055302,Durham Pathways,Supplies and Services,304259,Equipment and Materials,19-Mar-2019,000006272812520,CURRYS ONLINE,5732,Equipment-purchase and rental,239.00,39.83,199.17
Adult and Health Services,Head of Adults,055302,Durham Pathways,Supplies and Services,304259,Equipment and Materials,19-Mar-2019,000006272812526,CURRYS ONLINE,5732,Equipment-purchase and rental,84.99,14.17,70.82
Children and Young Peoples Services,Head of Childrens Social Care,085332,Middlestone Moor CU,Supplies and Services,324117,Provisions E324,19-Mar-2019,000006272812560,ALDI 59 774,5411,Catering costs - provisions,71.92,0.00,71.92
Children and Young Peoples Services,Head of Education and Skills,071732,Dean Bank Childcare,Supplies and Services,324117,Provisions E324,19-Mar-2019,000006272812802,ASDA GROCERIES ONLINE,5411,Catering costs - provisions,75.04,0.00,75.04
Children and Young Peoples Services,Head of Education and Skills,071732,Dean Bank Childcare,Supplies and Services,324117,Provisions E324,19-Mar-2019,000006272812810,ASDA GROCERIES ONLINE,5411,Catering costs - provisions,-0.50,0.00,-0.50
Adult and Health Services,Head of Adults,055202,Support and Recovery,Supplies and Services,304403,Equipment and Materials,19-Mar-2019,000006272812956,ELTONS FOOTWEAR,7251,Other consumables,7.00,0.00,7.00
Children and Young Peoples Services,Head of Childrens Social Care,071448,Newton Aycliffe One Point Hub,Supplies and Services,328041,Clothing uniforms and laundry E328,19-Mar-2019,000006272812970,WWW.ARGOS.CO.UK,5310,Clothing uniforms and laundry,162.95,0.00,162.95
Children and Young Peoples Services,"Head of Early Help, Inclusion and Vulnerable Children",085957,Secure Management,Supplies and Services,312011,Newspapers books and periodicals E312,19-Mar-2019,000006272812984,AMZN Mktp UK MW5LG1KW4,5942,Books-school library,1.97,0.00,1.97
Children and Young Peoples Services,"Head of Early Help, Inclusion and Vulnerable Children",085957,Secure Management,Supplies and Services,312011,Newspapers books and periodicals E312,19-Mar-2019,000006272812988,Amazon.co.uk MW5EC1K54,5969,Books-school library,21.99,3.67,18.32
Children and Young Peoples Services,"Head of Early Help, Inclusion and Vulnerable Children",085957,Secure Management,Employees,040149,Recruitment Instruction and Training,19-Mar-2019,000006272812992,COGNITIVE CENTRE,8249,Training-all costs,372.00,62.00,310.00
Children and Young Peoples Services,"Head of Early Help, Inclusion and Vulnerable Children",085957,Secure Management,Supplies and Services,328041,Clothing uniforms and laundry E328,19-Mar-2019,000006272812996,WWW.ARGOS.CO.UK,5310,Clothing uniforms and laundry,24.95,0.00,24.95
Children and Young Peoples Services,Childrens Services Operational Support,052986,CYPS - Locality and Operational Support,Supplies and Services,324117,Provisions E324,19-Mar-2019,000006272813030,WILKO.COM,5399,Catering costs - provisions,68.00,0.00,68.00
Children and Young Peoples Services,Childrens Services Operational Support,052986,CYPS - Locality and Operational Support,Supplies and Services,324117,Provisions E324,19-Mar-2019,000006272813034,ASDA GEORGE COM LEEDS,5411,Catering costs - provisions,120.79,0.00,120.79
Children and Young Peoples Services,Head of Childrens Social Care,085551,Short Break Services-Park Hse Sher,Supplies and Services,324117,Provisions E324,19-Mar-2019,000006272813212,ALDI 59 774,5411,Catering costs - provisions,8.72,0.00,8.72
Children and Young Peoples Services,Head of Childrens Social Care,085352,Tow Law CU,Supplies and Services,328041,Clothing uniforms and laundry E328,19-Mar-2019,000006272813226,WWW.ARGOS.CO.UK,5310,Clothing uniforms and laundry,108.93,0.00,108.93
Children and Young Peoples Services,Childrens Services Operational Support,052986,CYPS - Locality and Operational Support,Supplies and Services,312011,Newspapers books and periodicals E312,19-Mar-2019,000006272813264,AMZN Mktp UK MW7XB8KH4,5942,Books-school library,9.72,0.00,9.72
Children and Young Peoples Services,"Head of Early Help, Inclusion and Vulnerable Children",071443,Stanley One Point Hub,Supplies and Services,312011,Newspapers books and periodicals E312,19-Mar-2019,000006272813270,Amazon.co.uk MW1GE8K84,5969,Books-school library,64.61,0.00,64.61
Children and Young Peoples Services,"Head of Early Help, Inclusion and Vulnerable Children",071443,Stanley One Point Hub,Supplies and Services,312011,Newspapers books and periodicals E312,19-Mar-2019,000006272813274,AMZN Mktp UK MW0X84KQ4,5942,Books-school library,121.21,0.00,121.21
Children and Young Peoples Services,"Head of Early Help, Inclusion and Vulnerable Children",071443,Stanley One Point Hub,Supplies and Services,312011,Newspapers books and periodicals E312,19-Mar-2019,000006272813276,AMZN Mktp UK MW5AZ4KX4,5942,Books-school library,14.99,0.00,14.99
Children and Young Peoples Services,Head of Childrens Social Care,085331,New Lea Childrens Home,Supplies and Services,304403,Equipment and Materials,19-Mar-2019,000006272813280,SP HAPPYSELF JOURNAL,5734,Other consumables,22.65,0.00,22.65
Children and Young Peoples Services,Head of Childrens Social Care,085342,9 Cedar Drive Aycliffe,Supplies and Services,324117,Provisions E324,19-Mar-2019,000006272813358,TESCO STORES 2916,5411,Catering costs - provisions,5.50,0.00,5.50
Children and Young Peoples Services,Head of Childrens Social Care,085352,Tow Law CU,Supplies and Services,324117,Provisions E324,19-Mar-2019,000006272813388,ASDA SUPERSTORE 4987,5411,Catering costs - provisions,61.64,0.00,61.64
Children and Young Peoples Services,Head of Education and Skills,070264,EDC Premises,Supplies and Services,304221,Equipment and Materials,19-Mar-2019,000006272813522,B & Q 1237,5200,Direct materials,23.35,0.00,23.35
Children and Young Peoples Services,"Head of Early Help, Inclusion and Vulnerable Children",074000,TTF-Attachment and Results,Supplies and Services,308011,Furniture,19-Mar-2019,000006272813532,FRANKS THE FLOORING ST,5713,Furniture repair and replacement,150.00,0.00,150.00
Children and Young Peoples Services,"Head of Early Help, Inclusion and Vulnerable Children",074000,TTF-Attachment and Results,Supplies and Services,324117,Provisions E324,19-Mar-2019,000006272813536,ASDA GEORGE COM LEEDS,5411,Catering costs - provisions,152.94,0.00,152.94
Children and Young Peoples Services,"Head of Early Help, Inclusion and Vulnerable Children",085957,Secure Management,Supplies and Services,328041,Clothing uniforms and laundry E328,19-Mar-2019,000006272813572,WWW.ARGOS.CO.UK,5310,Clothing uniforms and laundry,28.94,4.82,24.12
Children and Young Peoples Services,Head of Childrens Social Care,085352,Tow Law CU,Supplies and Services,312011,Newspapers books and periodicals E312,19-Mar-2019,000006272813692,AMZN Mktp UK MW2AX4KV4,5942,Books-school library,4.92,0.00,4.92
Children and Young Peoples Services,Head of Childrens Social Care,085352,Tow Law CU,Supplies and Services,312011,Newspapers books and periodicals E312,19-Mar-2019,000006272813696,AMZN Mktp UK MW7H75K54,5942,Books-school library,109.05,0.00,109.05
Children and Young Peoples Services,Childrens Services Operational Support,052986,CYPS - Locality and Operational Support,Supplies and Services,304259,Equipment and Materials,19-Mar-2019,000006272813710,PETERBOROUGH DIRECT,9399,Equipment-purchase and rental,24.00,0.00,24.00
Children and Young Peoples Services,Childrens Services Operational Support,052986,CYPS - Locality and Operational Support,Supplies and Services,304259,Equipment and Materials,19-Mar-2019,000006272813716,PETERBOROUGH DIRECT,9399,Equipment-purchase and rental,22.00,0.00,22.00
Children and Young Peoples Services,Head of Childrens Social Care,085332,Middlestone Moor CU,Supplies and Services,304221,Equipment and Materials,19-Mar-2019,000006272813848,HOMEBASE LTD 822,5211,Direct materials,54.00,0.00,54.00
Adult and Health Services,Head of Adults,055807,Newton Aycliffe Pathways,Third Party Payments 4THIRD,474101,Purchase of Care,19-Mar-2019,000006272813924,PIONEERING CARE PARTNE,8050,Nursing care payments,9.00,0.00,9.00
Adult and Health Services,Head of Adults,055807,Newton Aycliffe Pathways,Supplies and Services,328041,Clothing uniforms and laundry E328,19-Mar-2019,000006272813932,ARGOS RETAIL GROUP,5310,Clothing uniforms and laundry,64.99,0.00,64.99
Adult and Health Services,Head of Adults,055302,Durham Pathways,Supplies and Services,328041,Clothing uniforms and laundry E328,19-Mar-2019,000006278049864,PAYPAL EUROPEANWEA,5651,Clothing uniforms and laundry,453.75,75.63,378.12
Children and Young Peoples Services,Head of Education and Skills,071801,Selby Cottage Childcare Centre,Supplies and Services,384999,Miscellaneous Expenses,20-Mar-2019,000006278049812,WAYFAIR #2340581444,5965,Other expenses,205.96,0.00,205.96
Children and Young Peoples Services,Head of Education and Skills,071801,Selby Cottage Childcare Centre,Supplies and Services,384999,Miscellaneous Expenses,20-Mar-2019,000006278049816,WAYFAIR #2944620774,5965,Other expenses,217.98,0.00,217.98
Children and Young Peoples Services,Head of Childrens Social Care,085342,9 Cedar Drive Aycliffe,Supplies and Services,324117,Provisions E324,20-Mar-2019,000006278049874,TESCO STORES 2916,5411,Catering costs - provisions,40.33,0.00,40.33
Children and Young Peoples Services,Head of Childrens Social Care,085332,Middlestone Moor CU,Supplies and Services,324117,Provisions E324,20-Mar-2019,000006278049876,TESCO STORES 2916,5411,Catering costs - provisions,23.55,0.00,23.55
Children and Young Peoples Services,Childrens Services Operational Support,052986,CYPS - Locality and Operational Support,Supplies and Services,328041,Clothing uniforms and laundry E328,20-Mar-2019,000006278049896,FIORI FLOWER`S,5992,Clothing uniforms and laundry,260.00,0.00,260.00
Children and Young Peoples Services,Childrens Services Operational Support,052986,CYPS - Locality and Operational Support,Supplies and Services,324117,Provisions E324,20-Mar-2019,000006278049900,SAINSBURYS 0776,5411,Catering costs - provisions,18.30,0.00,18.30
Children and Young Peoples Services,Childrens Services Operational Support,052986,CYPS - Locality and Operational Support,Supplies and Services,312011,Newspapers books and periodicals E312,20-Mar-2019,000006278049904,HOME BARGAINS,5251,Books-school library,7.23,0.00,7.23
Children and Young Peoples Services,Childrens Services Operational Support,052986,CYPS - Locality and Operational Support,Supplies and Services,324117,Provisions E324,20-Mar-2019,000006278049906,MARKS&SPENCER PLC,5411,Catering costs - provisions,8.00,0.00,8.00
Children and Young Peoples Services,Childrens Services Operational Support,052986,CYPS - Locality and Operational Support,Supplies and Services,304403,Equipment and Materials,20-Mar-2019,000006278049910,CARD FACTORY,5947,Other consumables,1.98,0.00,1.98
Children and Young Peoples Services,Head of Childrens Social Care,085333,Coxhoe Satelite Home,Supplies and Services,304999,Equipment and Materials,20-Mar-2019,000006278050018,SAVERS HEALTH & BEAUTY,5912,Misc equipment tools and materials,4.89,0.00,4.89
Children and Young Peoples Services,Head of Childrens Social Care,085333,Coxhoe Satelite Home,Supplies and Services,324117,Provisions E324,20-Mar-2019,000006278050024,ASDA SUPERSTORE 4987,5411,Catering costs - provisions,146.43,0.00,146.43
Children and Young Peoples Services,Head of Childrens Social Care,085334,West Rainton Satelite Home,Supplies and Services,328041,Clothing uniforms and laundry E328,20-Mar-2019,000006278050050,MATALAN,5691,Clothing uniforms and laundry,9.00,0.00,9.00
Children and Young Peoples Services,Head of Childrens Social Care,085334,West Rainton Satelite Home,Supplies and Services,384999,Miscellaneous Expenses,20-Mar-2019,000006278050056,BODYCARE,5977,Other expenses,13.56,0.00,13.56
Children and Young Peoples Services,Head of Childrens Social Care,085334,West Rainton Satelite Home,Supplies and Services,324117,Provisions E324,20-Mar-2019,000006278050058,TESCO STORES 2371,5411,Catering costs - provisions,44.27,0.00,44.27
Children and Young Peoples Services,Head of Childrens Social Care,085334,West Rainton Satelite Home,Supplies and Services,332047,Printing Stationery and Gen Off Exps,20-Mar-2019,000006278050062,RYMAN,5943,Stationery,107.75,0.00,107.75
Children and Young Peoples Services,Head of Childrens Social Care,085334,West Rainton Satelite Home,Supplies and Services,312011,Newspapers books and periodicals E312,20-Mar-2019,000006278050110,TOOLSTATION LTD,5251,Books-school library,14.98,2.50,12.48
Children and Young Peoples Services,"Head of Early Help, Inclusion and Vulnerable Children",071445,Chester le Street One Point Hub,Supplies and Services,312011,Newspapers books and periodicals E312,20-Mar-2019,000006278050140,AMZN Mktp UK MW7K197V4,5942,Books-school library,39.90,0.00,39.90
Children and Young Peoples Services,"Head of Early Help, Inclusion and Vulnerable Children",071445,Chester le Street One Point Hub,Supplies and Services,312011,Newspapers books and periodicals E312,20-Mar-2019,000006278050144,AMZN Mktp UK MW1DJ99R4,5942,Books-school library,3.69,0.00,3.69
Children and Young Peoples Services,"Head of Early Help, Inclusion and Vulnerable Children",071445,Chester le Street One Point Hub,Supplies and Services,324117,Provisions E324,20-Mar-2019,000006278050152,JR HOLLAND FOODSERVICE,5499,Catering costs - provisions,71.54,0.00,71.54
Children and Young Peoples Services,"Head of Early Help, Inclusion and Vulnerable Children",085957,Secure Management,Supplies and Services,312011,Newspapers books and periodicals E312,20-Mar-2019,000006278050158,AMZN Mktp UK MW2ZU59O4,5942,Books-school library,12.95,2.16,10.79
Children and Young Peoples Services,"Head of Early Help, Inclusion and Vulnerable Children",085957,Secure Management,Supplies and Services,328041,Clothing uniforms and laundry E328,20-Mar-2019,000006278050162,FOOTASYLUM PLC,5691,Clothing uniforms and laundry,39.99,0.00,39.99
Children and Young Peoples Services,"Head of Early Help, Inclusion and Vulnerable Children",085957,Secure Management,Supplies and Services,328041,Clothing uniforms and laundry E328,20-Mar-2019,000006278050166,FOOTASYLUM PLC,5691,Clothing uniforms and laundry,39.99,0.00,39.99
Children and Young Peoples Services,"Head of Early Help, Inclusion and Vulnerable Children",085957,Secure Management,Supplies and Services,342033,Computers and Communications,20-Mar-2019,000006278050170,VERY,5964,Computer hardware,48.99,0.00,48.99
Children and Young Peoples Services,"Head of Early Help, Inclusion and Vulnerable Children",085957,Secure Management,Supplies and Services,324117,Provisions E324,20-Mar-2019,000006278050174,TESCO STORES 6329,5411,Catering costs - provisions,97.70,0.00,97.70
Children and Young Peoples Services,Childrens Services Operational Support,052986,CYPS - Locality and Operational Support,Supplies and Services,312011,Newspapers books and periodicals E312,20-Mar-2019,000006278050262,AMZN Mktp UK MW0XH6704,5942,Books-school library,24.96,0.00,24.96
Children and Young Peoples Services,Childrens Services Operational Support,052986,CYPS - Locality and Operational Support,Supplies and Services,312011,Newspapers books and periodicals E312,20-Mar-2019,000006278050266,AMZN Mktp UK MW22M47Q4,5942,Books-school library,18.78,0.00,18.78
Children and Young Peoples Services,"Head of Early Help, Inclusion and Vulnerable Children",071443,Stanley One Point Hub,Supplies and Services,324117,Provisions E324,20-Mar-2019,000006278050272,ASDA GEORGE COM LEEDS,5411,Catering costs - provisions,131.95,0.00,131.95
Children and Young Peoples Services,"Head of Early Help, Inclusion and Vulnerable Children",071443,Stanley One Point Hub,Supplies and Services,324117,Provisions E324,20-Mar-2019,000006278050276,ASDA GEORGE COM LEEDS,5411,Catering costs - provisions,131.95,0.00,131.95
Children and Young Peoples Services,"Head of Early Help, Inclusion and Vulnerable Children",071443,Stanley One Point Hub,Supplies and Services,312011,Newspapers books and periodicals E312,20-Mar-2019,000006278050280,AMZN MKTP UK MW1DU7964,5942,Books-school library,45.99,0.00,45.99
Children and Young Peoples Services,Head of Childrens Social Care,085342,9 Cedar Drive Aycliffe,Supplies and Services,324117,Provisions E324,20-Mar-2019,000006278050294,TESCO STORES 2916,5411,Catering costs - provisions,15.00,0.00,15.00
Children and Young Peoples Services,"Head of Early Help, Inclusion and Vulnerable Children",074000,TTF-Attachment and Results,Supplies and Services,308011,Furniture,20-Mar-2019,000006278050414,FRANKS THE FLOORING ST,5713,Furniture repair and replacement,150.00,0.00,150.00
Children and Young Peoples Services,"Head of Early Help, Inclusion and Vulnerable Children",074000,TTF-Attachment and Results,Supplies and Services,324117,Provisions E324,20-Mar-2019,000006278050426,ASDA GEORGE COM LEEDS,5411,Catering costs - provisions,-152.94,0.00,-152.94
Children and Young Peoples Services,"Head of Early Help, Inclusion and Vulnerable Children",085957,Secure Management,Third Party Payments 4THIRD,430100,Rendered by Private Contractors,20-Mar-2019,000006278050460,FAST KEY SERVICES LIMI,7399,Payments to sub-contractors,7.26,1.21,6.05
Children and Young Peoples Services,"Head of Early Help, Inclusion and Vulnerable Children",085957,Secure Management,Supplies and Services,352001,Conference Expenses,20-Mar-2019,000006278050466,"REDWORTH HALL, DARLING",7011,Conferencesseminars fees etc,624.00,104.00,520.00
Children and Young Peoples Services,"Head of Early Help, Inclusion and Vulnerable Children",085801,CDYOS - Support,Supplies and Services,384999,Miscellaneous Expenses,20-Mar-2019,000006278050624,WWW.HOBBYCRAFT.CO.UK,5970,Other expenses,9.75,0.00,9.75
Children and Young Peoples Services,Head of Childrens Social Care,085352,Tow Law CU,Supplies and Services,348037,Subsistence E348,20-Mar-2019,000006278050644,BREWERS FAYRE 41517810,5812,Subsistence,28.14,0.00,28.14
Transformation and Partnerships,Partnerships & Community Engagement Div.,060550,East Durham AAP,Supplies and Services,312011,Newspapers books and periodicals E312,20-Mar-2019,000006278050852,Amazon.co.uk MW24687W4,5969,Books-school library,29.10,4.85,24.25
Transformation and Partnerships,Partnerships & Community Engagement Div.,060472,Syrian Vulnerable Persons Scheme,Supplies and Services,328041,Clothing uniforms and laundry E328,20-Mar-2019,000006278051022,SP TERRYS FABRICS,5691,Clothing uniforms and laundry,305.89,0.00,305.89
Transformation and Partnerships,Partnerships & Community Engagement Div.,060472,Syrian Vulnerable Persons Scheme,Supplies and Services,308011,Furniture,20-Mar-2019,000006278051034,www.247blinds.co.uk,5714,Furniture repair and replacement,376.36,0.00,376.36
Children and Young Peoples Services,Head of Childrens Social Care,085342,9 Cedar Drive Aycliffe,Supplies and Services,324117,Provisions E324,20-Mar-2019,000006283441716,CO-OP GROUP 108247,5411,Catering costs - provisions,7.00,0.00,7.00
Children and Young Peoples Services,Childrens Services Operational Support,052986,CYPS - Locality and Operational Support,Supplies and Services,328041,Clothing uniforms and laundry E328,20-Mar-2019,000006283441772,THE WORKS,5310,Clothing uniforms and laundry,24.50,0.00,24.50
Children and Young Peoples Services,Childrens Services Operational Support,052986,CYPS - Locality and Operational Support,Supplies and Services,324117,Provisions E324,20-Mar-2019,000006283441776,ALDI 12 774,5411,Catering costs - provisions,7.11,1.19,5.92
Children and Young Peoples Services,Childrens Services Operational Support,052986,CYPS - Locality and Operational Support,Supplies and Services,304259,Equipment and Materials,20-Mar-2019,000006283441780,WILKO DURHAM 426,5722,Equipment-purchase and rental,12.50,0.00,12.50
Children and Young Peoples Services,Head of Childrens Social Care,085333,Coxhoe Satelite Home,Supplies and Services,304259,Equipment and Materials,20-Mar-2019,000006283441884,WILKO RETAIL LIMIT,5722,Equipment-purchase and rental,11.00,0.00,11.00
Children and Young Peoples Services,Head of Childrens Social Care,085334,West Rainton Satelite Home,Supplies and Services,328041,Clothing uniforms and laundry E328,20-Mar-2019,000006283441942,ARGOS LTD,5310,Clothing uniforms and laundry,15.00,0.00,15.00
Children and Young Peoples Services,Head of Childrens Social Care,085334,West Rainton Satelite Home,Supplies and Services,304259,Equipment and Materials,20-Mar-2019,000006283441948,WILKO RETAIL LIMIT,5722,Equipment-purchase and rental,5.00,0.00,5.00
Children and Young Peoples Services,Head of Childrens Social Care,085334,West Rainton Satelite Home,Supplies and Services,304259,Equipment and Materials,20-Mar-2019,000006283441954,J D SPORTS 511,5941,Equipment-purchase and rental,45.00,0.00,45.00
Children and Young Peoples Services,Head of Childrens Social Care,085334,West Rainton Satelite Home,Supplies and Services,304259,Equipment and Materials,20-Mar-2019,000006283441958,SPORTSDIRECT 387,5941,Equipment-purchase and rental,147.47,0.00,147.47
Children and Young Peoples Services,Head of Childrens Social Care,085334,West Rainton Satelite Home,Supplies and Services,328041,Clothing uniforms and laundry E328,20-Mar-2019,000006283441964,PRIMARK 670 GATESHEAD,5651,Clothing uniforms and laundry,50.50,0.00,50.50
Children and Young Peoples Services,Head of Education and Skills,071732,Dean Bank Childcare,Supplies and Services,328041,Clothing uniforms and laundry E328,20-Mar-2019,000006283441972,B&M RETAIL LTD,5310,Clothing uniforms and laundry,7.14,0.00,7.14
Children and Young Peoples Services,Head of Childrens Social Care,071448,Newton Aycliffe One Point Hub,Supplies and Services,328041,Clothing uniforms and laundry E328,20-Mar-2019,000006283442108,ARGOS RETAIL GROUP,5310,Clothing uniforms and laundry,148.97,0.00,148.97
Children and Young Peoples Services,Head of Childrens Social Care,071448,Newton Aycliffe One Point Hub,Supplies and Services,328041,Clothing uniforms and laundry E328,20-Mar-2019,000006283442114,ARGOS RETAIL GROUP,5310,Clothing uniforms and laundry,12.00,0.00,12.00
Children and Young Peoples Services,"Head of Early Help, Inclusion and Vulnerable Children",085957,Secure Management,Supplies and Services,328041,Clothing uniforms and laundry E328,20-Mar-2019,000006283442128,WWW.ARGOS.CO.UK,5310,Clothing uniforms and laundry,48.93,0.00,48.93
Children and Young Peoples Services,"Head of Early Help, Inclusion and Vulnerable Children",085957,Secure Management,Supplies and Services,304259,Equipment and Materials,20-Mar-2019,000006283442132,JD SPORTS INTERNET,5941,Equipment-purchase and rental,80.00,0.00,80.00
Children and Young Peoples Services,"Head of Early Help, Inclusion and Vulnerable Children",085957,Secure Management,Supplies and Services,328041,Clothing uniforms and laundry E328,20-Mar-2019,000006283442136,WWW.FOOTLOCKER.EU,5661,Clothing uniforms and laundry,34.99,5.83,29.16
Children and Young Peoples Services,Childrens Services Operational Support,052986,CYPS - Locality and Operational Support,Supplies and Services,328041,Clothing uniforms and laundry E328,20-Mar-2019,000006283442576,MOTHERCARE DIRECT-MOTO,5311,Clothing uniforms and laundry,225.00,0.00,225.00
Children and Young Peoples Services,"Head of Early Help, Inclusion and Vulnerable Children",085957,Secure Management,Supplies and Services,304403,Equipment and Materials,20-Mar-2019,000006283442680,WEBUY.COM,5065,Other consumables,110.00,0.00,110.00
Children and Young Peoples Services,Childrens Services Operational Support,052986,CYPS - Locality and Operational Support,Supplies and Services,304259,Equipment and Materials,20-Mar-2019,000006283442796,Durham County CNCL,9399,Equipment-purchase and rental,11.00,0.00,11.00
Children and Young Peoples Services,Childrens Services Operational Support,052986,CYPS - Locality and Operational Support,Supplies and Services,352001,Conference Expenses,20-Mar-2019,000006283442802,TVLICENSING.CO.UK,7392,Conferencesseminars fees etc,150.50,0.00,150.50
Children and Young Peoples Services,Childrens Services Operational Support,052986,CYPS - Locality and Operational Support,Supplies and Services,304403,Equipment and Materials,20-Mar-2019,000006283443262,BEAMISH MUSEUM LTD,5947,Other consumables,115.50,0.00,115.50
Children and Young Peoples Services,"Head of Early Help, Inclusion and Vulnerable Children",071445,Chester le Street One Point Hub,Supplies and Services,312011,Newspapers books and periodicals E312,21-Mar-2019,000006278050148,AMZN Mktp UK MW2VT1944,5942,Books-school library,15.99,0.00,15.99
Children and Young Peoples Services,Head of Education and Skills,071801,Selby Cottage Childcare Centre,Supplies and Services,312011,Newspapers books and periodicals E312,21-Mar-2019,000006283441660,AMZN Mktp UK MW68B49R4,5942,Books-school library,12.99,0.00,12.99
Children and Young Peoples Services,Head of Education and Skills,071801,Selby Cottage Childcare Centre,Supplies and Services,312011,Newspapers books and periodicals E312,21-Mar-2019,000006283441666,AMZN MKTP UK MW7OB0U54,5942,Books-school library,79.99,0.00,79.99
Children and Young Peoples Services,Head of Childrens Social Care,085342,9 Cedar Drive Aycliffe,Supplies and Services,348037,Subsistence E348,21-Mar-2019,000006283441720,MCDONALDS,5812,Subsistence,6.49,0.00,6.49
Children and Young Peoples Services,Head of Childrens Social Care,085332,Middlestone Moor CU,Supplies and Services,324117,Provisions E324,21-Mar-2019,000006283441726,SAINSBURYS 2199,5411,Catering costs - provisions,23.73,0.00,23.73
Children and Young Peoples Services,Head of Childrens Social Care,085332,Middlestone Moor CU,Supplies and Services,312011,Newspapers books and periodicals E312,21-Mar-2019,000006283441730,HOME BARGAINS,5251,Books-school library,18.24,0.00,18.24
Children and Young Peoples Services,Head of Childrens Social Care,085332,Middlestone Moor CU,Supplies and Services,328041,Clothing uniforms and laundry E328,21-Mar-2019,000006283441734,TK MAXX,5331,Clothing uniforms and laundry,12.98,0.00,12.98
Children and Young Peoples Services,Head of Childrens Social Care,085333,Coxhoe Satelite Home,Supplies and Services,312011,Newspapers books and periodicals E312,21-Mar-2019,000006283441762,Amazon.co.uk MW91N0UY4,5969,Books-school library,89.99,0.00,89.99
Children and Young Peoples Services,Head of Education and Skills,071732,Dean Bank Childcare,Supplies and Services,324117,Provisions E324,21-Mar-2019,000006283441976,TESCO STORES 2916,5411,Catering costs - provisions,104.07,0.00,104.07
Children and Young Peoples Services,Head of Education and Skills,071732,Dean Bank Childcare,Supplies and Services,324117,Provisions E324,21-Mar-2019,000006283441982,TESCO STORES 2916,5411,Catering costs - provisions,37.00,0.00,37.00
Children and Young Peoples Services,Head of Childrens Social Care,085334,West Rainton Satelite Home,Supplies and Services,304221,Equipment and Materials,21-Mar-2019,000006283442016,B & Q 1120,5211,Direct materials,21.87,0.00,21.87
Children and Young Peoples Services,Head of Education and Skills,071903,EYDCP-Sustainability EDS,Supplies and Services,342033,Computers and Communications,21-Mar-2019,000006283442056,iStock.com,7333,Computer hardware,24.00,0.00,24.00
Children and Young Peoples Services,Head of Education and Skills,071903,EYDCP-Sustainability EDS,Supplies and Services,342033,Computers and Communications,21-Mar-2019,000006283442064,iStock.com,7333,Computer hardware,8.40,0.00,8.40
Children and Young Peoples Services,"Head of Early Help, Inclusion and Vulnerable Children",071445,Chester le Street One Point Hub,Supplies and Services,312011,Newspapers books and periodicals E312,21-Mar-2019,000006283442122,AMZN Mktp UK MW0OY5UF4,5942,Books-school library,82.50,0.00,82.50
Children and Young Peoples Services,"Head of Early Help, Inclusion and Vulnerable Children",085957,Secure Management,Supplies and Services,312011,Newspapers books and periodicals E312,21-Mar-2019,000006283442140,AMZN Mktp UK MW8N12UD4,5942,Books-school library,26.54,4.42,22.12
Children and Young Peoples Services,"Head of Early Help, Inclusion and Vulnerable Children",085957,Secure Management,Supplies and Services,328041,Clothing uniforms and laundry E328,21-Mar-2019,000006283442146,WWW.ARGOS.CO.UK,5310,Clothing uniforms and laundry,21.95,0.00,21.95
Children and Young Peoples Services,"Head of Early Help, Inclusion and Vulnerable Children",085957,Secure Management,Supplies and Services,324117,Provisions E324,21-Mar-2019,000006283442150,TESCO STORES 6329,5411,Catering costs - provisions,75.09,0.00,75.09
Children and Young Peoples Services,Head of Childrens Social Care,085352,Tow Law CU,Supplies and Services,348037,Subsistence E348,21-Mar-2019,000006283442306,ANEESAS BUFFET RESTAUR,5812,Subsistence,37.05,0.00,37.05
Children and Young Peoples Services,Head of Childrens Social Care,085352,Tow Law CU,Supplies and Services,304221,Equipment and Materials,21-Mar-2019,000006283442310,SCREWFIX DIRECT,5200,Direct materials,19.99,3.33,16.66
Children and Young Peoples Services,Head of Childrens Social Care,085352,Tow Law CU,Supplies and Services,348037,Subsistence E348,21-Mar-2019,000006283442316,GREGGS,5812,Subsistence,14.40,0.00,14.40
Children and Young Peoples Services,"Head of Early Help, Inclusion and Vulnerable Children",071443,Stanley One Point Hub,Supplies and Services,312011,Newspapers books and periodicals E312,21-Mar-2019,000006283442336,AMZN Mktp UK MW2XA5UB4,5942,Books-school library,49.99,0.00,49.99
Children and Young Peoples Services,"Head of Early Help, Inclusion and Vulnerable Children",071443,Stanley One Point Hub,Supplies and Services,312011,Newspapers books and periodicals E312,21-Mar-2019,000006283442342,AMZN MKTP UK MW81L4UN4,5942,Books-school library,49.99,0.00,49.99
Children and Young Peoples Services,Head of Childrens Social Care,085334,West Rainton Satelite Home,Supplies and Services,324117,Provisions E324,21-Mar-2019,000006283442402,ALDI 15 774,5411,Catering costs - provisions,7.99,0.00,7.99
Children and Young Peoples Services,Head of Childrens Social Care,085342,9 Cedar Drive Aycliffe,Supplies and Services,324117,Provisions E324,21-Mar-2019,000006283442458,TESCO STORES 2916,5411,Catering costs - provisions,19.06,0.00,19.06
Children and Young Peoples Services,Head of Education and Skills,070264,EDC Premises,Supplies and Services,324117,Provisions E324,21-Mar-2019,000006283442558,ASDA SUPERSTORE 4987,5411,Catering costs - provisions,10.56,0.00,10.56
Children and Young Peoples Services,Childrens Services Operational Support,052986,CYPS - Locality and Operational Support,Supplies and Services,348037,Subsistence E348,21-Mar-2019,000006283442582,CAFE INTERLUDE,5814,Subsistence,45.30,0.00,45.30
Children and Young Peoples Services,"Head of Early Help, Inclusion and Vulnerable Children",074000,TTF-Attachment and Results,Supplies and Services,308011,Furniture,21-Mar-2019,000006283442600,FRANKS THE FLOORING ST,5713,Furniture repair and replacement,150.00,0.00,150.00
Children and Young Peoples Services,"Head of Early Help, Inclusion and Vulnerable Children",074000,TTF-Attachment and Results,Supplies and Services,312011,Newspapers books and periodicals E312,21-Mar-2019,000006283442606,Amazon.co.uk MW1XL7UI4,5969,Books-school library,25.49,0.00,25.49
Children and Young Peoples Services,"Head of Early Help, Inclusion and Vulnerable Children",074000,TTF-Attachment and Results,Supplies and Services,312011,Newspapers books and periodicals E312,21-Mar-2019,000006283442612,Amazon.co.uk MW2XB4U94,5969,Books-school library,25.49,0.00,25.49
Children and Young Peoples Services,"Head of Early Help, Inclusion and Vulnerable Children",074000,TTF-Attachment and Results,Supplies and Services,312011,Newspapers books and periodicals E312,21-Mar-2019,000006283442616,Amazon.co.uk MW3XB3UI4,5969,Books-school library,25.49,0.00,25.49
Children and Young Peoples Services,"Head of Early Help, Inclusion and Vulnerable Children",074000,TTF-Attachment and Results,Supplies and Services,312011,Newspapers books and periodicals E312,21-Mar-2019,000006283442622,Amazon.co.uk MW31Z7U54,5969,Books-school library,25.49,0.00,25.49
Children and Young Peoples Services,"Head of Early Help, Inclusion and Vulnerable Children",074000,TTF-Attachment and Results,Supplies and Services,312011,Newspapers books and periodicals E312,21-Mar-2019,000006283442626,Amazon.co.uk MW4HQ8U74,5969,Books-school library,25.49,0.00,25.49
Children and Young Peoples Services,"Head of Early Help, Inclusion and Vulnerable Children",074000,TTF-Attachment and Results,Supplies and Services,312011,Newspapers books and periodicals E312,21-Mar-2019,000006283442632,Amazon.co.uk MW51Z1UT4,5969,Books-school library,25.49,0.00,25.49
Children and Young Peoples Services,"Head of Early Help, Inclusion and Vulnerable Children",074000,TTF-Attachment and Results,Supplies and Services,312011,Newspapers books and periodicals E312,21-Mar-2019,000006283442634,Amazon.co.uk MW8HD4U54,5969,Books-school library,25.49,0.00,25.49
Children and Young Peoples Services,"Head of Early Help, Inclusion and Vulnerable Children",074000,TTF-Attachment and Results,Supplies and Services,312011,Newspapers books and periodicals E312,21-Mar-2019,000006283442640,Amazon.co.uk MW8S14UE4,5969,Books-school library,25.49,0.00,25.49
Children and Young Peoples Services,"Head of Early Help, Inclusion and Vulnerable Children",074000,TTF-Attachment and Results,Supplies and Services,312011,Newspapers books and periodicals E312,21-Mar-2019,000006283442644,Amazon.co.uk MW8X50UJ4,5969,Books-school library,25.49,0.00,25.49
Children and Young Peoples Services,"Head of Early Help, Inclusion and Vulnerable Children",074000,TTF-Attachment and Results,Supplies and Services,312011,Newspapers books and periodicals E312,21-Mar-2019,000006283442648,Amazon.co.uk MW9HR5UE4,5969,Books-school library,25.49,0.00,25.49
Children and Young Peoples Services,"Head of Early Help, Inclusion and Vulnerable Children",074000,TTF-Attachment and Results,Supplies and Services,312011,Newspapers books and periodicals E312,21-Mar-2019,000006283442654,Amazon.co.uk MW9NK4UP4,5969,Books-school library,62.50,0.00,62.50
Children and Young Peoples Services,"Head of Early Help, Inclusion and Vulnerable Children",074000,TTF-Attachment and Results,Supplies and Services,324117,Provisions E324,21-Mar-2019,000006283442656,ASDA GEORGE COM LEEDS,5411,Catering costs - provisions,152.94,0.00,152.94
Children and Young Peoples Services,"Head of Early Help, Inclusion and Vulnerable Children",085957,Secure Management,Supplies and Services,342033,Computers and Communications,21-Mar-2019,000006283442684,VERY,5964,Computer hardware,19.99,0.00,19.99
Children and Young Peoples Services,Head of Childrens Social Care,085332,Middlestone Moor CU,Employees,040149,Recruitment Instruction and Training,21-Mar-2019,000006283442950,CITY AND GUILDS OF LON,8398,Training-all costs,44.00,0.00,44.00
Children and Young Peoples Services,Head of Childrens Social Care,085332,Middlestone Moor CU,Premises,145009,Cleaning and Domestic Supplies,21-Mar-2019,000006283442956,WWW.PAYCANON.COM,7349,Other cleaning and domestic costs,85.82,14.30,71.52
Children and Young Peoples Services,Head of Childrens Social Care,085380,Operations Manager Adoption & Fostering,Supplies and Services,324117,Provisions E324,21-Mar-2019,000006283442970,ASDA STORES,5411,Catering costs - provisions,5.25,0.88,4.37
Adult and Health Services,Head of Adults,055306,Spennymoor Pathways,Supplies and Services,324117,Provisions E324,21-Mar-2019,000006283443088,ASDA SUPERSTORE 4987,5411,Catering costs - provisions,4.72,0.00,4.72
Adult and Health Services,Head of Adults,055309,Peterlee Pathways,Supplies and Services,324117,Provisions E324,21-Mar-2019,000006283443124,LIDL GB PETERLEE,5411,Catering costs - provisions,2.66,0.00,2.66
Adult and Health Services,Head of Adults,055309,Peterlee Pathways,Supplies and Services,328041,Clothing uniforms and laundry E328,21-Mar-2019,000006283443132,ARGOS LTD,5310,Clothing uniforms and laundry,-30.00,0.00,-30.00
Children and Young Peoples Services,Head of Education and Skills,071801,Selby Cottage Childcare Centre,Supplies and Services,324117,Provisions E324,22-Mar-2019,000008399548323,WM MORRISONS STORE,5411,Catering costs - provisions,18.00,0.00,18.00
Children and Young Peoples Services,Head of Education and Skills,071801,Selby Cottage Childcare Centre,Supplies and Services,304259,Equipment and Materials,22-Mar-2019,000008399548327,WILKO RETAIL LIMIT,5722,Equipment-purchase and rental,11.05,0.00,11.05
Children and Young Peoples Services,Head of Education and Skills,078411,16-19 Education & Training,Supplies and Services,304259,Equipment and Materials,22-Mar-2019,000008399548389,GEN REGISTER OFFICE,9399,Equipment-purchase and rental,14.00,0.00,14.00
Children and Young Peoples Services,Head of Childrens Social Care,085332,Middlestone Moor CU,Supplies and Services,324117,Provisions E324,22-Mar-2019,000008399548435,TESCO STORES 2371,5411,Catering costs - provisions,49.12,0.00,49.12
Children and Young Peoples Services,Head of Childrens Social Care,085333,Coxhoe Satelite Home,Supplies and Services,304259,Equipment and Materials,22-Mar-2019,000008399548491,M and M Direct Ltd,5941,Equipment-purchase and rental,45.96,0.00,45.96
Children and Young Peoples Services,Head of Childrens Social Care,085334,West Rainton Satelite Home,Supplies and Services,328041,Clothing uniforms and laundry E328,22-Mar-2019,000008399548845,MATALAN,5691,Clothing uniforms and laundry,84.00,0.00,84.00
Children and Young Peoples Services,Head of Childrens Social Care,085334,West Rainton Satelite Home,Supplies and Services,328041,Clothing uniforms and laundry E328,22-Mar-2019,000008399548851,T K MAXX,5331,Clothing uniforms and laundry,29.98,0.00,29.98
Children and Young Peoples Services,Head of Childrens Social Care,085334,West Rainton Satelite Home,Supplies and Services,324117,Provisions E324,22-Mar-2019,000008399548857,TESCO STORES 2371,5411,Catering costs - provisions,78.00,0.00,78.00
Children and Young Peoples Services,Head of Childrens Social Care,085334,West Rainton Satelite Home,Supplies and Services,324117,Provisions E324,22-Mar-2019,000008399548861,TESCO STORES 2371,5411,Catering costs - provisions,63.87,0.00,63.87
Children and Young Peoples Services,Head of Childrens Social Care,085334,West Rainton Satelite Home,Supplies and Services,328041,Clothing uniforms and laundry E328,22-Mar-2019,000008399548867,Argos Durham Arnis,5310,Clothing uniforms and laundry,10.99,0.00,10.99
Children and Young Peoples Services,Head of Childrens Social Care,071448,Newton Aycliffe One Point Hub,Supplies and Services,328041,Clothing uniforms and laundry E328,22-Mar-2019,000008399548961,ARGOS RETAIL GROUP,5310,Clothing uniforms and laundry,19.00,0.00,19.00
Children and Young Peoples Services,Head of Childrens Social Care,071448,Newton Aycliffe One Point Hub,Supplies and Services,328041,Clothing uniforms and laundry E328,22-Mar-2019,000008399548967,WWW.ARGOS.CO.UK,5310,Clothing uniforms and laundry,82.93,0.00,82.93
Children and Young Peoples Services,"Head of Early Help, Inclusion and Vulnerable Children",071445,Chester le Street One Point Hub,Supplies and Services,324117,Provisions E324,22-Mar-2019,000008399548973,ASDA GROCERIES ONLINE,5411,Catering costs - provisions,350.64,0.00,350.64
Children and Young Peoples Services,"Head of Early Help, Inclusion and Vulnerable Children",071445,Chester le Street One Point Hub,Supplies and Services,324117,Provisions E324,22-Mar-2019,000008399548977,ASDA GROCERIES ONLINE,5411,Catering costs - provisions,-20.90,0.00,-20.90
Children and Young Peoples Services,"Head of Early Help, Inclusion and Vulnerable Children",085957,Secure Management,Supplies and Services,324117,Provisions E324,22-Mar-2019,000008399549007,TESCO STORES 6329,5411,Catering costs - provisions,93.96,0.00,93.96
Children and Young Peoples Services,Head of Childrens Social Care,085342,9 Cedar Drive Aycliffe,Employees,040149,Recruitment Instruction and Training,22-Mar-2019,000008399549265,PARENTPAY E-COM R,8220,Training-all costs,10.00,0.00,10.00
Children and Young Peoples Services,Head of Childrens Social Care,085342,9 Cedar Drive Aycliffe,Transport,215995,Running Costs of Vehicles,22-Mar-2019,000008399549275,CHILTON FILLING STN,5541,Vehicle running expenses,25.00,0.00,25.00
Children and Young Peoples Services,Head of Childrens Social Care,085342,9 Cedar Drive Aycliffe,Supplies and Services,348037,Subsistence E348,22-Mar-2019,000008399549289,MCDONALDS,5812,Subsistence,6.38,0.00,6.38
Children and Young Peoples Services,Head of Childrens Social Care,085342,9 Cedar Drive Aycliffe,Supplies and Services,348037,Subsistence E348,22-Mar-2019,000008399549293,MCDONALDS,5812,Subsistence,16.32,2.72,13.60
Children and Young Peoples Services,Head of Childrens Social Care,085342,9 Cedar Drive Aycliffe,Supplies and Services,348037,Subsistence E348,22-Mar-2019,000008399549293 - 1,MCDONALDS,5812,Subsistence,3.40,,3.40
Children and Young Peoples Services,Head of Childrens Social Care,085352,Tow Law CU,Supplies and Services,328041,Clothing uniforms and laundry E328,22-Mar-2019,000008399549307,WWW.ARGOS.CO.UK,5310,Clothing uniforms and laundry,279.96,0.00,279.96
Children and Young Peoples Services,Head of Childrens Social Care,085352,Tow Law CU,Supplies and Services,328041,Clothing uniforms and laundry E328,22-Mar-2019,000008399549311,WWW.ARGOS.CO.UK,5310,Clothing uniforms and laundry,113.94,0.00,113.94
Children and Young Peoples Services,Head of Childrens Social Care,085352,Tow Law CU,Supplies and Services,328041,Clothing uniforms and laundry E328,22-Mar-2019,000008399549315,WWW.ARGOS.CO.UK,5310,Clothing uniforms and laundry,151.95,0.00,151.95
Children and Young Peoples Services,Childrens Services Operational Support,052986,CYPS - Locality and Operational Support,Supplies and Services,324117,Provisions E324,22-Mar-2019,000008399549429,WILKO.COM,5399,Catering costs - provisions,94.00,0.00,94.00
Children and Young Peoples Services,"Head of Early Help, Inclusion and Vulnerable Children",085957,Secure Management,Supplies and Services,328041,Clothing uniforms and laundry E328,22-Mar-2019,000008399549455,WWW.ARGOS.CO.UK,5310,Clothing uniforms and laundry,81.89,13.65,68.24
Children and Young Peoples Services,"Head of Early Help, Inclusion and Vulnerable Children",085801,CDYOS - Support,Supplies and Services,324117,Provisions E324,22-Mar-2019,000008399549547,ASDA GROCERIES ONLINE,5411,Catering costs - provisions,88.38,0.00,88.38
Children and Young Peoples Services,Childrens Services Operational Support,052986,CYPS - Locality and Operational Support,Supplies and Services,304259,Equipment and Materials,22-Mar-2019,000008399549569,WWW.DURHAM.GOV.UK,9399,Equipment-purchase and rental,22.00,0.00,22.00
Children and Young Peoples Services,Childrens Services Operational Support,052986,CYPS - Locality and Operational Support,Supplies and Services,304259,Equipment and Materials,22-Mar-2019,000008399549573,DARLINGTON BC INTERNET,9399,Equipment-purchase and rental,22.00,0.00,22.00
Adult and Health Services,Head of Adults,055807,Newton Aycliffe Pathways,Supplies and Services,324117,Provisions E324,22-Mar-2019,000008399549881,SAINSBURYS SACAT 0776,5411,Catering costs - provisions,4.60,0.00,4.60
Children and Young Peoples Services,"Head of Early Help, Inclusion and Vulnerable Children",085810,CDYOS - Interventions Team,Supplies and Services,324117,Provisions E324,22-Mar-2019,000008399550053,LIDL GB LANGLEY MOOR,5411,Catering costs - provisions,5.46,0.00,5.46
Children and Young Peoples Services,Head of Childrens Social Care,085342,9 Cedar Drive Aycliffe,Supplies and Services,324117,Provisions E324,23-Mar-2019,000008399548429,ASDA STORES,5411,Catering costs - provisions,98.99,0.00,98.99
Children and Young Peoples Services,Head of Childrens Social Care,085352,Tow Law CU,Supplies and Services,324117,Provisions E324,23-Mar-2019,000008399548519,SAINSBURYS 0776,5411,Catering costs - provisions,28.10,0.00,28.10
Children and Young Peoples Services,Head of Childrens Social Care,085352,Tow Law CU,Supplies and Services,348037,Subsistence E348,23-Mar-2019,000008399548527,COSTA COFFEE,5814,Subsistence,5.50,0.00,5.50
Children and Young Peoples Services,Head of Childrens Social Care,085352,Tow Law CU,Supplies and Services,332047,Printing Stationery and Gen Off Exps,23-Mar-2019,000008399548533,VUE BSL SITE,7832,Stationery,20.97,0.00,20.97
Children and Young Peoples Services,Head of Education and Skills,071732,Dean Bank Childcare,Supplies and Services,312011,Newspapers books and periodicals E312,23-Mar-2019,000008399548803,HOME BARGAINS SPENNYMO,5251,Books-school library,42.63,0.00,42.63
Children and Young Peoples Services,"Head of Early Help, Inclusion and Vulnerable Children",071445,Chester le Street One Point Hub,Supplies and Services,312011,Newspapers books and periodicals E312,23-Mar-2019,000008399548983,AMZN Mktp UK MW3TX7R44,5942,Books-school library,27.26,0.00,27.26
Children and Young Peoples Services,"Head of Early Help, Inclusion and Vulnerable Children",085957,Secure Management,Supplies and Services,324117,Provisions E324,23-Mar-2019,000008399549011,TESCO STORES 6329,5411,Catering costs - provisions,49.56,0.00,49.56
Children and Young Peoples Services,Head of Childrens Social Care,085551,Short Break Services-Park Hse Sher,Supplies and Services,324117,Provisions E324,23-Mar-2019,000008399549161,TESCO STORES 2371,5411,Catering costs - provisions,15.43,0.00,15.43
Dedicated Schools Grant,DSG High Needs Block,079040,SENSS-HQ,Supplies and Services,312011,Newspapers books and periodicals E312,23-Mar-2019,000008399549487,Amazon.co.uk MW1VD0RB4,5969,Books-school library,12.09,0.00,12.09
Children and Young Peoples Services,Head of Childrens Social Care,085333,Coxhoe Satelite Home,Supplies and Services,324117,Provisions E324,24-Mar-2019,000008399548771,TESCO STORES 2916,5411,Catering costs - provisions,26.59,0.00,26.59
Children and Young Peoples Services,"Head of Early Help, Inclusion and Vulnerable Children",071445,Chester le Street One Point Hub,Supplies and Services,312011,Newspapers books and periodicals E312,24-Mar-2019,000008399548989,AMZN Mktp UK MW3O09W64,5942,Books-school library,33.91,0.00,33.91
Children and Young Peoples Services,"Head of Early Help, Inclusion and Vulnerable Children",071445,Chester le Street One Point Hub,Supplies and Services,312011,Newspapers books and periodicals E312,24-Mar-2019,000008399548995,AMZN Mktp UK MW7AX4WM4,5942,Books-school library,22.17,0.00,22.17
Children and Young Peoples Services,"Head of Early Help, Inclusion and Vulnerable Children",071445,Chester le Street One Point Hub,Supplies and Services,312011,Newspapers books and periodicals E312,24-Mar-2019,000008399549001,AMZN Mktp UK MW9PT9W84,5942,Books-school library,36.39,0.00,36.39
Children and Young Peoples Services,"Head of Early Help, Inclusion and Vulnerable Children",085957,Secure Management,Supplies and Services,324117,Provisions E324,24-Mar-2019,000008399549017,TESCO STORES 6329,5411,Catering costs - provisions,132.07,0.00,132.07
Children and Young Peoples Services,Head of Childrens Social Care,085342,9 Cedar Drive Aycliffe,Supplies and Services,324117,Provisions E324,24-Mar-2019,000008399549297,TESCO STORES 2916,5411,Catering costs - provisions,56.04,0.00,56.04
Dedicated Schools Grant,DSG High Needs Block,079040,SENSS-HQ,Supplies and Services,312011,Newspapers books and periodicals E312,24-Mar-2019,000008399549493,AMZN Mktp UK MW0F50W84,5942,Books-school library,22.68,0.00,22.68
Children and Young Peoples Services,Head of Education and Skills,071903,EYDCP-Sustainability EDS,Supplies and Services,312011,Newspapers books and periodicals E312,24-Mar-2019,000008399549501,Amazon.co.uk MW7YD7WD4,5969,Books-school library,5.33,0.00,5.33
Children and Young Peoples Services,Head of Childrens Social Care,085342,9 Cedar Drive Aycliffe,Supplies and Services,304259,Equipment and Materials,24-Mar-2019,000008407519353,WILKO RETAIL LIMIT,5722,Equipment-purchase and rental,17.50,0.00,17.50
Children and Young Peoples Services,Head of Education and Skills,071801,Selby Cottage Childcare Centre,Supplies and Services,324117,Provisions E324,25-Mar-2019,000008407519261,TESCO STORES 2278,5411,Catering costs - provisions,55.62,0.00,55.62
Children and Young Peoples Services,Head of Education and Skills,071801,Selby Cottage Childcare Centre,Supplies and Services,312011,Newspapers books and periodicals E312,25-Mar-2019,000008407519271,AMZN Mktp UK MZ7UR4CK4,5942,Books-school library,13.69,0.00,13.69
Children and Young Peoples Services,Head of Education and Skills,071801,Selby Cottage Childcare Centre,Supplies and Services,312011,Newspapers books and periodicals E312,25-Mar-2019,000008407519275,AMZN Mktp UK MZ9U49C44,5942,Books-school library,14.49,0.00,14.49
Children and Young Peoples Services,Head of Childrens Social Care,085357,Bespoke Placements,Transport,235057,Public Transport,25-Mar-2019,000008407519293,HOLIDAY PAYMENT VRUK,4722,Staff travelling,288.00,0.00,288.00
Children and Young Peoples Services,Head of Childrens Social Care,085357,Bespoke Placements,Transport,235057,Public Transport,25-Mar-2019,000008407519297,HOLIDAY PAYMENT VRUK,4722,Staff travelling,"2,274.00",0.00,2274.00
Children and Young Peoples Services,Head of Childrens Social Care,085357,Bespoke Placements,Transport,235057,Public Transport,25-Mar-2019,000008407519301,HOLIDAY PAYMENT VRUK,4722,Staff travelling,"1,557.00",0.00,1557.00
Children and Young Peoples Services,Head of Childrens Social Care,085332,Middlestone Moor CU,Supplies and Services,324117,Provisions E324,25-Mar-2019,000008407519361,TESCO STORES 2916,5411,Catering costs - provisions,12.76,0.00,12.76
Children and Young Peoples Services,"Head of Early Help, Inclusion and Vulnerable Children",071440,Barnard Castle One Point Hub,Supplies and Services,324117,Provisions E324,25-Mar-2019,000008407519417,BESTWAY WHOLESALE,5451,Catering costs - provisions,45.48,7.58,37.90
Children and Young Peoples Services,"Head of Early Help, Inclusion and Vulnerable Children",071440,Barnard Castle One Point Hub,Supplies and Services,324117,Provisions E324,25-Mar-2019,000008407519417 - 1,BESTWAY WHOLESALE,5451,Catering costs - provisions,120.69,,120.69
Children and Young Peoples Services,Childrens Services Operational Support,052986,CYPS - Locality and Operational Support,Supplies and Services,304259,Equipment and Materials,25-Mar-2019,000008407519557,DARLINGTON BC INTERNET,9399,Equipment-purchase and rental,11.00,0.00,11.00
Children and Young Peoples Services,Head of Education and Skills,071732,Dean Bank Childcare,Supplies and Services,324117,Provisions E324,25-Mar-2019,000008407519613,ASDA GROCERIES ONLINE,5411,Catering costs - provisions,5.00,0.00,5.00
Children and Young Peoples Services,Head of Education and Skills,071732,Dean Bank Childcare,Supplies and Services,324117,Provisions E324,25-Mar-2019,000008407519619,ASDA GROCERIES ONLINE,5411,Catering costs - provisions,66.25,0.00,66.25
Children and Young Peoples Services,"Head of Early Help, Inclusion and Vulnerable Children",071445,Chester le Street One Point Hub,Supplies and Services,312011,Newspapers books and periodicals E312,25-Mar-2019,000008407519661,AMZN Mktp UK MW4EL8YU4,5942,Books-school library,127.68,0.00,127.68
Children and Young Peoples Services,"Head of Early Help, Inclusion and Vulnerable Children",071445,Chester le Street One Point Hub,Supplies and Services,324117,Provisions E324,25-Mar-2019,000008407519665,ASDA GROCERIES ONLINE,5411,Catering costs - provisions,254.05,0.00,254.05
Children and Young Peoples Services,"Head of Early Help, Inclusion and Vulnerable Children",071445,Chester le Street One Point Hub,Supplies and Services,324117,Provisions E324,25-Mar-2019,000008407519671,ASDA GROCERIES ONLINE,5411,Catering costs - provisions,-0.18,0.00,-0.18
Children and Young Peoples Services,"Head of Early Help, Inclusion and Vulnerable Children",085957,Secure Management,Supplies and Services,324117,Provisions E324,25-Mar-2019,000008407519675,TESCO STORES 6329,5411,Catering costs - provisions,155.41,0.00,155.41
Children and Young Peoples Services,Childrens Services Operational Support,052986,CYPS - Locality and Operational Support,Supplies and Services,324117,Provisions E324,25-Mar-2019,000008407519931,ASDA GROCERIES ONLINE,5411,Catering costs - provisions,54.00,0.00,54.00
Children and Young Peoples Services,Head of Childrens Social Care,085331,New Lea Childrens Home,Supplies and Services,304259,Equipment and Materials,25-Mar-2019,000008407519957,DISCLOSURE & BARRING,9399,Equipment-purchase and rental,13.00,0.00,13.00
Children and Young Peoples Services,Head of Childrens Social Care,085331,New Lea Childrens Home,Supplies and Services,304259,Equipment and Materials,25-Mar-2019,000008407519965,DISCLOSURE & BARRING,9399,Equipment-purchase and rental,13.00,0.00,13.00
Children and Young Peoples Services,Head of Childrens Social Care,085331,New Lea Childrens Home,Supplies and Services,324117,Provisions E324,25-Mar-2019,000008407519967,TESCO STORES 4358,5411,Catering costs - provisions,134.52,0.00,134.52
Children and Young Peoples Services,Head of Childrens Social Care,085333,Coxhoe Satelite Home,Supplies and Services,324117,Provisions E324,25-Mar-2019,000008407520067,ASDA SUPERSTORE 4987,5411,Catering costs - provisions,48.98,0.00,48.98
Children and Young Peoples Services,Head of Childrens Social Care,085333,Coxhoe Satelite Home,Supplies and Services,324117,Provisions E324,25-Mar-2019,000008407520071,ASDA SUPERSTORE 4987,5411,Catering costs - provisions,15.35,0.00,15.35
Children and Young Peoples Services,Head of Childrens Social Care,085342,9 Cedar Drive Aycliffe,Supplies and Services,324117,Provisions E324,25-Mar-2019,000008407520083,TESCO STORES 2916,5411,Catering costs - provisions,20.95,0.00,20.95
Children and Young Peoples Services,Head of Childrens Social Care,085342,9 Cedar Drive Aycliffe,Supplies and Services,332047,Printing Stationery and Gen Off Exps,25-Mar-2019,000008407520091,RYMAN,5943,Stationery,7.98,1.33,6.65
Children and Young Peoples Services,Childrens Services Operational Support,052986,CYPS - Locality and Operational Support,Supplies and Services,312011,Newspapers books and periodicals E312,25-Mar-2019,000008407520235,AMZN Mktp UK MW16G9YC4,5942,Books-school library,14.29,0.00,14.29
Children and Young Peoples Services,"Head of Early Help, Inclusion and Vulnerable Children",085957,Secure Management,Supplies and Services,312011,Newspapers books and periodicals E312,25-Mar-2019,000008407520267,AMZN Mktp UK MW1368YP4,5942,Books-school library,3.99,0.00,3.99
Children and Young Peoples Services,"Head of Early Help, Inclusion and Vulnerable Children",085957,Secure Management,Supplies and Services,312011,Newspapers books and periodicals E312,25-Mar-2019,000008407520275,Amazon.co.uk MZ4R72CF4,5969,Books-school library,69.00,11.50,57.50
Children and Young Peoples Services,"Head of Early Help, Inclusion and Vulnerable Children",085957,Secure Management,Supplies and Services,312011,Newspapers books and periodicals E312,25-Mar-2019,000008407520279,AMZN MKTP UK MZ8LW0CC4,5942,Books-school library,18.90,0.00,18.90
Children and Young Peoples Services,Head of Childrens Social Care,085333,Coxhoe Satelite Home,Supplies and Services,304999,Equipment and Materials,25-Mar-2019,000008407520325,"BOOTS/5009,NEWTON",5912,Misc equipment tools and materials,15.98,0.00,15.98
Children and Young Peoples Services,Head of Childrens Social Care,085333,Coxhoe Satelite Home,Supplies and Services,304999,Equipment and Materials,25-Mar-2019,000008407520329,SAVERS HEALTH & BEAUTY,5912,Misc equipment tools and materials,8.97,0.00,8.97
Adult and Health Services,Head of Adults,055807,Newton Aycliffe Pathways,Supplies and Services,312011,Newspapers books and periodicals E312,25-Mar-2019,000008407520485,AMZN Mktp UK MW2QQ7YL4,5942,Books-school library,9.25,0.00,9.25
Adult and Health Services,Head of Adults,055807,Newton Aycliffe Pathways,Supplies and Services,312011,Newspapers books and periodicals E312,25-Mar-2019,000008407520489,AMZN Mktp UK MW3RU7YA4,5942,Books-school library,7.45,0.00,7.45
Adult and Health Services,Head of Adults,055807,Newton Aycliffe Pathways,Supplies and Services,312011,Newspapers books and periodicals E312,25-Mar-2019,000008407520491,AMZN Mktp UK MW74M4WW4,5942,Books-school library,10.98,0.00,10.98
Children and Young Peoples Services,Head of Childrens Social Care,085332,Middlestone Moor CU,Supplies and Services,308011,Furniture,25-Mar-2019,000008411697879,PAYPAL FABNESS,5932,Furniture repair and replacement,4.99,0.00,4.99
Children and Young Peoples Services,Head of Childrens Social Care,085333,Coxhoe Satelite Home,Supplies and Services,328041,Clothing uniforms and laundry E328,25-Mar-2019,000008411697919,B&M RETAIL,5310,Clothing uniforms and laundry,10.97,0.00,10.97
Children and Young Peoples Services,Head of Childrens Social Care,085334,West Rainton Satelite Home,Supplies and Services,304221,Equipment and Materials,25-Mar-2019,000008411698113,B & Q 1343,5211,Direct materials,67.22,0.00,67.22
Children and Young Peoples Services,"Head of Early Help, Inclusion and Vulnerable Children",085957,Secure Management,Supplies and Services,328041,Clothing uniforms and laundry E328,25-Mar-2019,000008411698165,WWW.FOOTLOCKER.EU,5661,Clothing uniforms and laundry,-34.99,0.00,-34.99
Children and Young Peoples Services,Childrens Services Operational Support,052986,CYPS - Locality and Operational Support,Supplies and Services,304403,Equipment and Materials,25-Mar-2019,000008411698297,BEAMISH MUSEUM LTD,5947,Other consumables,128.00,0.00,128.00
Children and Young Peoples Services,Head of Childrens Social Care,085342,9 Cedar Drive Aycliffe,Supplies and Services,304259,Equipment and Materials,25-Mar-2019,000008411698493,WILKO RETAIL LIMIT,5722,Equipment-purchase and rental,10.05,0.00,10.05
Children and Young Peoples Services,"Head of Early Help, Inclusion and Vulnerable Children",085957,Secure Management,Supplies and Services,304221,Equipment and Materials,25-Mar-2019,000008411698599,SCREWFIX DIRECT,5200,Direct materials,93.69,15.62,78.07
Children and Young Peoples Services,Head of Education and Skills,071801,Selby Cottage Childcare Centre,Supplies and Services,324117,Provisions E324,26-Mar-2019,000008411697841,TESCO STORES 2278,5411,Catering costs - provisions,8.50,0.00,8.50
Children and Young Peoples Services,Head of Education and Skills,071801,Selby Cottage Childcare Centre,Supplies and Services,324117,Provisions E324,26-Mar-2019,000008411697847,ASDA GROCERIES ONLINE,5411,Catering costs - provisions,63.71,0.00,63.71
Adult and Health Services,Head of Adults,055302,Durham Pathways,Supplies and Services,324117,Provisions E324,26-Mar-2019,000008411697867,ASDA SUPERSTORE,5411,Catering costs - provisions,5.40,0.00,5.40
Children and Young Peoples Services,Head of Childrens Social Care,085332,Middlestone Moor CU,Supplies and Services,324117,Provisions E324,26-Mar-2019,000008411697883,SAINSBURYS 2199,5411,Catering costs - provisions,4.05,0.00,4.05
Children and Young Peoples Services,Head of Childrens Social Care,085332,Middlestone Moor CU,Supplies and Services,324117,Provisions E324,26-Mar-2019,000008411697885,ASDA SUPERSTORE 4987,5411,Catering costs - provisions,17.00,0.00,17.00
Children and Young Peoples Services,Head of Childrens Social Care,085332,Middlestone Moor CU,Supplies and Services,324117,Provisions E324,26-Mar-2019,000008411697889,TESCO STORES 2371,5411,Catering costs - provisions,70.45,0.00,70.45
Children and Young Peoples Services,Head of Childrens Social Care,085332,Middlestone Moor CU,Supplies and Services,304999,Equipment and Materials,26-Mar-2019,000008411697893,TESCO DELIVERY SAVER2,5968,Misc equipment tools and materials,6.99,0.00,6.99
Children and Young Peoples Services,"Head of Early Help, Inclusion and Vulnerable Children",071440,Barnard Castle One Point Hub,Supplies and Services,312011,Newspapers books and periodicals E312,26-Mar-2019,000008411697945,AMZN Mktp UK MZ4PG5CK4,5942,Books-school library,3.19,0.00,3.19
Children and Young Peoples Services,"Head of Early Help, Inclusion and Vulnerable Children",071440,Barnard Castle One Point Hub,Supplies and Services,312011,Newspapers books and periodicals E312,26-Mar-2019,000008411697947,AMZN Mktp UK MZ3K12CN4,5942,Books-school library,6.79,1.13,5.66
Children and Young Peoples Services,"Head of Early Help, Inclusion and Vulnerable Children",071449,Ferryhill One Point Hub,Supplies and Services,312011,Newspapers books and periodicals E312,26-Mar-2019,000008411697975,AMZN Mktp UK MZ8WS7FO4,5942,Books-school library,19.33,0.00,19.33
Children and Young Peoples Services,"Head of Early Help, Inclusion and Vulnerable Children",071449,Ferryhill One Point Hub,Supplies and Services,324117,Provisions E324,26-Mar-2019,000008411697979,ASDA GEORGE COM LEEDS,5411,Catering costs - provisions,26.00,0.00,26.00
Children and Young Peoples Services,Childrens Services Operational Support,052986,CYPS - Locality and Operational Support,Supplies and Services,312011,Newspapers books and periodicals E312,26-Mar-2019,000008411698075,HOME BARGAINS SPENNYMO,5251,Books-school library,10.01,0.00,10.01
Children and Young Peoples Services,Childrens Services Operational Support,052986,CYPS - Locality and Operational Support,Supplies and Services,324117,Provisions E324,26-Mar-2019,000008411698079,ASDA SUPERSTORE 4987,5411,Catering costs - provisions,24.00,0.00,24.00
Children and Young Peoples Services,Childrens Services Operational Support,052986,CYPS - Locality and Operational Support,Supplies and Services,328041,Clothing uniforms and laundry E328,26-Mar-2019,000008411698081,B&M RETAIL LTD,5310,Clothing uniforms and laundry,42.32,0.00,42.32
Children and Young Peoples Services,"Head of Early Help, Inclusion and Vulnerable Children",088113,Seaham & Central Durham 0-19 Community Family Hub,Supplies and Services,308011,Furniture,26-Mar-2019,000008411698095,WWW.IKEA.COM,5712,Furniture repair and replacement,114.95,0.00,114.95
Children and Young Peoples Services,"Head of Early Help, Inclusion and Vulnerable Children",088113,Seaham & Central Durham 0-19 Community Family Hub,Supplies and Services,328041,Clothing uniforms and laundry E328,26-Mar-2019,000008411698099,WWW.ARGOS.CO.UK,5310,Clothing uniforms and laundry,35.95,0.00,35.95
Children and Young Peoples Services,"Head of Early Help, Inclusion and Vulnerable Children",088113,Seaham & Central Durham 0-19 Community Family Hub,Supplies and Services,328041,Clothing uniforms and laundry E328,26-Mar-2019,000008411698103,WWW.ARGOS.CO.UK,5310,Clothing uniforms and laundry,35.00,0.00,35.00
Adult and Health Services,Head of Adults,055202,Support and Recovery,Supplies and Services,340001,Postages E340,26-Mar-2019,000008411698135,POST OFFICE COUNTER,9402,Postages,1.90,0.00,1.90
Children and Young Peoples Services,"Head of Early Help, Inclusion and Vulnerable Children",071445,Chester le Street One Point Hub,Supplies and Services,308011,Furniture,26-Mar-2019,000008411698159,REDWORTH FURNITURE CEN,5712,Furniture repair and replacement,169.00,0.00,169.00
Children and Young Peoples Services,Childrens Services Operational Support,052986,CYPS - Locality and Operational Support,Supplies and Services,304403,Equipment and Materials,26-Mar-2019,000008411698177,BEAMISH MUSEUM LTD,5947,Other consumables,115.00,0.00,115.00
Children and Young Peoples Services,"Head of Early Help, Inclusion and Vulnerable Children",071443,Stanley One Point Hub,Supplies and Services,312011,Newspapers books and periodicals E312,26-Mar-2019,000008411698303,AMZN Mktp UK MZ41O1OD4,5942,Books-school library,9.99,0.00,9.99
Children and Young Peoples Services,"Head of Early Help, Inclusion and Vulnerable Children",071443,Stanley One Point Hub,Supplies and Services,304403,Equipment and Materials,26-Mar-2019,000008411698307,CAPT CHARITY,5734,Other consumables,12.50,0.00,12.50
Children and Young Peoples Services,"Head of Early Help, Inclusion and Vulnerable Children",071443,Stanley One Point Hub,Supplies and Services,384999,Miscellaneous Expenses,26-Mar-2019,000008411698309,SOCIALBABY,5945,Other expenses,27.99,0.00,27.99
Children and Young Peoples Services,"Head of Early Help, Inclusion and Vulnerable Children",071443,Stanley One Point Hub,Employees,040149,Recruitment Instruction and Training,26-Mar-2019,000008411698315,FAMILY LINKS,8398,Training-all costs,43.00,0.00,43.00
Children and Young Peoples Services,"Head of Early Help, Inclusion and Vulnerable Children",071443,Stanley One Point Hub,Supplies and Services,312011,Newspapers books and periodicals E312,26-Mar-2019,000008411698317,HOME BARGAINS ONLINE,5251,Books-school library,27.45,0.00,27.45
Children and Young Peoples Services,Head of Childrens Social Care,085331,New Lea Childrens Home,Supplies and Services,324117,Provisions E324,26-Mar-2019,000008411698321,TESCO STORES 5457,5411,Catering costs - provisions,10.08,0.00,10.08
Children and Young Peoples Services,Head of Childrens Social Care,085331,New Lea Childrens Home,Supplies and Services,304259,Equipment and Materials,26-Mar-2019,000008411698325,DISCLOSURE & BARRING,9399,Equipment-purchase and rental,-13.00,0.00,-13.00
Children and Young Peoples Services,Head of Childrens Social Care,085342,9 Cedar Drive Aycliffe,Supplies and Services,324117,Provisions E324,26-Mar-2019,000008411698497,ASDA STORES 4320,5411,Catering costs - provisions,10.00,0.00,10.00
Children and Young Peoples Services,Head of Childrens Social Care,085342,9 Cedar Drive Aycliffe,Supplies and Services,304999,Equipment and Materials,26-Mar-2019,000008411698501,SUPERDRUG STORES PLC,5912,Misc equipment tools and materials,5.00,0.00,5.00
Children and Young Peoples Services,Head of Childrens Social Care,085342,9 Cedar Drive Aycliffe,Supplies and Services,348037,Subsistence E348,26-Mar-2019,000008411698505,MCDONALDS,5814,Subsistence,21.34,3.56,17.78
Children and Young Peoples Services,"Head of Early Help, Inclusion and Vulnerable Children",085957,Secure Management,Supplies and Services,324117,Provisions E324,26-Mar-2019,000008411698515,TESCO STORES 6329,5411,Catering costs - provisions,316.30,0.00,316.30
Children and Young Peoples Services,"Head of Early Help, Inclusion and Vulnerable Children",071445,Chester le Street One Point Hub,Supplies and Services,372009,Subscriptions E372,26-Mar-2019,000008411698563,RICHMOND ANDERSON GOUD,8111,Subscriptions 372009,555.80,92.63,463.17
Children and Young Peoples Services,"Head of Early Help, Inclusion and Vulnerable Children",071445,Chester le Street One Point Hub,Employees,040149,Recruitment Instruction and Training,26-Mar-2019,000008411698567,CO-OP GROUP,8931,Training-all costs,300.00,0.00,300.00
Children and Young Peoples Services,Head of Childrens Social Care,085342,9 Cedar Drive Aycliffe,Supplies and Services,312011,Newspapers books and periodicals E312,26-Mar-2019,000008411698577,Amazon.co.uk MZ9RE2OK4,5969,Books-school library,84.37,0.00,84.37
Children and Young Peoples Services,Head of Childrens Social Care,085342,9 Cedar Drive Aycliffe,Employees,040149,Recruitment Instruction and Training,26-Mar-2019,000008411698581,PARENTPAY E-COM R,8220,Training-all costs,100.00,0.00,100.00
Children and Young Peoples Services,Head of Childrens Social Care,085342,9 Cedar Drive Aycliffe,Employees,040149,Recruitment Instruction and Training,26-Mar-2019,000008411698585,PARENTPAY E-COM R,8220,Training-all costs,60.00,0.00,60.00
Children and Young Peoples Services,Childrens Services Operational Support,052986,CYPS - Locality and Operational Support,Supplies and Services,304259,Equipment and Materials,26-Mar-2019,000008411698621,SUNDERLAND CC,9399,Equipment-purchase and rental,11.00,0.00,11.00
Children and Young Peoples Services,Childrens Services Operational Support,052986,CYPS - Locality and Operational Support,Supplies and Services,304259,Equipment and Materials,26-Mar-2019,000008411698625,DARLINGTON BC INTERNET,9399,Equipment-purchase and rental,11.00,0.00,11.00
Children and Young Peoples Services,Head of Childrens Social Care,085333,Coxhoe Satelite Home,Supplies and Services,304259,Equipment and Materials,26-Mar-2019,000008411698673,WILKO RETAIL LIMIT,5722,Equipment-purchase and rental,25.90,0.00,25.90
Children and Young Peoples Services,"Head of Early Help, Inclusion and Vulnerable Children",088107,Ferryhill & Newton Aycliffe 0-19 Community Family Hub,Supplies and Services,328041,Clothing uniforms and laundry E328,26-Mar-2019,000008411698727,Argos Durham Arnis,5310,Clothing uniforms and laundry,330.00,0.00,330.00
Adult and Health Services,Head of Adults,055807,Newton Aycliffe Pathways,Supplies and Services,304259,Equipment and Materials,26-Mar-2019,000008411698757,WILKO RETAIL LIMIT,5722,Equipment-purchase and rental,3.05,0.00,3.05
Transformation and Partnerships,Partnerships & Community Engagement Div.,060472,Syrian Vulnerable Persons Scheme,Supplies and Services,324117,Provisions E324,26-Mar-2019,000008411698791,ASDA STORES LTD 4313,5411,Catering costs - provisions,27.00,0.00,27.00
Transformation and Partnerships,Partnerships & Community Engagement Div.,060472,Syrian Vulnerable Persons Scheme,Supplies and Services,304259,Equipment and Materials,26-Mar-2019,000008411698797,WILKO DURHAM 426,5722,Equipment-purchase and rental,42.50,0.00,42.50
Children and Young Peoples Services,Head of Childrens Social Care,085331,New Lea Childrens Home,Supplies and Services,352001,Conference Expenses,26-Mar-2019,000008416775873,THE MOORINGS HOTEL (DU,7011,Conferencesseminars fees etc,24.50,0.00,24.50
Children and Young Peoples Services,Head of Childrens Social Care,085331,New Lea Childrens Home,Supplies and Services,352001,Conference Expenses,26-Mar-2019,000008416775875,THE MOORINGS HOTEL (DU,7011,Conferencesseminars fees etc,10.40,0.00,10.40
Children and Young Peoples Services,Childrens Services Operational Support,052986,CYPS - Locality and Operational Support,Supplies and Services,352001,Conference Expenses,26-Mar-2019,000008416775971,TVLICENSING.CO.UK,7392,Conferencesseminars fees etc,150.50,0.00,150.50
Children and Young Peoples Services,Head of Education and Skills,071801,Selby Cottage Childcare Centre,Supplies and Services,324117,Provisions E324,27-Mar-2019,000008416775601,ASDA GROCERIES ONLINE,5411,Catering costs - provisions,5.00,0.00,5.00
Children and Young Peoples Services,Head of Education and Skills,071801,Selby Cottage Childcare Centre,Supplies and Services,312011,Newspapers books and periodicals E312,27-Mar-2019,000008416775603,AMZN Mktp UK MZ9FM74Q4,5942,Books-school library,8.89,0.00,8.89
Adult and Health Services,Head of Adults,055302,Durham Pathways,Supplies and Services,324117,Provisions E324,27-Mar-2019,000008416775625,LIDL GB DURHAM,5411,Catering costs - provisions,3.06,0.51,2.55
Adult and Health Services,Head of Adults,055302,Durham Pathways,Supplies and Services,324117,Provisions E324,27-Mar-2019,000008416775625 - 1,LIDL GB DURHAM,5411,Catering costs - provisions,8.86,,8.86
Children and Young Peoples Services,Head of Childrens Social Care,085332,Middlestone Moor CU,Supplies and Services,304259,Equipment and Materials,27-Mar-2019,000008416775645,Electrolux plc,5722,Equipment-purchase and rental,22.98,0.00,22.98
Children and Young Peoples Services,"Head of Early Help, Inclusion and Vulnerable Children",071440,Barnard Castle One Point Hub,Supplies and Services,312011,Newspapers books and periodicals E312,27-Mar-2019,000008416775667,AMZN Mktp UK MZ5457F44,5942,Books-school library,4.70,0.78,3.92
Children and Young Peoples Services,"Head of Early Help, Inclusion and Vulnerable Children",071440,Barnard Castle One Point Hub,Supplies and Services,312011,Newspapers books and periodicals E312,27-Mar-2019,000008416775669,AMZN Mktp UK MZ70D0F14,5942,Books-school library,10.99,0.00,10.99
Children and Young Peoples Services,"Head of Early Help, Inclusion and Vulnerable Children",071440,Barnard Castle One Point Hub,Supplies and Services,312011,Newspapers books and periodicals E312,27-Mar-2019,000008416775671,AMZN Mktp UK MZ57D64M4,5942,Books-school library,18.47,0.00,18.47
Children and Young Peoples Services,Childrens Services Operational Support,052986,CYPS - Locality and Operational Support,Supplies and Services,304259,Equipment and Materials,27-Mar-2019,000008416775709,DARLINGTON BC INTERNET,9399,Equipment-purchase and rental,11.00,0.00,11.00
Children and Young Peoples Services,Childrens Services Operational Support,052986,CYPS - Locality and Operational Support,Supplies and Services,304259,Equipment and Materials,27-Mar-2019,000008416775711,DARLINGTON BC INTERNET,9399,Equipment-purchase and rental,11.00,0.00,11.00
Children and Young Peoples Services,Head of Childrens Social Care,085333,Coxhoe Satelite Home,Supplies and Services,344033,Telephones,27-Mar-2019,000008416775715,E E BROADBAND,4812,Telephones general-all costs,36.00,0.00,36.00
Children and Young Peoples Services,Head of Education and Skills,071732,Dean Bank Childcare,Supplies and Services,312011,Newspapers books and periodicals E312,27-Mar-2019,000008416775723,AMZN Mktp UK MZ0Y45404,5942,Books-school library,12.28,0.00,12.28
Children and Young Peoples Services,Head of Education and Skills,071732,Dean Bank Childcare,Supplies and Services,384999,Miscellaneous Expenses,27-Mar-2019,000008416775725,BAKER ROSS,5970,Other expenses,84.67,0.00,84.67
Children and Young Peoples Services,Head of Childrens Social Care,085334,West Rainton Satelite Home,Supplies and Services,324117,Provisions E324,27-Mar-2019,000008416775729,TESCO STORES 2371,5411,Catering costs - provisions,134.40,0.00,134.40
Children and Young Peoples Services,Head of Childrens Social Care,085334,West Rainton Satelite Home,Supplies and Services,324117,Provisions E324,27-Mar-2019,000008416775731,TESCO STORES 2371,5411,Catering costs - provisions,22.50,0.00,22.50
Children and Young Peoples Services,Head of Childrens Social Care,085334,West Rainton Satelite Home,Supplies and Services,304259,Equipment and Materials,27-Mar-2019,000008416775733,CURRYS,5732,Equipment-purchase and rental,433.99,0.00,433.99
Children and Young Peoples Services,Head of Childrens Social Care,085334,West Rainton Satelite Home,Supplies and Services,304259,Equipment and Materials,27-Mar-2019,000008416775735,CURRYS,5732,Equipment-purchase and rental,98.00,0.00,98.00
Children and Young Peoples Services,"Head of Early Help, Inclusion and Vulnerable Children",085957,Secure Management,Supplies and Services,304259,Equipment and Materials,27-Mar-2019,000008416775767,M and M Direct Ltd,5941,Equipment-purchase and rental,30.97,0.00,30.97
Children and Young Peoples Services,"Head of Early Help, Inclusion and Vulnerable Children",085957,Secure Management,Supplies and Services,328041,Clothing uniforms and laundry E328,27-Mar-2019,000008416775769,FOOTASYLUM PLC,5691,Clothing uniforms and laundry,69.98,0.00,69.98
Children and Young Peoples Services,"Head of Early Help, Inclusion and Vulnerable Children",085957,Secure Management,Supplies and Services,312011,Newspapers books and periodicals E312,27-Mar-2019,000008416775771,AMZN Mktp UK MZ25Q54H4,5942,Books-school library,14.99,2.50,12.49
Children and Young Peoples Services,"Head of Early Help, Inclusion and Vulnerable Children",085957,Secure Management,Supplies and Services,312011,Newspapers books and periodicals E312,27-Mar-2019,000008416775773,Amazon.co.uk MZ2BL1FE4,5969,Books-school library,5.78,0.00,5.78
Children and Young Peoples Services,"Head of Early Help, Inclusion and Vulnerable Children",085957,Secure Management,Supplies and Services,312011,Newspapers books and periodicals E312,27-Mar-2019,000008416775775,Amazon.co.uk MZ55S24F4,5969,Books-school library,3.99,0.00,3.99
Children and Young Peoples Services,"Head of Early Help, Inclusion and Vulnerable Children",085957,Secure Management,Supplies and Services,312011,Newspapers books and periodicals E312,27-Mar-2019,000008416775777,Amazon.co.uk MZ95964C4,5969,Books-school library,19.98,3.33,16.65
Children and Young Peoples Services,"Head of Early Help, Inclusion and Vulnerable Children",085957,Secure Management,Supplies and Services,312011,Newspapers books and periodicals E312,27-Mar-2019,000008416775779,AMZN MKTP UK MZ8O06FU4,5942,Books-school library,8.95,1.49,7.46
Children and Young Peoples Services,"Head of Early Help, Inclusion and Vulnerable Children",085957,Secure Management,Supplies and Services,312011,Newspapers books and periodicals E312,27-Mar-2019,000008416775781,AMZN Mktp UK MZ61534A4,5942,Books-school library,30.33,0.00,30.33
Children and Young Peoples Services,"Head of Early Help, Inclusion and Vulnerable Children",085957,Secure Management,Supplies and Services,312011,Newspapers books and periodicals E312,27-Mar-2019,000008416775783,Amazon.co.uk MZ2GN84Y4,5969,Books-school library,15.00,2.50,12.50
Children and Young Peoples Services,"Head of Early Help, Inclusion and Vulnerable Children",085957,Secure Management,Supplies and Services,312011,Newspapers books and periodicals E312,27-Mar-2019,000008416775785,Amazon.co.uk MZ2ZB34J4,5969,Books-school library,15.00,2.50,12.50
Children and Young Peoples Services,"Head of Early Help, Inclusion and Vulnerable Children",085957,Secure Management,Supplies and Services,312011,Newspapers books and periodicals E312,27-Mar-2019,000008416775789,Amazon.co.uk MZ61594A4,5969,Books-school library,19.35,3.23,16.12
Children and Young Peoples Services,"Head of Early Help, Inclusion and Vulnerable Children",085957,Secure Management,Supplies and Services,304259,Equipment and Materials,27-Mar-2019,000008416775791,WWW.TAUNTONLEISURE.COM,5941,Equipment-purchase and rental,52.55,0.00,52.55
Children and Young Peoples Services,"Head of Early Help, Inclusion and Vulnerable Children",085957,Secure Management,Supplies and Services,328041,Clothing uniforms and laundry E328,27-Mar-2019,000008416775795,WWW.ESCAPE2.CO.UK,5655,Clothing uniforms and laundry,59.99,0.00,59.99
Children and Young Peoples Services,"Head of Early Help, Inclusion and Vulnerable Children",085957,Secure Management,Supplies and Services,324117,Provisions E324,27-Mar-2019,000008416775797,TESCO STORES 6329,5411,Catering costs - provisions,59.07,0.00,59.07
Children and Young Peoples Services,Head of Childrens Social Care,085352,Tow Law CU,Supplies and Services,308011,Furniture,27-Mar-2019,000008416775857,WWW.IKEA.COM,5712,Furniture repair and replacement,393.00,65.50,327.50
Children and Young Peoples Services,"Head of Early Help, Inclusion and Vulnerable Children",071443,Stanley One Point Hub,Supplies and Services,312011,Newspapers books and periodicals E312,27-Mar-2019,000008416775863,AMZN Mktp UK MZ84L5FK4,5942,Books-school library,13.15,0.00,13.15
Children and Young Peoples Services,"Head of Early Help, Inclusion and Vulnerable Children",071443,Stanley One Point Hub,Supplies and Services,312011,Newspapers books and periodicals E312,27-Mar-2019,000008416775865,AMZN Mktp UK MZ9EM9O04,5942,Books-school library,29.98,0.00,29.98
Children and Young Peoples Services,"Head of Early Help, Inclusion and Vulnerable Children",071443,Stanley One Point Hub,Supplies and Services,312011,Newspapers books and periodicals E312,27-Mar-2019,000008416775867,AMZN Mktp UK MZ48C3FP4,5942,Books-school library,11.88,0.00,11.88
Children and Young Peoples Services,"Head of Early Help, Inclusion and Vulnerable Children",071443,Stanley One Point Hub,Supplies and Services,312011,Newspapers books and periodicals E312,27-Mar-2019,000008416775869,AMZN Mktp UK MZ0OF94K4,5942,Books-school library,10.72,0.00,10.72
Children and Young Peoples Services,"Head of Early Help, Inclusion and Vulnerable Children",071443,Stanley One Point Hub,Supplies and Services,312011,Newspapers books and periodicals E312,27-Mar-2019,000008416775871,Amazon.co.uk MZ1ZH64D4,5969,Books-school library,19.94,0.00,19.94
Children and Young Peoples Services,Head of Childrens Social Care,085331,New Lea Childrens Home,Supplies and Services,328041,Clothing uniforms and laundry E328,27-Mar-2019,000008416775877,PAYPAL ARDISLELTDT,5331,Clothing uniforms and laundry,17.08,0.00,17.08
Children and Young Peoples Services,Head of Childrens Social Care,085331,New Lea Childrens Home,Supplies and Services,304259,Equipment and Materials,27-Mar-2019,000008416775879,PAYPAL POKIVICKY,5732,Equipment-purchase and rental,14.99,0.00,14.99
Children and Young Peoples Services,Head of Childrens Social Care,085331,New Lea Childrens Home,Supplies and Services,304403,Equipment and Materials,27-Mar-2019,000008416775881,PAYPAL INSPIRATION,5947,Other consumables,14.90,0.00,14.90
Children and Young Peoples Services,Head of Childrens Social Care,085331,New Lea Childrens Home,Third Party Payments 4THIRD,430100,Rendered by Private Contractors,27-Mar-2019,000008416775883,PAYPAL FULLLINKLTD,7399,Payments to sub-contractors,8.98,0.00,8.98
Children and Young Peoples Services,Head of Childrens Social Care,085331,New Lea Childrens Home,Supplies and Services,304221,Equipment and Materials,27-Mar-2019,000008416775885,WWW.E-MAGNETSUK.COM,5085,Direct materials,6.24,1.04,5.20
Children and Young Peoples Services,Head of Childrens Social Care,085333,Coxhoe Satelite Home,Supplies and Services,324117,Provisions E324,27-Mar-2019,000008416775899,GEORGE BOLAM (FOODS) L,5499,Catering costs - provisions,114.81,0.00,114.81
